﻿Department Family,Entity,Date,Expense Type,Expense Area,Supplier,Transaction Number,Amount,Item Description
BEIS,UKRI - AHRC,01/08/2022,T&S UK - Mileage,SMT,Unspecified,99777163,23.31,T&S UK - Mileage
BEIS,UKRI - AHRC,03/08/2022,Unspecified,Infrastructure Fund - CoSTAR,Alexander Mann Solutions Ltd,99758621,1212.89,Legal & Professional Services
BEIS,UKRI - AHRC,03/08/2022,Unspecified,Infrastruture Roadmap,Alexander Mann Solutions Ltd,99758621,519.77,Legal & Professional Services
BEIS,UKRI - AHRC,03/08/2022,Unspecified,Infrastructure Fund - CoSTAR,Alexander Mann Solutions Ltd,99770989,693.06,Legal & Professional Services
BEIS,UKRI - AHRC,03/08/2022,Unspecified,Infrastructure Fund - CoSTAR,Alexander Mann Solutions Ltd,99773323,1212.85,Legal & Professional Services
BEIS,UKRI - AHRC,03/08/2022,Unspecified,Infrastructure Fund - CoSTAR,Alexander Mann Solutions Ltd,99777013,1212.85,Legal & Professional Services
BEIS,UKRI - AHRC,05/08/2022,T&S UK - Other Charges,Executive Office,Unspecified,99771503,24.40,T&S UK - Other Charges
BEIS,UKRI - AHRC,05/08/2022,T&S UK - Subsistence,Executive Office,Unspecified,99772817,9.50,T&S UK - Subsistence
BEIS,UKRI - AHRC,05/08/2022,Unspecified,Infrastructure Fund - CoSTAR,Alexander Mann Solutions Ltd,99779615,1559.39,Legal & Professional Services
BEIS,UKRI - AHRC,05/08/2022,T&S UK - Other Charges,Operations,Unspecified,99779643,12.74,T&S UK - Other Charges
BEIS,UKRI - AHRC,10/08/2022,Overseas - Professional Memberships & Subscriptions,CLARIN,Unspecified,99780429,87404.63,Overseas - Professional Memberships & Subscriptions
BEIS,UKRI - AHRC,10/08/2022,Other Programme Costs,Infrastructure Fund - Preliminary activity - RICHes (Science R&D),ICF Consulting Services Ltd,99780583,24000.00,Other Programme Costs
BEIS,UKRI - AHRC,10/08/2022,T&S UK - Other Charges,AHRC - Creative Industries,Unspecified,99782876,95.99,T&S UK - Other Charges
BEIS,UKRI - AHRC,11/08/2022,Research Grant Expenditure,Public Engagement,Think Impact Ltd,99782331,3000.00,Research Grant Expenditure
BEIS,UKRI - AHRC,11/08/2022,T&S UK - Accommodation,Health and Environmental Humanities,Unspecified,99782510,52.50,T&S UK - Accommodation
BEIS,UKRI - AHRC,11/08/2022,Recruitment Costs,Industrial Strategy Challenge Fund (ISCF) - Creative Clusters,Onefix Recruitment Ltd,99782944,300.00,Recruitment Costs
BEIS,UKRI - AHRC,11/08/2022,Recruitment Costs,Industrial Strategy Challenge Fund (ISCF) - Creative Clusters,Onefix Recruitment Ltd,99782944,810.00,Recruitment Costs
BEIS,UKRI - AHRC,11/08/2022,Recruitment Costs,Industrial Strategy Challenge Fund (ISCF) - Creative Clusters,Onefix Recruitment Ltd,99782944,954.00,Recruitment Costs
BEIS,UKRI - AHRC,11/08/2022,Recruitment Costs,Industrial Strategy Challenge Fund (ISCF) - Creative Clusters,Onefix Recruitment Ltd,99782944,810.00,Recruitment Costs
BEIS,UKRI - AHRC,11/08/2022,Recruitment Costs,Industrial Strategy Challenge Fund (ISCF) - Creative Clusters,Onefix Recruitment Ltd,99782944,954.00,Recruitment Costs
BEIS,UKRI - AHRC,12/08/2022,Unspecified,Balance Sheet,HM Revenue & Customs,99782181,65936.17,NI Payable Salaries
BEIS,UKRI - AHRC,12/08/2022,Unspecified,Balance Sheet,HM Revenue & Customs,99782182,47461.32,PAYE Payable Salaries
BEIS,UKRI - AHRC,12/08/2022,Unspecified,Balance Sheet,HM Revenue & Customs,99782183,4877.00,Student Loans
BEIS,UKRI - AHRC,12/08/2022,Nursery Deductions,Balance Sheet,UKRI - Engineering & Physical Sciences Research Council,99782193,1013.00,Nursery Deductions
BEIS,UKRI - AHRC,12/08/2022,T&S Overseas - Accommodation,FIC- US,Corporate Travel Management (North) Ltd,99782647,1.17,T&S Overseas - Accommodation
BEIS,UKRI - AHRC,12/08/2022,T&S Overseas - Accommodation,FIC- US,Corporate Travel Management (North) Ltd,99782647,0.23,T&S Overseas - Accommodation
BEIS,UKRI - AHRC,12/08/2022,T&S Overseas - Accommodation,HERA JRP Project,Corporate Travel Management (North) Ltd,99782647,1.17,T&S Overseas - Accommodation
BEIS,UKRI - AHRC,12/08/2022,T&S Overseas - Accommodation,HERA JRP Project,Corporate Travel Management (North) Ltd,99782647,0.23,T&S Overseas - Accommodation
BEIS,UKRI - AHRC,12/08/2022,T&S Overseas - Flights,HERA JRP Project,Corporate Travel Management (North) Ltd,99782647,2.50,T&S Overseas - Flights
BEIS,UKRI - AHRC,12/08/2022,T&S Overseas - Flights,HERA JRP Project,Corporate Travel Management (North) Ltd,99782647,135.06,T&S Overseas - Flights
BEIS,UKRI - AHRC,12/08/2022,T&S Overseas - Flights,HERA JRP Project,Corporate Travel Management (North) Ltd,99782647,2.50,T&S Overseas - Flights
BEIS,UKRI - AHRC,12/08/2022,T&S Overseas - Flights,HERA JRP Project,Corporate Travel Management (North) Ltd,99782647,156.82,T&S Overseas - Flights
BEIS,UKRI - AHRC,12/08/2022,T&S UK - Accommodation,Infrastructure Fund - CoSTAR,Corporate Travel Management (North) Ltd,99782647,0.80,T&S UK - Accommodation
BEIS,UKRI - AHRC,12/08/2022,T&S UK - Accommodation,Infrastructure Fund - CoSTAR,Corporate Travel Management (North) Ltd,99782647,132.00,T&S UK - Accommodation
BEIS,UKRI - AHRC,12/08/2022,T&S UK - Accommodation,Infrastructure Fund - CoSTAR,Corporate Travel Management (North) Ltd,99782647,0.16,T&S UK - Accommodation
BEIS,UKRI - AHRC,12/08/2022,T&S UK - Accommodation,Infrastruture Roadmap,Corporate Travel Management (North) Ltd,99782647,0.80,T&S UK - Accommodation
BEIS,UKRI - AHRC,12/08/2022,T&S UK - Accommodation,Infrastruture Roadmap,Corporate Travel Management (North) Ltd,99782647,74.10,T&S UK - Accommodation
BEIS,UKRI - AHRC,12/08/2022,T&S UK - Accommodation,Infrastruture Roadmap,Corporate Travel Management (North) Ltd,99782647,0.16,T&S UK - Accommodation
BEIS,UKRI - AHRC,12/08/2022,T&S UK - Accommodation,SMT,Corporate Travel Management (North) Ltd,99782647,1.60,T&S UK - Accommodation
BEIS,UKRI - AHRC,12/08/2022,T&S UK - Accommodation,SMT,Corporate Travel Management (North) Ltd,99782647,94.30,T&S UK - Accommodation
BEIS,UKRI - AHRC,12/08/2022,T&S UK - Accommodation,SMT,Corporate Travel Management (North) Ltd,99782647,0.80,T&S UK - Accommodation
BEIS,UKRI - AHRC,12/08/2022,T&S UK - Accommodation,SMT,Corporate Travel Management (North) Ltd,99782647,70.00,T&S UK - Accommodation
BEIS,UKRI - AHRC,12/08/2022,T&S UK - Accommodation,SMT,Corporate Travel Management (North) Ltd,99782647,0.48,T&S UK - Accommodation
BEIS,UKRI - AHRC,12/08/2022,T&S UK - Other Charges,International Development and Area Studies,Corporate Travel Management (North) Ltd,99782647,2.60,T&S UK - Other Charges
BEIS,UKRI - AHRC,12/08/2022,T&S UK - Other Charges,International Development and Area Studies,Corporate Travel Management (North) Ltd,99782647,60.00,T&S UK - Other Charges
BEIS,UKRI - AHRC,12/08/2022,T&S UK - Public Transport,AHRC - Creative Industries,Corporate Travel Management (North) Ltd,99782647,0.25,T&S UK - Public Transport
BEIS,UKRI - AHRC,12/08/2022,T&S UK - Public Transport,AHRC - Creative Industries,Corporate Travel Management (North) Ltd,99782647,157.20,T&S UK - Public Transport
BEIS,UKRI - AHRC,12/08/2022,T&S UK - Public Transport,AI&Design,Corporate Travel Management (North) Ltd,99782647,0.25,T&S UK - Public Transport
BEIS,UKRI - AHRC,12/08/2022,T&S UK - Public Transport,AI&Design,Corporate Travel Management (North) Ltd,99782647,94.60,T&S UK - Public Transport
BEIS,UKRI - AHRC,12/08/2022,T&S UK - Public Transport,AI&Design,Corporate Travel Management (North) Ltd,99782647,5.00,T&S UK - Public Transport
BEIS,UKRI - AHRC,12/08/2022,T&S UK - Public Transport,AI&Design,Corporate Travel Management (North) Ltd,99782647,-62.20,T&S UK - Public Transport
BEIS,UKRI - AHRC,12/08/2022,T&S UK - Public Transport,HERA JRP Project,Corporate Travel Management (North) Ltd,99782647,0.25,T&S UK - Public Transport
BEIS,UKRI - AHRC,12/08/2022,T&S UK - Public Transport,HERA JRP Project,Corporate Travel Management (North) Ltd,99782647,42.00,T&S UK - Public Transport
BEIS,UKRI - AHRC,12/08/2022,T&S UK - Public Transport,Health and Environmental Humanities,Corporate Travel Management (North) Ltd,99782647,0.50,T&S UK - Public Transport
BEIS,UKRI - AHRC,12/08/2022,T&S UK - Public Transport,Health and Environmental Humanities,Corporate Travel Management (North) Ltd,99782647,33.60,T&S UK - Public Transport
BEIS,UKRI - AHRC,12/08/2022,T&S UK - Public Transport,Health and Environmental Humanities,Corporate Travel Management (North) Ltd,99782647,83.60,T&S UK - Public Transport
BEIS,UKRI - AHRC,12/08/2022,T&S UK - Public Transport,Health and Environmental Humanities,Corporate Travel Management (North) Ltd,99782647,2.60,T&S UK - Public Transport
BEIS,UKRI - AHRC,12/08/2022,T&S UK - Public Transport,Health and Environmental Humanities,Corporate Travel Management (North) Ltd,99782647,52.20,T&S UK - Public Transport
BEIS,UKRI - AHRC,12/08/2022,T&S UK - Public Transport,Industrial Strategy Challenge Fund (ISCF) - Creative Clusters,Corporate Travel Management (North) Ltd,99782647,0.25,T&S UK - Public Transport
BEIS,UKRI - AHRC,12/08/2022,T&S UK - Public Transport,Industrial Strategy Challenge Fund (ISCF) - Creative Clusters,Corporate Travel Management (North) Ltd,99782647,26.20,T&S UK - Public Transport
BEIS,UKRI - AHRC,12/08/2022,T&S UK - Public Transport,Infrastructure Fund - CoSTAR,Corporate Travel Management (North) Ltd,99782647,0.25,T&S UK - Public Transport
BEIS,UKRI - AHRC,12/08/2022,T&S UK - Public Transport,Infrastructure Fund - CoSTAR,Corporate Travel Management (North) Ltd,99782647,66.90,T&S UK - Public Transport
BEIS,UKRI - AHRC,12/08/2022,T&S UK - Public Transport,Infrastruture Roadmap,Corporate Travel Management (North) Ltd,99782647,0.25,T&S UK - Public Transport
BEIS,UKRI - AHRC,12/08/2022,T&S UK - Public Transport,Infrastruture Roadmap,Corporate Travel Management (North) Ltd,99782647,32.80,T&S UK - Public Transport
BEIS,UKRI - AHRC,12/08/2022,T&S UK - Public Transport,Infrastruture Roadmap,Corporate Travel Management (North) Ltd,99782647,5.00,T&S UK - Public Transport
BEIS,UKRI - AHRC,12/08/2022,T&S UK - Public Transport,Infrastruture Roadmap,Corporate Travel Management (North) Ltd,99782647,-178.00,T&S UK - Public Transport
BEIS,UKRI - AHRC,12/08/2022,T&S UK - Public Transport,Infrastruture Roadmap,Corporate Travel Management (North) Ltd,99782647,10.00,T&S UK - Public Transport
BEIS,UKRI - AHRC,12/08/2022,T&S UK - Public Transport,Infrastruture Roadmap,Corporate Travel Management (North) Ltd,99782647,-11.10,T&S UK - Public Transport
BEIS,UKRI - AHRC,12/08/2022,T&S UK - Public Transport,Infrastruture Roadmap,Corporate Travel Management (North) Ltd,99782647,-125.80,T&S UK - Public Transport
BEIS,UKRI - AHRC,12/08/2022,T&S UK - Public Transport,Infrastruture Roadmap,Corporate Travel Management (North) Ltd,99782647,0.25,T&S UK - Public Transport
BEIS,UKRI - AHRC,12/08/2022,T&S UK - Public Transport,Infrastruture Roadmap,Corporate Travel Management (North) Ltd,99782647,66.90,T&S UK - Public Transport
BEIS,UKRI - AHRC,12/08/2022,T&S UK - Public Transport,International Development and Area Studies,Corporate Travel Management (North) Ltd,99782647,2.60,T&S UK - Public Transport
BEIS,UKRI - AHRC,12/08/2022,T&S UK - Public Transport,International Development and Area Studies,Corporate Travel Management (North) Ltd,99782647,238.80,T&S UK - Public Transport
BEIS,UKRI - AHRC,12/08/2022,T&S UK - Public Transport,International Partnership and Engagement,Corporate Travel Management (North) Ltd,99782647,0.25,T&S UK - Public Transport
BEIS,UKRI - AHRC,12/08/2022,T&S UK - Public Transport,International Partnership and Engagement,Corporate Travel Management (North) Ltd,99782647,22.10,T&S UK - Public Transport
BEIS,UKRI - AHRC,12/08/2022,T&S UK - Public Transport,International Partnership and Engagement,Corporate Travel Management (North) Ltd,99782647,0.25,T&S UK - Public Transport
BEIS,UKRI - AHRC,12/08/2022,T&S UK - Public Transport,International Partnership and Engagement,Corporate Travel Management (North) Ltd,99782647,22.10,T&S UK - Public Transport
BEIS,UKRI - AHRC,12/08/2022,T&S UK - Public Transport,SMT,Corporate Travel Management (North) Ltd,99782647,0.25,T&S UK - Public Transport
BEIS,UKRI - AHRC,12/08/2022,T&S UK - Public Transport,SMT,Corporate Travel Management (North) Ltd,99782647,16.00,T&S UK - Public Transport
BEIS,UKRI - AHRC,12/08/2022,T&S UK - Public Transport,SMT,Corporate Travel Management (North) Ltd,99782647,0.50,T&S UK - Public Transport
BEIS,UKRI - AHRC,12/08/2022,T&S UK - Public Transport,SMT,Corporate Travel Management (North) Ltd,99782647,68.60,T&S UK - Public Transport
BEIS,UKRI - AHRC,12/08/2022,T&S UK - Public Transport,SMT,Corporate Travel Management (North) Ltd,99782647,46.20,T&S UK - Public Transport
BEIS,UKRI - AHRC,12/08/2022,T&S UK - Public Transport,SMT,Corporate Travel Management (North) Ltd,99782647,0.25,T&S UK - Public Transport
BEIS,UKRI - AHRC,12/08/2022,T&S UK - Public Transport,SMT,Corporate Travel Management (North) Ltd,99782647,94.10,T&S UK - Public Transport
BEIS,UKRI - AHRC,12/08/2022,T&S UK - Public Transport,SMT,Corporate Travel Management (North) Ltd,99782647,0.25,T&S UK - Public Transport
BEIS,UKRI - AHRC,12/08/2022,T&S UK - Public Transport,SMT,Corporate Travel Management (North) Ltd,99782647,32.20,T&S UK - Public Transport
BEIS,UKRI - AHRC,12/08/2022,T&S UK - Public Transport,SMT,Corporate Travel Management (North) Ltd,99782647,0.25,T&S UK - Public Transport
BEIS,UKRI - AHRC,12/08/2022,T&S UK - Public Transport,SMT,Corporate Travel Management (North) Ltd,99782647,43.90,T&S UK - Public Transport
BEIS,UKRI - AHRC,12/08/2022,T&S UK - Public Transport,SMT,Corporate Travel Management (North) Ltd,99782647,0.25,T&S UK - Public Transport
BEIS,UKRI - AHRC,12/08/2022,T&S UK - Public Transport,SMT,Corporate Travel Management (North) Ltd,99782647,57.20,T&S UK - Public Transport
BEIS,UKRI - AHRC,12/08/2022,T&S UK - Public Transport,SMT,Corporate Travel Management (North) Ltd,99782647,5.00,T&S UK - Public Transport
BEIS,UKRI - AHRC,12/08/2022,T&S UK - Public Transport,SMT,Corporate Travel Management (North) Ltd,99782647,-47.40,T&S UK - Public Transport
BEIS,UKRI - AHRC,12/08/2022,T&S UK - Public Transport,SMT,Corporate Travel Management (North) Ltd,99782647,0.25,T&S UK - Public Transport
BEIS,UKRI - AHRC,12/08/2022,T&S UK - Public Transport,SMT,Corporate Travel Management (North) Ltd,99782647,134.50,T&S UK - Public Transport
BEIS,UKRI - AHRC,12/08/2022,T&S UK - Public Transport,SMT,Corporate Travel Management (North) Ltd,99782647,-45.90,T&S UK - Public Transport
BEIS,UKRI - AHRC,12/08/2022,T&S UK - Public Transport,Secretariat,Corporate Travel Management (North) Ltd,99782647,0.25,T&S UK - Public Transport
BEIS,UKRI - AHRC,12/08/2022,T&S UK - Public Transport,Secretariat,Corporate Travel Management (North) Ltd,99782647,124.80,T&S UK - Public Transport
BEIS,UKRI - AHRC,12/08/2022,Unspecified,Corporate Services,HM Revenue & Customs,99783447,1692.00,Apprenticeship Levy
BEIS,UKRI - AHRC,15/08/2022,Voluntary Deductions,Balance Sheet,Swindon Office Sports and Social Club,99782184,30.00,Voluntary Deductions
BEIS,UKRI - AHRC,15/08/2022,Union Deductions,Balance Sheet,PCS Union,99782185,58.67,Union Deductions
BEIS,UKRI - AHRC,15/08/2022,Unspecified,Balance Sheet,Unspecified,99782186,9296.65,Ees Pension Deductions - JSS
BEIS,UKRI - AHRC,15/08/2022,Unspecified,Balance Sheet,Unspecified,99782187,40589.37,Ers Pension Deductions - JSS
BEIS,UKRI - AHRC,15/08/2022,Unspecified,Balance Sheet,Scottish Widows,99782188,193.37,Partnership Pension Deductions
BEIS,UKRI - AHRC,15/08/2022,Unspecified,Balance Sheet,Cabinet Office RM Shared Services,99782189,11670.42,Ees Pension Deductions - MyCSP
BEIS,UKRI - AHRC,15/08/2022,Unspecified,Balance Sheet,Cabinet Office RM Shared Services,99782190,55770.79,Ers Pension Deductions - MyCSP
BEIS,UKRI - AHRC,15/08/2022,Unspecified,Balance Sheet,Unspecified,99782191,156.72,Ees Pension Deductions - MRC
BEIS,UKRI - AHRC,15/08/2022,Unspecified,Balance Sheet,Unspecified,99782192,385.76,Ers Pension Deductions - MRC
BEIS,UKRI - AHRC,15/08/2022,Fees (Including College Members),Operations,Unspecified,99783460,85.00,Fees (Including College Members)
BEIS,UKRI - AHRC,15/08/2022,Fees (Including College Members),Operations,Unspecified,99783461,85.00,Fees (Including College Members)
BEIS,UKRI - AHRC,16/08/2022,T&S UK - Other Charges,AHRC - Creative Industries,Unspecified,99784658,59.99,T&S UK - Other Charges
BEIS,UKRI - AHRC,17/08/2022,Staff Training,SMT,Mediator Network Ltd,99784970,400.00,Staff Training
BEIS,UKRI - AHRC,17/08/2022,Conferences & Seminars,SMT,Calder Conference Ltd,99785032,1394.00,Conferences & Seminars
BEIS,UKRI - AHRC,17/08/2022,Other Programme Costs,Public Engagement,Watershed Arts Trust Ltd,99785947,-1100.00,Other Programme Costs
BEIS,UKRI - AHRC,17/08/2022,Other Programme Costs,Public Engagement,Watershed Arts Trust Ltd,99785962,-63.00,Other Programme Costs
BEIS,UKRI - AHRC,18/08/2022,Unspecified,Infrastruture Roadmap,ICF Consulting Services Ltd,99780590,30000.00,Legal & Professional Services
BEIS,UKRI - AHRC,18/08/2022,Fees (Including College Members),Operations,Unspecified,99785133,170.00,Fees (Including College Members)
BEIS,UKRI - AHRC,19/08/2022,Research Grant Expenditure,Artificial Intelligence,The Nuffield Foundation,99785299,25000.00,Research Grant Expenditure
BEIS,UKRI - AHRC,22/08/2022,T&S UK - Other Charges,Operations,Unspecified,99774997,40.99,T&S UK - Other Charges
BEIS,UKRI - AHRC,22/08/2022,Other Programme Costs,Skills Strategy,Daphne Jackson Trust,99786718,36739.26,Other Programme Costs
BEIS,UKRI - AHRC,23/08/2022,Fees (Including College Members),Operations,Unspecified,99786488,85.00,Fees (Including College Members)
BEIS,UKRI - AHRC,23/08/2022,Fees (Including College Members),Operations,Unspecified,99786489,170.00,Fees (Including College Members)
BEIS,UKRI - AHRC,23/08/2022,Corporate Events,International Partnership and Engagement,Calder Conference Ltd,99786820,241.92,Corporate Events
BEIS,UKRI - AHRC,23/08/2022,Staff Training,International Development and Area Studies,Partnership Media Group T/A GovNet Communications,99786996,474.00,Staff Training
BEIS,UKRI - AHRC,23/08/2022,T&S UK - Public Transport,SMT,Unspecified,99787133,7.70,T&S UK - Public Transport
BEIS,UKRI - AHRC,23/08/2022,T&S UK - Subsistence,SMT,Unspecified,99787133,16.40,T&S UK - Subsistence
BEIS,UKRI - AHRC,24/08/2022,Fees (Including College Members),Operations,Unspecified,99788357,170.00,Fees (Including College Members)
BEIS,UKRI - AHRC,26/08/2022,Fees (Including College Members),International Development and Area Studies,Unspecified,99789865,85.00,Fees (Including College Members)
BEIS,UKRI - AHRC,30/08/2022,Conferences & Seminars,Infrastructure Fund - CoSTAR,Audience Labs Ltd,99789945,10000.00,Conferences & Seminars
BEIS,UKRI - AHRC,31/08/2022,T&S UK - Public Transport,AHRC - Creative Industries,Unspecified,99790611,9.00,T&S UK - Public Transport
BEIS,UKRI - AHRC,31/08/2022,T&S UK - Subsistence,AHRC - Creative Industries,Unspecified,99790611,23.75,T&S UK - Subsistence
BEIS,UKRI - AHRC,31/08/2022,T&S UK - Subsistence,AHRC - Creative Industries,Unspecified,99790611,67.60,T&S UK - Subsistence
BEIS,UKRI - AHRC,31/08/2022,T&S UK - Subsistence,AHRC - Creative Industries,Unspecified,99790611,27.10,T&S UK - Subsistence
BEIS,UKRI - AHRC,31/08/2022,T&S UK - Subsistence,AHRC - Creative Industries,Unspecified,99790611,32.48,T&S UK - Subsistence
BEIS,UKRI - AHRC,31/08/2022,T&S UK - Subsistence,AHRC - Creative Industries,Unspecified,99790611,20.00,T&S UK - Subsistence
BEIS,UKRI - AHRC,31/08/2022,T&S UK - Mileage,AHRC - Creative Industries,Unspecified,99790612,62.70,T&S UK - Mileage
BEIS,UKRI - AHRC,31/08/2022,T&S UK - Public Transport,AHRC - Creative Industries,Unspecified,99790612,9.00,T&S UK - Public Transport
BEIS,UKRI - AHRC,31/08/2022,T&S UK - Subsistence,AHRC - Creative Industries,Unspecified,99790612,7.05,T&S UK - Subsistence
BEIS,UKRI - AHRC,31/08/2022,T&S UK - Subsistence,AHRC - Creative Industries,Unspecified,99790612,74.42,T&S UK - Subsistence
BEIS,UKRI - AHRC,31/08/2022,T&S UK - Subsistence,AHRC - Creative Industries,Unspecified,99790612,22.44,T&S UK - Subsistence
BEIS,UKRI - AHRC,31/08/2022,T&S UK - Subsistence,AHRC - Creative Industries,Unspecified,99790612,25.00,T&S UK - Subsistence
BEIS,UKRI - BBSRC,01/08/2022,Research Grant Expenditure,SPF W1 EMBL EBI,EMBL (European Molecular Biology Laboratory),99776959,25776.00,Research Grant Expenditure
BEIS,UKRI - BBSRC,01/08/2022,Research Grant Expenditure,SPF W1 EMBL EBI,EMBL (European Molecular Biology Laboratory),99777105,600.00,Research Grant Expenditure
BEIS,UKRI - BBSRC,01/08/2022,Research Grant Expenditure,NPIF EMBL EBI,EMBL (European Molecular Biology Laboratory),99777106,7950.00,Research Grant Expenditure
BEIS,UKRI - BBSRC,01/08/2022,Research Grant Expenditure,NPIF EMBL EBI,EMBL (European Molecular Biology Laboratory),99777107,30941.67,Research Grant Expenditure
BEIS,UKRI - BBSRC,01/08/2022,Research Institutes - Capital Grants: Minor Works,Pirbright,The Pirbright Institute,99777160,1374.75,Research Institutes - Capital Grants: Minor Works
BEIS,UKRI - BBSRC,02/08/2022,Other Programme Costs,Innovation and Skills Group CDSU,NNFCC Ltd,99777440,7365.71,Other Programme Costs
BEIS,UKRI - BBSRC,02/08/2022,T&S UK - Other Charges,Innovation and Skills Group CDSU,Unspecified,99777849,298.02,T&S UK - Other Charges
BEIS,UKRI - BBSRC,03/08/2022,Corporate Events,CE - Chief Executive,Calder Conference Ltd,99773595,10722.00,Corporate Events
BEIS,UKRI - BBSRC,03/08/2022,T&S UK - Other Charges,Innovation and Skills Group CDSU,Unspecified,99778117,47.97,T&S UK - Other Charges
BEIS,UKRI - BBSRC,03/08/2022,T&S UK - Other Charges,Science Group,Unspecified,99778118,40.99,T&S UK - Other Charges
BEIS,UKRI - BBSRC,03/08/2022,T&S UK - Other Charges,Science Group,Unspecified,99778118,44.00,T&S UK - Other Charges
BEIS,UKRI - BBSRC,05/08/2022,T&S UK - Subsistence,CE - CPS,Unspecified,99776214,10.00,T&S UK - Subsistence
BEIS,UKRI - BBSRC,05/08/2022,Fees (Including College Members),Science Group - Delivery Function,Unspecified,99779389,170.00,Fees (Including College Members)
BEIS,UKRI - BBSRC,05/08/2022,Fees (Including College Members),Science Group - Delivery Function,Unspecified,99779390,170.00,Fees (Including College Members)
BEIS,UKRI - BBSRC,05/08/2022,T&S UK - Other Charges,Science Group,Unspecified,99779644,16.00,T&S UK - Other Charges
BEIS,UKRI - BBSRC,05/08/2022,T&S UK - Subsistence,Science Group,Unspecified,99779644,4.00,T&S UK - Subsistence
BEIS,UKRI - BBSRC,05/08/2022,T&S UK - Subsistence,Science Group,Unspecified,99779644,3.75,T&S UK - Subsistence
BEIS,UKRI - BBSRC,05/08/2022,Research Grant Expenditure,Impact & Knowledge Exchange,Royal Microscopical Society,99779762,40667.30,Research Grant Expenditure
BEIS,UKRI - BBSRC,05/08/2022,Unspecified,Science Group,Warwick Economics and Development Ltd,99779763,58530.00,Legal & Professional Services
BEIS,UKRI - BBSRC,05/08/2022,Research Grant Expenditure,Impact & Knowledge Exchange,Royal Microscopical Society,99779764,4370.37,Research Grant Expenditure
BEIS,UKRI - BBSRC,08/08/2022,Conferences & Seminars,Innovation and Skills Group,Calder Conference Ltd,99779074,1460.54,Conferences & Seminars
BEIS,UKRI - BBSRC,08/08/2022,Unspecified,Science Group – Admin Function,Unspecified,99779709,340.00,Council & Committee Honoraria
BEIS,UKRI - BBSRC,08/08/2022,Research Grant Expenditure,SPF W1 EMBL EBI,EMBL (European Molecular Biology Laboratory),99779855,167834.65,Research Grant Expenditure
BEIS,UKRI - BBSRC,08/08/2022,T&S UK - Other Charges,Science Group,Unspecified,99780253,334.01,T&S UK - Other Charges
BEIS,UKRI - BBSRC,08/08/2022,Non-staff travel and subsistance,Science Group – Admin Function,Unspecified,99780710,135.50,Non-staff travel and subsistance
BEIS,UKRI - BBSRC,08/08/2022,Unspecified,Science Group - Delivery Function,Unspecified,99780711,170.00,Council & Committee Honoraria
BEIS,UKRI - BBSRC,08/08/2022,Unspecified,Science Group - Delivery Function,Unspecified,99780712,170.00,Council & Committee Honoraria
BEIS,UKRI - BBSRC,11/08/2022,T&S Overseas - Flights,OpEx FIC2 EEID2,"Royal Holloway, University of London",99780814,1183.16,T&S Overseas - Flights
BEIS,UKRI - BBSRC,11/08/2022,T&S UK - Public Transport,Science Group,Unspecified,99782541,36.95,T&S UK - Public Transport
BEIS,UKRI - BBSRC,11/08/2022,T&S UK - Other Charges,Innovation and Skills Group,Unspecified,99782542,10.77,T&S UK - Other Charges
BEIS,UKRI - BBSRC,11/08/2022,T&S UK - Accommodation,Science Group – Admin Function,Unspecified,99782543,95.00,T&S UK - Accommodation
BEIS,UKRI - BBSRC,11/08/2022,T&S UK - Mileage,Science Group – Admin Function,Unspecified,99782543,60.85,T&S UK - Mileage
BEIS,UKRI - BBSRC,11/08/2022,T&S UK - Parking Tolls Congestion Charges,Science Group – Admin Function,Unspecified,99782543,34.00,T&S UK - Parking Tolls Congestion Charges
BEIS,UKRI - BBSRC,11/08/2022,T&S UK - Public Transport,Science Group – Admin Function,Unspecified,99782543,18.92,T&S UK - Public Transport
BEIS,UKRI - BBSRC,11/08/2022,T&S UK - Subsistence,Science Group – Admin Function,Unspecified,99782543,5.25,T&S UK - Subsistence
BEIS,UKRI - BBSRC,11/08/2022,T&S UK - Subsistence,Science Group – Admin Function,Unspecified,99782543,4.66,T&S UK - Subsistence
BEIS,UKRI - BBSRC,11/08/2022,T&S UK - Subsistence,Science Group – Admin Function,Unspecified,99782543,18.15,T&S UK - Subsistence
BEIS,UKRI - BBSRC,11/08/2022,T&S UK - Subsistence,Science Group – Admin Function,Unspecified,99782543,30.00,T&S UK - Subsistence
BEIS,UKRI - BBSRC,11/08/2022,T&S UK - Subsistence,Science Group – Admin Function,Unspecified,99782543,19.56,T&S UK - Subsistence
BEIS,UKRI - BBSRC,11/08/2022,Translation Services,Science Group - Delivery Function,Unspecified,99782968,50.60,Translation Services
BEIS,UKRI - BBSRC,11/08/2022,Non-staff travel and subsistance,Science Group - Delivery Function,Unspecified,99782969,80.20,Non-staff travel and subsistance
BEIS,UKRI - BBSRC,11/08/2022,Non-staff travel and subsistance,Science Group - Delivery Function,Unspecified,99782970,43.00,Non-staff travel and subsistance
BEIS,UKRI - BBSRC,11/08/2022,Unspecified,Science Group – Admin Function,Unspecified,99782971,340.00,Council & Committee Honoraria
BEIS,UKRI - BBSRC,11/08/2022,Unspecified,Science Group – Admin Function,Unspecified,99782972,340.00,Council & Committee Honoraria
BEIS,UKRI - BBSRC,12/08/2022,Unspecified,Balance Sheet,HM Revenue & Customs,99782094,79824.32,PAYE Payable Salaries
BEIS,UKRI - BBSRC,12/08/2022,Unspecified,Balance Sheet,HM Revenue & Customs,99782095,6482.00,Student Loans
BEIS,UKRI - BBSRC,12/08/2022,Unspecified,Balance Sheet,HM Revenue & Customs,99782096,109453.83,NI Payable Salaries
BEIS,UKRI - BBSRC,12/08/2022,Unspecified,FG - Accounts & Business Planning,HM Revenue & Customs,99782097,2784.00,Apprenticeship Levy
BEIS,UKRI - BBSRC,12/08/2022,Unspecified,Balance Sheet,HM Revenue & Customs,99782738,2220.30,PAYE Payable Salaries
BEIS,UKRI - BBSRC,12/08/2022,Unspecified,FG - Accounts & Business Planning,HM Revenue & Customs,99782739,35.00,Apprenticeship Levy
BEIS,UKRI - BBSRC,12/08/2022,Non-staff travel and subsistance,Science Group,Corporate Travel Management (North) Ltd,99783711,0.80,Non-staff travel and subsistance
BEIS,UKRI - BBSRC,12/08/2022,Non-staff travel and subsistance,Science Group,Corporate Travel Management (North) Ltd,99783711,72.00,Non-staff travel and subsistance
BEIS,UKRI - BBSRC,12/08/2022,Non-staff travel and subsistance,Science Group,Corporate Travel Management (North) Ltd,99783711,0.16,Non-staff travel and subsistance
BEIS,UKRI - BBSRC,12/08/2022,T&S UK - Accommodation,CE - Chief Executive,Corporate Travel Management (North) Ltd,99783711,0.80,T&S UK - Accommodation
BEIS,UKRI - BBSRC,12/08/2022,T&S UK - Accommodation,CE - Chief Executive,Corporate Travel Management (North) Ltd,99783711,0.16,T&S UK - Accommodation
BEIS,UKRI - BBSRC,12/08/2022,T&S UK - Accommodation,FG - Estates,Corporate Travel Management (North) Ltd,99783711,0.80,T&S UK - Accommodation
BEIS,UKRI - BBSRC,12/08/2022,T&S UK - Accommodation,FG - Estates,Corporate Travel Management (North) Ltd,99783711,111.60,T&S UK - Accommodation
BEIS,UKRI - BBSRC,12/08/2022,T&S UK - Accommodation,FG - Estates,Corporate Travel Management (North) Ltd,99783711,0.80,T&S UK - Accommodation
BEIS,UKRI - BBSRC,12/08/2022,T&S UK - Accommodation,FG - Estates,Corporate Travel Management (North) Ltd,99783711,110.00,T&S UK - Accommodation
BEIS,UKRI - BBSRC,12/08/2022,T&S UK - Accommodation,FG - Estates,Corporate Travel Management (North) Ltd,99783711,0.32,T&S UK - Accommodation
BEIS,UKRI - BBSRC,12/08/2022,T&S UK - Accommodation,Innovation and Skills Group,Corporate Travel Management (North) Ltd,99783711,0.80,T&S UK - Accommodation
BEIS,UKRI - BBSRC,12/08/2022,T&S UK - Accommodation,Innovation and Skills Group,Corporate Travel Management (North) Ltd,99783711,0.16,T&S UK - Accommodation
BEIS,UKRI - BBSRC,12/08/2022,T&S UK - Accommodation,Science Group,Corporate Travel Management (North) Ltd,99783711,0.80,T&S UK - Accommodation
BEIS,UKRI - BBSRC,12/08/2022,T&S UK - Accommodation,Science Group,Corporate Travel Management (North) Ltd,99783711,97.58,T&S UK - Accommodation
BEIS,UKRI - BBSRC,12/08/2022,T&S UK - Accommodation,Science Group,Corporate Travel Management (North) Ltd,99783711,0.16,T&S UK - Accommodation
BEIS,UKRI - BBSRC,12/08/2022,T&S UK - Accommodation,Science Group – Admin Function,Corporate Travel Management (North) Ltd,99783711,0.80,T&S UK - Accommodation
BEIS,UKRI - BBSRC,12/08/2022,T&S UK - Accommodation,Science Group – Admin Function,Corporate Travel Management (North) Ltd,99783711,0.16,T&S UK - Accommodation
BEIS,UKRI - BBSRC,12/08/2022,T&S UK - Flights,CE - CPS,Corporate Travel Management (North) Ltd,99783711,2.50,T&S UK - Flights
BEIS,UKRI - BBSRC,12/08/2022,T&S UK - Flights,CE - CPS,Corporate Travel Management (North) Ltd,99783711,111.46,T&S UK - Flights
BEIS,UKRI - BBSRC,12/08/2022,T&S UK - Flights,CE - Chief Executive,Corporate Travel Management (North) Ltd,99783711,2.50,T&S UK - Flights
BEIS,UKRI - BBSRC,12/08/2022,T&S UK - Flights,CE - Chief Executive,Corporate Travel Management (North) Ltd,99783711,278.77,T&S UK - Flights
BEIS,UKRI - BBSRC,12/08/2022,T&S UK - Flights,CE - Chief Executive,Corporate Travel Management (North) Ltd,99783711,2.50,T&S UK - Flights
BEIS,UKRI - BBSRC,12/08/2022,T&S UK - Flights,CE - Chief Executive,Corporate Travel Management (North) Ltd,99783711,104.96,T&S UK - Flights
BEIS,UKRI - BBSRC,12/08/2022,T&S UK - Flights,Science Group,Corporate Travel Management (North) Ltd,99783711,2.50,T&S UK - Flights
BEIS,UKRI - BBSRC,12/08/2022,T&S UK - Flights,Science Group,Corporate Travel Management (North) Ltd,99783711,155.46,T&S UK - Flights
BEIS,UKRI - BBSRC,12/08/2022,T&S UK - Flights,Science Group – Admin Function,Corporate Travel Management (North) Ltd,99783711,2.50,T&S UK - Flights
BEIS,UKRI - BBSRC,12/08/2022,T&S UK - Flights,Science Group – Admin Function,Corporate Travel Management (North) Ltd,99783711,160.94,T&S UK - Flights
BEIS,UKRI - BBSRC,12/08/2022,T&S UK - Parking Tolls Congestion Charges,CE - CPS,Corporate Travel Management (North) Ltd,99783711,4.50,T&S UK - Parking Tolls Congestion Charges
BEIS,UKRI - BBSRC,12/08/2022,T&S UK - Parking Tolls Congestion Charges,CE - CPS,Corporate Travel Management (North) Ltd,99783711,68.99,T&S UK - Parking Tolls Congestion Charges
BEIS,UKRI - BBSRC,12/08/2022,T&S UK - Parking Tolls Congestion Charges,CE - CPS,Corporate Travel Management (North) Ltd,99783711,0.90,T&S UK - Parking Tolls Congestion Charges
BEIS,UKRI - BBSRC,12/08/2022,T&S UK - Parking Tolls Congestion Charges,Science Group,Corporate Travel Management (North) Ltd,99783711,4.50,T&S UK - Parking Tolls Congestion Charges
BEIS,UKRI - BBSRC,12/08/2022,T&S UK - Parking Tolls Congestion Charges,Science Group,Corporate Travel Management (North) Ltd,99783711,91.99,T&S UK - Parking Tolls Congestion Charges
BEIS,UKRI - BBSRC,12/08/2022,T&S UK - Parking Tolls Congestion Charges,Science Group,Corporate Travel Management (North) Ltd,99783711,0.90,T&S UK - Parking Tolls Congestion Charges
BEIS,UKRI - BBSRC,12/08/2022,T&S UK - Public Transport,CE - CPS,Corporate Travel Management (North) Ltd,99783711,0.25,T&S UK - Public Transport
BEIS,UKRI - BBSRC,12/08/2022,T&S UK - Public Transport,CE - CPS,Corporate Travel Management (North) Ltd,99783711,210.70,T&S UK - Public Transport
BEIS,UKRI - BBSRC,12/08/2022,T&S UK - Public Transport,CE - CPS,Corporate Travel Management (North) Ltd,99783711,0.25,T&S UK - Public Transport
BEIS,UKRI - BBSRC,12/08/2022,T&S UK - Public Transport,CE - CPS,Corporate Travel Management (North) Ltd,99783711,118.70,T&S UK - Public Transport
BEIS,UKRI - BBSRC,12/08/2022,T&S UK - Public Transport,CE - Chief Executive,Corporate Travel Management (North) Ltd,99783711,0.25,T&S UK - Public Transport
BEIS,UKRI - BBSRC,12/08/2022,T&S UK - Public Transport,CE - Chief Executive,Corporate Travel Management (North) Ltd,99783711,195.00,T&S UK - Public Transport
BEIS,UKRI - BBSRC,12/08/2022,T&S UK - Public Transport,CE - Chief Executive,Corporate Travel Management (North) Ltd,99783711,0.25,T&S UK - Public Transport
BEIS,UKRI - BBSRC,12/08/2022,T&S UK - Public Transport,CE - Chief Executive,Corporate Travel Management (North) Ltd,99783711,132.20,T&S UK - Public Transport
BEIS,UKRI - BBSRC,12/08/2022,T&S UK - Public Transport,CE - Chief Executive,Corporate Travel Management (North) Ltd,99783711,0.25,T&S UK - Public Transport
BEIS,UKRI - BBSRC,12/08/2022,T&S UK - Public Transport,CE - Chief Executive,Corporate Travel Management (North) Ltd,99783711,145.80,T&S UK - Public Transport
BEIS,UKRI - BBSRC,12/08/2022,T&S UK - Public Transport,CE - Chief Executive,Corporate Travel Management (North) Ltd,99783711,5.00,T&S UK - Public Transport
BEIS,UKRI - BBSRC,12/08/2022,T&S UK - Public Transport,CE - Chief Executive,Corporate Travel Management (North) Ltd,99783711,-20.20,T&S UK - Public Transport
BEIS,UKRI - BBSRC,12/08/2022,T&S UK - Public Transport,CE - Chief Executive,Corporate Travel Management (North) Ltd,99783711,0.25,T&S UK - Public Transport
BEIS,UKRI - BBSRC,12/08/2022,T&S UK - Public Transport,CE - Chief Executive,Corporate Travel Management (North) Ltd,99783711,145.80,T&S UK - Public Transport
BEIS,UKRI - BBSRC,12/08/2022,T&S UK - Public Transport,CE - IRU,Corporate Travel Management (North) Ltd,99783711,-72.30,T&S UK - Public Transport
BEIS,UKRI - BBSRC,12/08/2022,T&S UK - Public Transport,CE - IRU,Corporate Travel Management (North) Ltd,99783711,0.25,T&S UK - Public Transport
BEIS,UKRI - BBSRC,12/08/2022,T&S UK - Public Transport,CE - IRU,Corporate Travel Management (North) Ltd,99783711,52.10,T&S UK - Public Transport
BEIS,UKRI - BBSRC,12/08/2022,T&S UK - Public Transport,CE - IRU,Corporate Travel Management (North) Ltd,99783711,10.00,T&S UK - Public Transport
BEIS,UKRI - BBSRC,12/08/2022,T&S UK - Public Transport,CE - IRU,Corporate Travel Management (North) Ltd,99783711,-114.80,T&S UK - Public Transport
BEIS,UKRI - BBSRC,12/08/2022,T&S UK - Public Transport,Innovation and Skills Group,Corporate Travel Management (North) Ltd,99783711,0.25,T&S UK - Public Transport
BEIS,UKRI - BBSRC,12/08/2022,T&S UK - Public Transport,Innovation and Skills Group,Corporate Travel Management (North) Ltd,99783711,133.95,T&S UK - Public Transport
BEIS,UKRI - BBSRC,12/08/2022,T&S UK - Public Transport,Innovation and Skills Group,Corporate Travel Management (North) Ltd,99783711,0.25,T&S UK - Public Transport
BEIS,UKRI - BBSRC,12/08/2022,T&S UK - Public Transport,Innovation and Skills Group,Corporate Travel Management (North) Ltd,99783711,138.90,T&S UK - Public Transport
BEIS,UKRI - BBSRC,12/08/2022,T&S UK - Public Transport,Innovation and Skills Group,Corporate Travel Management (North) Ltd,99783711,1.00,T&S UK - Public Transport
BEIS,UKRI - BBSRC,12/08/2022,T&S UK - Public Transport,Innovation and Skills Group,Corporate Travel Management (North) Ltd,99783711,70.80,T&S UK - Public Transport
BEIS,UKRI - BBSRC,12/08/2022,T&S UK - Public Transport,Innovation and Skills Group,Corporate Travel Management (North) Ltd,99783711,141.00,T&S UK - Public Transport
BEIS,UKRI - BBSRC,12/08/2022,T&S UK - Public Transport,Innovation and Skills Group,Corporate Travel Management (North) Ltd,99783711,0.25,T&S UK - Public Transport
BEIS,UKRI - BBSRC,12/08/2022,T&S UK - Public Transport,Innovation and Skills Group,Corporate Travel Management (North) Ltd,99783711,47.25,T&S UK - Public Transport
BEIS,UKRI - BBSRC,12/08/2022,T&S UK - Public Transport,Innovation and Skills Group,Corporate Travel Management (North) Ltd,99783711,0.25,T&S UK - Public Transport
BEIS,UKRI - BBSRC,12/08/2022,T&S UK - Public Transport,Innovation and Skills Group,Corporate Travel Management (North) Ltd,99783711,137.20,T&S UK - Public Transport
BEIS,UKRI - BBSRC,12/08/2022,T&S UK - Public Transport,Innovation and Skills Group,Corporate Travel Management (North) Ltd,99783711,0.25,T&S UK - Public Transport
BEIS,UKRI - BBSRC,12/08/2022,T&S UK - Public Transport,Innovation and Skills Group,Corporate Travel Management (North) Ltd,99783711,167.60,T&S UK - Public Transport
BEIS,UKRI - BBSRC,12/08/2022,T&S UK - Public Transport,Innovation and Skills Group,Corporate Travel Management (North) Ltd,99783711,0.25,T&S UK - Public Transport
BEIS,UKRI - BBSRC,12/08/2022,T&S UK - Public Transport,Innovation and Skills Group,Corporate Travel Management (North) Ltd,99783711,173.60,T&S UK - Public Transport
BEIS,UKRI - BBSRC,12/08/2022,T&S UK - Public Transport,Innovation and Skills Group,Corporate Travel Management (North) Ltd,99783711,5.00,T&S UK - Public Transport
BEIS,UKRI - BBSRC,12/08/2022,T&S UK - Public Transport,Innovation and Skills Group,Corporate Travel Management (North) Ltd,99783711,-173.05,T&S UK - Public Transport
BEIS,UKRI - BBSRC,12/08/2022,T&S UK - Public Transport,Innovation and Skills Group,Corporate Travel Management (North) Ltd,99783711,0.25,T&S UK - Public Transport
BEIS,UKRI - BBSRC,12/08/2022,T&S UK - Public Transport,Innovation and Skills Group,Corporate Travel Management (North) Ltd,99783711,116.50,T&S UK - Public Transport
BEIS,UKRI - BBSRC,12/08/2022,T&S UK - Public Transport,Innovation and Skills Group,Corporate Travel Management (North) Ltd,99783711,0.25,T&S UK - Public Transport
BEIS,UKRI - BBSRC,12/08/2022,T&S UK - Public Transport,Innovation and Skills Group,Corporate Travel Management (North) Ltd,99783711,180.80,T&S UK - Public Transport
BEIS,UKRI - BBSRC,12/08/2022,T&S UK - Public Transport,Innovation and Skills Group,Corporate Travel Management (North) Ltd,99783711,0.25,T&S UK - Public Transport
BEIS,UKRI - BBSRC,12/08/2022,T&S UK - Public Transport,Innovation and Skills Group,Corporate Travel Management (North) Ltd,99783711,167.60,T&S UK - Public Transport
BEIS,UKRI - BBSRC,12/08/2022,T&S UK - Public Transport,Science Group,Corporate Travel Management (North) Ltd,99783711,0.25,T&S UK - Public Transport
BEIS,UKRI - BBSRC,12/08/2022,T&S UK - Public Transport,Science Group,Corporate Travel Management (North) Ltd,99783711,301.10,T&S UK - Public Transport
BEIS,UKRI - BBSRC,12/08/2022,T&S UK - Public Transport,Science Group,Corporate Travel Management (North) Ltd,99783711,0.25,T&S UK - Public Transport
BEIS,UKRI - BBSRC,12/08/2022,T&S UK - Public Transport,Science Group,Corporate Travel Management (North) Ltd,99783711,65.30,T&S UK - Public Transport
BEIS,UKRI - BBSRC,12/08/2022,T&S UK - Public Transport,Science Group,Corporate Travel Management (North) Ltd,99783711,0.25,T&S UK - Public Transport
BEIS,UKRI - BBSRC,12/08/2022,T&S UK - Public Transport,Science Group,Corporate Travel Management (North) Ltd,99783711,136.50,T&S UK - Public Transport
BEIS,UKRI - BBSRC,12/08/2022,T&S UK - Public Transport,Science Group,Corporate Travel Management (North) Ltd,99783711,0.25,T&S UK - Public Transport
BEIS,UKRI - BBSRC,12/08/2022,T&S UK - Public Transport,Science Group,Corporate Travel Management (North) Ltd,99783711,167.60,T&S UK - Public Transport
BEIS,UKRI - BBSRC,12/08/2022,T&S UK - Public Transport,Science Group,Corporate Travel Management (North) Ltd,99783711,5.00,T&S UK - Public Transport
BEIS,UKRI - BBSRC,12/08/2022,T&S UK - Public Transport,Science Group,Corporate Travel Management (North) Ltd,99783711,-239.80,T&S UK - Public Transport
BEIS,UKRI - BBSRC,12/08/2022,T&S UK - Public Transport,Science Group,Corporate Travel Management (North) Ltd,99783711,0.25,T&S UK - Public Transport
BEIS,UKRI - BBSRC,12/08/2022,T&S UK - Public Transport,Science Group,Corporate Travel Management (North) Ltd,99783711,40.50,T&S UK - Public Transport
BEIS,UKRI - BBSRC,12/08/2022,T&S UK - Public Transport,Science Group,Corporate Travel Management (North) Ltd,99783711,0.25,T&S UK - Public Transport
BEIS,UKRI - BBSRC,12/08/2022,T&S UK - Public Transport,Science Group,Corporate Travel Management (North) Ltd,99783711,181.70,T&S UK - Public Transport
BEIS,UKRI - BBSRC,12/08/2022,T&S UK - Public Transport,Science Group,Corporate Travel Management (North) Ltd,99783711,0.25,T&S UK - Public Transport
BEIS,UKRI - BBSRC,12/08/2022,T&S UK - Public Transport,Science Group,Corporate Travel Management (North) Ltd,99783711,40.70,T&S UK - Public Transport
BEIS,UKRI - BBSRC,12/08/2022,T&S UK - Public Transport,Science Group,Corporate Travel Management (North) Ltd,99783711,0.25,T&S UK - Public Transport
BEIS,UKRI - BBSRC,12/08/2022,T&S UK - Public Transport,Science Group,Corporate Travel Management (North) Ltd,99783711,210.70,T&S UK - Public Transport
BEIS,UKRI - BBSRC,12/08/2022,T&S UK - Public Transport,Science Group,Corporate Travel Management (North) Ltd,99783711,0.25,T&S UK - Public Transport
BEIS,UKRI - BBSRC,12/08/2022,T&S UK - Public Transport,Science Group,Corporate Travel Management (North) Ltd,99783711,132.50,T&S UK - Public Transport
BEIS,UKRI - BBSRC,12/08/2022,T&S UK - Public Transport,Science Group,Corporate Travel Management (North) Ltd,99783711,0.25,T&S UK - Public Transport
BEIS,UKRI - BBSRC,12/08/2022,T&S UK - Public Transport,Science Group,Corporate Travel Management (North) Ltd,99783711,157.20,T&S UK - Public Transport
BEIS,UKRI - BBSRC,12/08/2022,T&S UK - Public Transport,Science Group,Corporate Travel Management (North) Ltd,99783711,0.25,T&S UK - Public Transport
BEIS,UKRI - BBSRC,12/08/2022,T&S UK - Public Transport,Science Group,Corporate Travel Management (North) Ltd,99783711,301.10,T&S UK - Public Transport
BEIS,UKRI - BBSRC,12/08/2022,T&S UK - Public Transport,Science Group,Corporate Travel Management (North) Ltd,99783711,5.00,T&S UK - Public Transport
BEIS,UKRI - BBSRC,12/08/2022,T&S UK - Public Transport,Science Group,Corporate Travel Management (North) Ltd,99783711,-72.30,T&S UK - Public Transport
BEIS,UKRI - BBSRC,12/08/2022,T&S UK - Public Transport,Science Group – Admin Function,Corporate Travel Management (North) Ltd,99783711,0.25,T&S UK - Public Transport
BEIS,UKRI - BBSRC,12/08/2022,T&S UK - Public Transport,Science Group – Admin Function,Corporate Travel Management (North) Ltd,99783711,64.40,T&S UK - Public Transport
BEIS,UKRI - BBSRC,12/08/2022,T&S UK - Public Transport,Science Group – Admin Function,Corporate Travel Management (North) Ltd,99783711,0.25,T&S UK - Public Transport
BEIS,UKRI - BBSRC,12/08/2022,T&S UK - Public Transport,Science Group – Admin Function,Corporate Travel Management (North) Ltd,99783711,193.80,T&S UK - Public Transport
BEIS,UKRI - BBSRC,12/08/2022,T&S UK - Public Transport,Science Group – Admin Function,Corporate Travel Management (North) Ltd,99783711,10.00,T&S UK - Public Transport
BEIS,UKRI - BBSRC,12/08/2022,T&S UK - Public Transport,Science Group – Admin Function,Corporate Travel Management (North) Ltd,99783711,-191.20,T&S UK - Public Transport
BEIS,UKRI - BBSRC,12/08/2022,T&S UK - Vehicle Hire,Innovation and Skills Group,Corporate Travel Management (North) Ltd,99783711,2.50,T&S UK - Vehicle Hire
BEIS,UKRI - BBSRC,12/08/2022,T&S UK - Vehicle Hire,Innovation and Skills Group,Corporate Travel Management (North) Ltd,99783711,22.30,T&S UK - Vehicle Hire
BEIS,UKRI - BBSRC,12/08/2022,T&S UK - Vehicle Hire,Innovation and Skills Group,Corporate Travel Management (North) Ltd,99783711,2.50,T&S UK - Vehicle Hire
BEIS,UKRI - BBSRC,12/08/2022,T&S UK - Vehicle Hire,Innovation and Skills Group,Corporate Travel Management (North) Ltd,99783711,24.79,T&S UK - Vehicle Hire
BEIS,UKRI - BBSRC,12/08/2022,T&S UK - Vehicle Hire,Innovation and Skills Group,Corporate Travel Management (North) Ltd,99783711,1.00,T&S UK - Vehicle Hire
BEIS,UKRI - BBSRC,12/08/2022,T&S UK - Vehicle Hire,Science Group,Corporate Travel Management (North) Ltd,99783711,2.50,T&S UK - Vehicle Hire
BEIS,UKRI - BBSRC,12/08/2022,T&S UK - Vehicle Hire,Science Group,Corporate Travel Management (North) Ltd,99783711,13.09,T&S UK - Vehicle Hire
BEIS,UKRI - BBSRC,12/08/2022,T&S UK - Vehicle Hire,Science Group,Corporate Travel Management (North) Ltd,99783711,2.50,T&S UK - Vehicle Hire
BEIS,UKRI - BBSRC,12/08/2022,T&S UK - Vehicle Hire,Science Group,Corporate Travel Management (North) Ltd,99783711,19.91,T&S UK - Vehicle Hire
BEIS,UKRI - BBSRC,12/08/2022,T&S UK - Vehicle Hire,Science Group,Corporate Travel Management (North) Ltd,99783711,2.50,T&S UK - Vehicle Hire
BEIS,UKRI - BBSRC,12/08/2022,T&S UK - Vehicle Hire,Science Group,Corporate Travel Management (North) Ltd,99783711,22.30,T&S UK - Vehicle Hire
BEIS,UKRI - BBSRC,12/08/2022,T&S UK - Vehicle Hire,Science Group,Corporate Travel Management (North) Ltd,99783711,2.50,T&S UK - Vehicle Hire
BEIS,UKRI - BBSRC,12/08/2022,T&S UK - Vehicle Hire,Science Group,Corporate Travel Management (North) Ltd,99783711,14.52,T&S UK - Vehicle Hire
BEIS,UKRI - BBSRC,12/08/2022,T&S UK - Vehicle Hire,Science Group,Corporate Travel Management (North) Ltd,99783711,2.00,T&S UK - Vehicle Hire
BEIS,UKRI - BBSRC,15/08/2022,Voluntary Deductions,Balance Sheet,Swindon Office Sports and Social Club,99782099,50.00,Voluntary Deductions
BEIS,UKRI - BBSRC,15/08/2022,Unspecified,Balance Sheet,Unspecified,99782100,20552.59,Ees Pension Deductions - JSS
BEIS,UKRI - BBSRC,15/08/2022,Unspecified,Balance Sheet,Unspecified,99782101,84446.98,Ers Pension Deductions - JSS
BEIS,UKRI - BBSRC,15/08/2022,Unspecified,Balance Sheet,Scottish Widows Life Assurance,99782102,447.16,Partnership Pension Deductions
BEIS,UKRI - BBSRC,15/08/2022,Unspecified,Balance Sheet,Scottish Widows Life Assurance,99782103,10.00,Other Pension Deductions
BEIS,UKRI - BBSRC,15/08/2022,Unspecified,Balance Sheet,Cabinet Office RM Shared Services,99782104,13.30,Ers Pension Deductions - JSS
BEIS,UKRI - BBSRC,15/08/2022,Unspecified,Balance Sheet,Cabinet Office RM Shared Services,99782105,13291.75,Ees Pension Deductions - MyCSP
BEIS,UKRI - BBSRC,15/08/2022,Unspecified,Balance Sheet,Cabinet Office RM Shared Services,99782106,68361.16,Ers Pension Deductions - MyCSP
BEIS,UKRI - BBSRC,15/08/2022,Nursery Deductions,Balance Sheet,UKRI - Engineering & Physical Sciences Research Council,99782109,1415.00,Nursery Deductions
BEIS,UKRI - BBSRC,15/08/2022,Unspecified,Balance Sheet,Unspecified,99782110,388.26,Ees Pension Deductions - MRC
BEIS,UKRI - BBSRC,15/08/2022,Unspecified,Balance Sheet,Unspecified,99782111,955.72,Ers Pension Deductions - MRC
BEIS,UKRI - BBSRC,15/08/2022,Union Deductions,Balance Sheet,PCS Union,99782736,45.21,Union Deductions
BEIS,UKRI - BBSRC,15/08/2022,Fees (Including College Members),Science Group - Delivery Function,Unspecified,99783467,85.00,Fees (Including College Members)
BEIS,UKRI - BBSRC,15/08/2022,T&S UK - Mileage,Innovation and Skills Group,Unspecified,99784153,112.50,T&S UK - Mileage
BEIS,UKRI - BBSRC,15/08/2022,T&S UK - Parking Tolls Congestion Charges,Innovation and Skills Group,Unspecified,99784153,5.50,T&S UK - Parking Tolls Congestion Charges
BEIS,UKRI - BBSRC,15/08/2022,T&S UK - Subsistence,Innovation and Skills Group,Unspecified,99784153,4.60,T&S UK - Subsistence
BEIS,UKRI - BBSRC,16/08/2022,Unspecified,CE - Chief Executive,Pye Tait Ltd T/A Pye Tait Consulting,99781280,32310.00,Legal & Professional Services
BEIS,UKRI - BBSRC,16/08/2022,Unspecified,FG - Estates,Powis Hughes Ltd,99783642,402.16,Legal & Professional Services
BEIS,UKRI - BBSRC,17/08/2022,Unspecified,Science Group - Delivery Function,Unspecified,99784738,170.00,Council & Committee Honoraria
BEIS,UKRI - BBSRC,17/08/2022,Fees (Including College Members),Science Group - Delivery Function,Unspecified,99784743,340.00,Fees (Including College Members)
BEIS,UKRI - BBSRC,17/08/2022,Unspecified,Science Group,Abbey Business Interiors Ltd,99784922,392.40,Legal & Professional Services
BEIS,UKRI - BBSRC,17/08/2022,Research Institutes - Capital Grants: Minor Works,JIC,John Innes Centre,99785754,18938.46,Research Institutes - Capital Grants: Minor Works
BEIS,UKRI - BBSRC,17/08/2022,Research Institutes - Capital Grants: Minor Works,IFR,Quadram Institute Bioscience,99785758,1063.00,Research Institutes - Capital Grants: Minor Works
BEIS,UKRI - BBSRC,17/08/2022,Staff Training,PDG - Director,Provek Ltd,99785808,810.00,Staff Training
BEIS,UKRI - BBSRC,18/08/2022,Research Grant Expenditure,Impact & Knowledge Exchange,Technology Strategy Board (Innovate UK),99785961,63644.40,Research Grant Expenditure
BEIS,UKRI - BBSRC,19/08/2022,T&S UK - Other Charges,Science Group,Unspecified,99785477,13.10,T&S UK - Other Charges
BEIS,UKRI - BBSRC,19/08/2022,T&S UK - Other Charges,Science Group,Unspecified,99785478,12.87,T&S UK - Other Charges
BEIS,UKRI - BBSRC,19/08/2022,T&S UK - Public Transport,Science Group,Unspecified,99785478,13.00,T&S UK - Public Transport
BEIS,UKRI - BBSRC,19/08/2022,T&S UK - Subsistence,Science Group,Unspecified,99785478,6.60,T&S UK - Subsistence
BEIS,UKRI - BBSRC,19/08/2022,Non-staff travel and subsistance,Science Group - Delivery Function,Unspecified,99786231,224.24,Non-staff travel and subsistance
BEIS,UKRI - BBSRC,22/08/2022,Research Institutes - Capital Grants: Minor Works,Mid-Range Equipment,The Pirbright Institute,99777159,18799.20,Research Institutes - Capital Grants: Minor Works
BEIS,UKRI - BBSRC,22/08/2022,Research Institutes - Capital Grants: Minor Works,Pirbright,The Pirbright Institute,99777159,450.00,Research Institutes - Capital Grants: Minor Works
BEIS,UKRI - BBSRC,23/08/2022,Research Grant Expenditure,International,UKRI - Medical Research Council,99758996,86111.04,Research Grant Expenditure
BEIS,UKRI - BBSRC,23/08/2022,Research Grant Expenditure,International,UKRI - Medical Research Council,99759235,64583.33,Research Grant Expenditure
BEIS,UKRI - BBSRC,23/08/2022,Research Grant Expenditure,Research: Responsive,UKRI - Medical Research Council,99777026,107885.00,Research Grant Expenditure
BEIS,UKRI - BBSRC,23/08/2022,Research Institutes - Competitive Strategic Grant,Research: Strategic National Capability,Babraham Institute,99777755,64751.75,Research Institutes - Competitive Strategic Grant
BEIS,UKRI - BBSRC,23/08/2022,Research Institutes - Competitive Strategic Grant,Research: Strategic National Capability,Babraham Institute,99777799,352459.91,Research Institutes - Competitive Strategic Grant
BEIS,UKRI - BBSRC,23/08/2022,Research Institutes - Competitive Strategic Grant,Research: Strategic National Capability,Babraham Institute,99777799,48750.01,Research Institutes - Competitive Strategic Grant
BEIS,UKRI - BBSRC,23/08/2022,Research Institutes - Competitive Strategic Grant,Research: Strategic National Capability,Babraham Institute,99777799,395666.75,Research Institutes - Competitive Strategic Grant
BEIS,UKRI - BBSRC,23/08/2022,Research Institutes - Competitive Strategic Grant,Research: Strategic National Capability,Babraham Institute,99777799,5833.33,Research Institutes - Competitive Strategic Grant
BEIS,UKRI - BBSRC,23/08/2022,Research Institutes - Competitive Strategic Grant,Research: Strategic National Capability,Earlham Institute,99777971,163172.03,Research Institutes - Competitive Strategic Grant
BEIS,UKRI - BBSRC,23/08/2022,Research Institutes - Competitive Strategic Grant,Research: Strategic National Capability,Earlham Institute,99777971,81239.48,Research Institutes - Competitive Strategic Grant
BEIS,UKRI - BBSRC,23/08/2022,Research Institutes - Competitive Strategic Grant,Research: Strategic National Capability,Earlham Institute,99777971,42166.70,Research Institutes - Competitive Strategic Grant
BEIS,UKRI - BBSRC,23/08/2022,Research Institutes - Competitive Strategic Grant,Research: Strategic National Capability,Earlham Institute,99777971,33333.36,Research Institutes - Competitive Strategic Grant
BEIS,UKRI - BBSRC,23/08/2022,Research Institutes - Competitive Strategic Grant,Research: Strategic National Capability,Earlham Institute,99777971,121088.76,Research Institutes - Competitive Strategic Grant
BEIS,UKRI - BBSRC,23/08/2022,Research Institutes - Competitive Strategic Grant,Research: Strategic National Capability,Earlham Institute,99777971,2916.67,Research Institutes - Competitive Strategic Grant
BEIS,UKRI - BBSRC,23/08/2022,Research Institutes - Competitive Strategic Grant,Research: Strategic National Capability,John Innes Centre,99777973,21999.99,Research Institutes - Competitive Strategic Grant
BEIS,UKRI - BBSRC,23/08/2022,Research Institutes - Competitive Strategic Grant,Research: Strategic National Capability,John Innes Centre,99777973,511416.52,Research Institutes - Competitive Strategic Grant
BEIS,UKRI - BBSRC,23/08/2022,Research Institutes - Competitive Strategic Grant,Research: Strategic National Capability,John Innes Centre,99777973,65333.31,Research Institutes - Competitive Strategic Grant
BEIS,UKRI - BBSRC,23/08/2022,Research Institutes - Competitive Strategic Grant,Research: Strategic National Capability,John Innes Centre,99777973,501249.85,Research Institutes - Competitive Strategic Grant
BEIS,UKRI - BBSRC,23/08/2022,Research Institutes - Competitive Strategic Grant,Research: Strategic National Capability,John Innes Centre,99777973,7083.33,Research Institutes - Competitive Strategic Grant
BEIS,UKRI - BBSRC,23/08/2022,Research Institutes - Competitive Strategic Grant,Research: Strategic National Capability,Quadram Institute Bioscience,99777974,23624.41,Research Institutes - Competitive Strategic Grant
BEIS,UKRI - BBSRC,23/08/2022,Research Institutes - Competitive Strategic Grant,Research: Strategic National Capability,Quadram Institute Bioscience,99777974,347920.37,Research Institutes - Competitive Strategic Grant
BEIS,UKRI - BBSRC,23/08/2022,Research Institutes - Competitive Strategic Grant,Research: Strategic National Capability,Quadram Institute Bioscience,99777974,46083.32,Research Institutes - Competitive Strategic Grant
BEIS,UKRI - BBSRC,23/08/2022,Research Institutes - Competitive Strategic Grant,Research: Strategic National Capability,Quadram Institute Bioscience,99777974,261521.57,Research Institutes - Competitive Strategic Grant
BEIS,UKRI - BBSRC,23/08/2022,Research Institutes - Competitive Strategic Grant,Research: Strategic National Capability,Quadram Institute Bioscience,99777974,5833.33,Research Institutes - Competitive Strategic Grant
BEIS,UKRI - BBSRC,23/08/2022,Research Institutes - Competitive Strategic Grant,Research: Strategic National Capability,Aberystwyth University,99777996,86360.99,Research Institutes - Competitive Strategic Grant
BEIS,UKRI - BBSRC,23/08/2022,Research Institutes - Competitive Strategic Grant,Research: Strategic National Capability,Aberystwyth University,99777996,46980.67,Research Institutes - Competitive Strategic Grant
BEIS,UKRI - BBSRC,23/08/2022,Research Institutes - Competitive Strategic Grant,Research: Strategic National Capability,Aberystwyth University,99777996,2916.67,Research Institutes - Competitive Strategic Grant
BEIS,UKRI - BBSRC,23/08/2022,Institute Grant Expenditure,Research: Strategic National Capability,Rothamsted Research Ltd,99778066,53166.66,Institute Grant Expenditure
BEIS,UKRI - BBSRC,23/08/2022,Research Institutes - Competitive Strategic Grant,Research: Strategic National Capability,Rothamsted Research Ltd,99778070,96687.50,Research Institutes - Competitive Strategic Grant
BEIS,UKRI - BBSRC,23/08/2022,Research Institutes - Competitive Strategic Grant,Research: Strategic National Capability,John Innes Centre,99778922,187544.17,Research Institutes - Competitive Strategic Grant
BEIS,UKRI - BBSRC,23/08/2022,Research Institutes - Competitive Strategic Grant,Research: Strategic National Capability,Earlham Institute,99778925,31910.00,Research Institutes - Competitive Strategic Grant
BEIS,UKRI - BBSRC,23/08/2022,Research Institutes - Competitive Strategic Grant,Research: Strategic National Capability,Quadram Institute Bioscience,99778928,207233.38,Research Institutes - Competitive Strategic Grant
BEIS,UKRI - BBSRC,23/08/2022,Research Institutes - Competitive Strategic Grant,Research: Strategic National Capability,Rothamsted Research Ltd,99779254,111253.33,Research Institutes - Competitive Strategic Grant
BEIS,UKRI - BBSRC,23/08/2022,Research Institutes - Competitive Strategic Grant,Research: Strategic National Capability,Rothamsted Research Ltd,99779254,418416.67,Research Institutes - Competitive Strategic Grant
BEIS,UKRI - BBSRC,23/08/2022,Research Institutes - Competitive Strategic Grant,Research: Strategic National Capability,Rothamsted Research Ltd,99779254,64666.67,Research Institutes - Competitive Strategic Grant
BEIS,UKRI - BBSRC,23/08/2022,Research Institutes - Competitive Strategic Grant,Research: Strategic National Capability,Rothamsted Research Ltd,99779254,197000.00,Research Institutes - Competitive Strategic Grant
BEIS,UKRI - BBSRC,23/08/2022,Research Institutes - Competitive Strategic Grant,Research: Strategic National Capability,Rothamsted Research Ltd,99779254,7083.33,Research Institutes - Competitive Strategic Grant
BEIS,UKRI - BBSRC,23/08/2022,Research Institutes - Competitive Strategic Grant,Research: Strategic National Capability,The Pirbright Institute,99782215,817500.04,Research Institutes - Competitive Strategic Grant
BEIS,UKRI - BBSRC,23/08/2022,Research Institutes - Competitive Strategic Grant,Research: Strategic National Capability,The Pirbright Institute,99782215,231500.01,Research Institutes - Competitive Strategic Grant
BEIS,UKRI - BBSRC,23/08/2022,Research Institutes - Competitive Strategic Grant,Research: Strategic National Capability,The Pirbright Institute,99782215,33333.34,Research Institutes - Competitive Strategic Grant
BEIS,UKRI - BBSRC,23/08/2022,Research Institutes - Competitive Strategic Grant,Research: Strategic National Capability,The Pirbright Institute,99782215,201083.35,Research Institutes - Competitive Strategic Grant
BEIS,UKRI - BBSRC,23/08/2022,Research Institutes - Competitive Strategic Grant,Research: Strategic National Capability,The Pirbright Institute,99782215,4166.67,Research Institutes - Competitive Strategic Grant
BEIS,UKRI - BBSRC,23/08/2022,Research Grant Expenditure,Impact & Knowledge Exchange,UKRI - Engineering & Physical Sciences Research Council,99785337,128144.75,Research Grant Expenditure
BEIS,UKRI - BBSRC,23/08/2022,Research Grant Expenditure,Research: Responsive,UKRI - Engineering & Physical Sciences Research Council,99785341,115285.80,Research Grant Expenditure
BEIS,UKRI - BBSRC,23/08/2022,Fees (Including College Members),Science Group – Admin Function,Unspecified,99786493,170.00,Fees (Including College Members)
BEIS,UKRI - BBSRC,23/08/2022,Fees (Including College Members),Science Group – Admin Function,Unspecified,99786494,230.00,Fees (Including College Members)
BEIS,UKRI - BBSRC,23/08/2022,Fees (Including College Members),Science Group – Admin Function,Unspecified,99786495,170.00,Fees (Including College Members)
BEIS,UKRI - BBSRC,23/08/2022,Fees (Including College Members),Science Group – Admin Function,Unspecified,99786496,170.00,Fees (Including College Members)
BEIS,UKRI - BBSRC,23/08/2022,T&S UK - Other Charges,FG - Estates,Unspecified,99787094,13.45,T&S UK - Other Charges
BEIS,UKRI - BBSRC,23/08/2022,T&S UK - Vehicle Hire,FG - Estates,Unspecified,99787094,45.63,T&S UK - Vehicle Hire
BEIS,UKRI - BBSRC,23/08/2022,T&S UK - Subsistence,CIMG - Director,Unspecified,99787095,25.00,T&S UK - Subsistence
BEIS,UKRI - BBSRC,23/08/2022,T&S UK - Vehicle Hire,CIMG - Director,Unspecified,99787095,85.50,T&S UK - Vehicle Hire
BEIS,UKRI - BBSRC,23/08/2022,T&S UK - Other Charges,Science Group,Unspecified,99787096,219.49,T&S UK - Other Charges
BEIS,UKRI - BBSRC,24/08/2022,Research Institutes - Capital Grants: Minor Works,JIC,John Innes Centre,99780661,971398.63,Research Institutes - Capital Grants: Minor Works
BEIS,UKRI - BBSRC,24/08/2022,Research Institutes - Capital Grants: Major Works,Funding Advanced Research Equipment - WCL 2020 Uplift,John Innes Centre,99781318,221438.84,Research Institutes - Capital Grants: Major Works
BEIS,UKRI - BBSRC,24/08/2022,Research Institutes - Capital Grants: Minor Works,Mid-Range Equipment,John Innes Centre,99782734,75702.65,Research Institutes - Capital Grants: Minor Works
BEIS,UKRI - BBSRC,24/08/2022,Research Grant Expenditure,SPF W1 EMBL EBI,EMBL (European Molecular Biology Laboratory),99783611,123773.59,Research Grant Expenditure
BEIS,UKRI - BBSRC,24/08/2022,Research Institutes - Capital Grants: Minor Works,Rothamsted Research,Rothamsted Research Ltd,99784357,89677.86,Research Institutes - Capital Grants: Minor Works
BEIS,UKRI - BBSRC,24/08/2022,Research Grant Expenditure,SPF W1 EMBL EBI,EMBL (European Molecular Biology Laboratory),99785394,354842.40,Research Grant Expenditure
BEIS,UKRI - BBSRC,24/08/2022,Research Institutes - Capital Grants: Minor Works,Rothamsted Research,Rothamsted Research Ltd,99787048,200900.00,Research Institutes - Capital Grants: Minor Works
BEIS,UKRI - BBSRC,24/08/2022,Research Grant Expenditure,SPF W1 EMBL EBI,EMBL (European Molecular Biology Laboratory),99787301,600.00,Research Grant Expenditure
BEIS,UKRI - BBSRC,24/08/2022,Research Institutes - Capital Grants: Minor Works,Pirbright,The Pirbright Institute,99787395,304163.77,Research Institutes - Capital Grants: Minor Works
BEIS,UKRI - BBSRC,24/08/2022,Research Institutes - Capital Grants: Minor Works,Mid-Range Equipment,The Pirbright Institute,99787397,36041.28,Research Institutes - Capital Grants: Minor Works
BEIS,UKRI - BBSRC,24/08/2022,Research Institutes - Capital Grants: Minor Works,Mid-Range Equipment,The Pirbright Institute,99787398,10753.14,Research Institutes - Capital Grants: Minor Works
BEIS,UKRI - BBSRC,24/08/2022,T&S UK - Vehicle Hire,CIMG - Director,Enterprise Rent-A-Car UK Ltd,99787423,75.40,T&S UK - Vehicle Hire
BEIS,UKRI - BBSRC,24/08/2022,T&S UK - Vehicle Hire,CIMG - Director,Enterprise Rent-A-Car UK Ltd,99787423,15.08,T&S UK - Vehicle Hire
BEIS,UKRI - BBSRC,24/08/2022,T&S UK - Vehicle Hire,FG - Estates,Enterprise Rent-A-Car UK Ltd,99787423,66.77,T&S UK - Vehicle Hire
BEIS,UKRI - BBSRC,24/08/2022,T&S UK - Vehicle Hire,FG - Estates,Enterprise Rent-A-Car UK Ltd,99787423,13.35,T&S UK - Vehicle Hire
BEIS,UKRI - BBSRC,24/08/2022,T&S UK - Subsistence,Innovation and Skills Group,Unspecified,99787435,25.00,T&S UK - Subsistence
BEIS,UKRI - BBSRC,24/08/2022,T&S UK - Subsistence,Innovation and Skills Group,Unspecified,99787435,19.55,T&S UK - Subsistence
BEIS,UKRI - BBSRC,24/08/2022,T&S UK - Subsistence,Innovation and Skills Group,Unspecified,99787435,6.65,T&S UK - Subsistence
BEIS,UKRI - BBSRC,24/08/2022,Research Grant Expenditure,SPF W1 EMBL EBI,EMBL (European Molecular Biology Laboratory),99788392,161170.88,Research Grant Expenditure
BEIS,UKRI - BBSRC,24/08/2022,Unspecified,Science Group – Admin Function,Unspecified,99788429,170.00,Council & Committee Honoraria
BEIS,UKRI - BBSRC,24/08/2022,Unspecified,Science Group - Delivery Function,Unspecified,99788430,170.00,Council & Committee Honoraria
BEIS,UKRI - BBSRC,24/08/2022,Unspecified,Science Group - Delivery Function,Unspecified,99788431,170.00,Council & Committee Honoraria
BEIS,UKRI - BBSRC,24/08/2022,Unspecified,Science Group - Delivery Function,Unspecified,99788432,170.00,Council & Committee Honoraria
BEIS,UKRI - BBSRC,24/08/2022,Unspecified,Science Group - Delivery Function,Unspecified,99788433,230.00,Council & Committee Honoraria
BEIS,UKRI - BBSRC,24/08/2022,Unspecified,Science Group – Admin Function,Unspecified,99788434,230.00,Council & Committee Honoraria
BEIS,UKRI - BBSRC,26/08/2022,Research Institutes - Capital Grants: Minor Works,Rothamsted Research,Rothamsted Research Ltd,99789024,33552.82,Research Institutes - Capital Grants: Minor Works
BEIS,UKRI - BBSRC,30/08/2022,Research Institutes - Competitive Strategic Grant,Research: Strategic National Capability,The Pirbright Institute,99789136,204682.50,Research Institutes - Competitive Strategic Grant
BEIS,UKRI - BBSRC,31/08/2022,T&S UK - Other Charges,Science Group,Unspecified,99790613,12.00,T&S UK - Other Charges
BEIS,UKRI - UKRI,01/08/2022,Building Rents,UKRI - Estates Projects,Government Property Agency,99349168,7077.78,Building Rents
BEIS,UKRI - UKRI,01/08/2022,Computer Hardware,UKRI Strategic HR Business Partners,Probrand Ltd,99480717,76.34,Computer Hardware
BEIS,UKRI - UKRI,01/08/2022,Computer Hardware,UKRI Strategic HR Business Partners,Probrand Ltd,99480717,304.43,Computer Hardware
BEIS,UKRI - UKRI,01/08/2022,Computer Hardware,UKRI Strategic HR Business Partners,Probrand Ltd,99480717,11.40,Computer Hardware
BEIS,UKRI - UKRI,01/08/2022,Computing Consumables,UKRI - Financial Accounting,Banner Group Ltd,99758081,547.21,Computing Consumables
BEIS,UKRI - UKRI,01/08/2022,Computing Consumables,UKRI - Financial Accounting,Banner Group Ltd,99758081,547.21,Computing Consumables
BEIS,UKRI - UKRI,01/08/2022,Printing & Stationery,UKRI - Financial Accounting,Banner Group Ltd,99758533,179.66,Printing & Stationery
BEIS,UKRI - UKRI,01/08/2022,Computing Consumables,UKRI - Financial Accounting,Banner Group Ltd,99761171,547.21,Computing Consumables
BEIS,UKRI - UKRI,01/08/2022,Unspecified,UKRI - Digital Data and Technology Project Costs,Alexander Mann Solutions Ltd,99762464,3695.58,Contract Staff
BEIS,UKRI - UKRI,01/08/2022,Unspecified,UKRI - Digital Data and Technology Project Costs,Alexander Mann Solutions Ltd,99767107,3695.58,Contract Staff
BEIS,UKRI - UKRI,01/08/2022,Printing & Stationery,UKRI - Financial Accounting,Banner Group Ltd,99767311,1.55,Printing & Stationery
BEIS,UKRI - UKRI,01/08/2022,Printing & Stationery,UKRI - Financial Accounting,Banner Group Ltd,99767311,19.98,Printing & Stationery
BEIS,UKRI - UKRI,01/08/2022,Printing & Stationery,UKRI - Financial Accounting,Banner Group Ltd,99767311,6.72,Printing & Stationery
BEIS,UKRI - UKRI,01/08/2022,Printing & Stationery,UKRI - Financial Accounting,Banner Group Ltd,99767311,6.85,Printing & Stationery
BEIS,UKRI - UKRI,01/08/2022,Printing & Stationery,UKRI - Financial Accounting,Banner Group Ltd,99767311,32.08,Printing & Stationery
BEIS,UKRI - UKRI,01/08/2022,Printing & Stationery,UKRI - Financial Accounting,Banner Group Ltd,99767311,2.14,Printing & Stationery
BEIS,UKRI - UKRI,01/08/2022,Printing & Stationery,UKRI - Financial Accounting,Banner Group Ltd,99767311,24.48,Printing & Stationery
BEIS,UKRI - UKRI,01/08/2022,Printing & Stationery,UKRI - Financial Accounting,Banner Group Ltd,99767312,3.96,Printing & Stationery
BEIS,UKRI - UKRI,01/08/2022,Printing & Stationery,UKRI - Financial Accounting,Banner Group Ltd,99767312,6.35,Printing & Stationery
BEIS,UKRI - UKRI,01/08/2022,Unspecified,UKRI - Funding Service,Alexander Mann Solutions Ltd,99768029,3849.54,Contract Staff
BEIS,UKRI - UKRI,01/08/2022,Plant Maintenance,UKRI - Financial Accounting,Premier Farnell UK Ltd T/A Farnell Onecall,99770194,98.28,Plant Maintenance
BEIS,UKRI - UKRI,01/08/2022,T&S UK - Other Charges,UKRI - Culture Leadership and Learning,Unspecified,99770424,141.97,T&S UK - Other Charges
BEIS,UKRI - UKRI,01/08/2022,T&S UK - Other Charges,UKRI - Culture Leadership and Learning,Unspecified,99770424,32.48,T&S UK - Other Charges
BEIS,UKRI - UKRI,01/08/2022,T&S UK - Public Transport,UKRI - Culture Leadership and Learning,Unspecified,99770424,2.60,T&S UK - Public Transport
BEIS,UKRI - UKRI,01/08/2022,T&S UK - Public Transport,UKRI - Culture Leadership and Learning,Unspecified,99770424,25.00,T&S UK - Public Transport
BEIS,UKRI - UKRI,01/08/2022,T&S UK - Subsistence,UKRI - Culture Leadership and Learning,Unspecified,99770424,83.98,T&S UK - Subsistence
BEIS,UKRI - UKRI,01/08/2022,T&S UK - Subsistence,UKRI - Culture Leadership and Learning,Unspecified,99770424,39.14,T&S UK - Subsistence
BEIS,UKRI - UKRI,01/08/2022,Research Consumables,UKRI - Financial Accounting,Scientific Laboratory Supplies Ltd (Sls),99770539,31.34,Research Consumables
BEIS,UKRI - UKRI,01/08/2022,Unspecified,UKRI - Digital Data and Technology Project Costs,Alexander Mann Solutions Ltd,99770682,2586.91,Contract Staff
BEIS,UKRI - UKRI,01/08/2022,Provisions ( Food etc),UKRI - Estates,Banner Group Ltd,99771601,17.33,Provisions ( Food etc)
BEIS,UKRI - UKRI,01/08/2022,Cleaning & Sterilisation,UKRI - Estates,Banner Group Ltd,99771962,16.42,Cleaning & Sterilisation
BEIS,UKRI - UKRI,01/08/2022,Cleaning & Sterilisation,UKRI - Estates,Banner Group Ltd,99771962,40.20,Cleaning & Sterilisation
BEIS,UKRI - UKRI,01/08/2022,Printing & Stationery,UKRI - Estates,Banner Group Ltd,99771962,0.55,Printing & Stationery
BEIS,UKRI - UKRI,01/08/2022,Printing & Stationery,UKRI - Estates,Banner Group Ltd,99771962,0.72,Printing & Stationery
BEIS,UKRI - UKRI,01/08/2022,Printing & Stationery,UKRI - Estates,Banner Group Ltd,99771962,1.87,Printing & Stationery
BEIS,UKRI - UKRI,01/08/2022,Provisions ( Food etc),UKRI - Estates,Banner Group Ltd,99771962,12.34,Provisions ( Food etc)
BEIS,UKRI - UKRI,01/08/2022,Building Rents,UKRI - Estates Projects,Government Property Agency,99772208,-4590.00,Building Rents
BEIS,UKRI - UKRI,01/08/2022,Building Rents,UKRI - Estates Projects,Government Property Agency,99772209,-2487.78,Building Rents
BEIS,UKRI - UKRI,01/08/2022,Building Rents,UKRI - Estates Projects,Government Property Agency,99772213,14580.00,Building Rents
BEIS,UKRI - UKRI,01/08/2022,Building Rents,UKRI - Estates Projects,Government Property Agency,99772214,-14580.00,Building Rents
BEIS,UKRI - UKRI,01/08/2022,Unspecified,UKRI - Funding Service,Alexander Mann Solutions Ltd,99773369,4003.56,Contract Staff
BEIS,UKRI - UKRI,01/08/2022,Unspecified,UKRI - Digital Data and Technology Project Costs,Alexander Mann Solutions Ltd,99773382,3695.58,Contract Staff
BEIS,UKRI - UKRI,01/08/2022,Computer Software Licences,UKRI - Digital Data and Technology Recharges,Numerical Algorithms Group Ltd - (NAG),99773486,40992.00,Computer Software Licences
BEIS,UKRI - UKRI,01/08/2022,Unspecified,UKRI - Digital Data and Technology Project Costs,LA International Computer Consultants Ltd,99774116,3593.40,Contract Staff
BEIS,UKRI - UKRI,01/08/2022,Unspecified,UKRI - Digital Data and Technology Project Costs,Precision Resource Group Ltd T/A iO,99776181,3683.10,Contract Staff
BEIS,UKRI - UKRI,01/08/2022,Meetings & Catering,UKRI - Secretariat,Benugo Ltd,99776243,123.90,Meetings & Catering
BEIS,UKRI - UKRI,01/08/2022,Recruitment Costs,UKRI - Security,Cabinet Office,99776263,14702.40,Recruitment Costs
BEIS,UKRI - UKRI,01/08/2022,General Building Maintenance,UKRI - JBOS,Government Property Agency,99776265,300.00,General Building Maintenance
BEIS,UKRI - UKRI,01/08/2022,General Building Maintenance,UKRI - JBOS,Government Property Agency,99776267,360.00,General Building Maintenance
BEIS,UKRI - UKRI,01/08/2022,General Building Maintenance,UKRI - JBOS,Government Property Agency,99776269,360.00,General Building Maintenance
BEIS,UKRI - EPSRC,01/08/2022,Fees (Including College Members),Business Improvement,Unspecified,99776286,320.00,Fees (Including College Members)
BEIS,UKRI - EPSRC,01/08/2022,Fees (Including College Members),Business Improvement,Unspecified,99776287,160.00,Fees (Including College Members)
BEIS,UKRI - EPSRC,01/08/2022,Fees (Including College Members),Business Improvement,Unspecified,99776288,160.00,Fees (Including College Members)
BEIS,UKRI - EPSRC,01/08/2022,Non-staff travel and subsistance,Programme Delivery Energy,Unspecified,99776289,197.00,Non-staff travel and subsistance
BEIS,UKRI - UKRI,01/08/2022,Unspecified,UKRI - Counter Fraud,Victoria Pink Transcription,99776413,281.34,Legal & Professional Services
BEIS,UKRI - UKRI,01/08/2022,Unspecified,UKRI - Digital Data and Technology Project Costs,LA International Computer Consultants Ltd,99776435,3593.40,Contract Staff
BEIS,UKRI - UKRI,01/08/2022,Unspecified,UKRI - Funding Service,Alexander Mann Solutions Ltd,99776460,4619.52,Contract Staff
BEIS,UKRI - UKRI,01/08/2022,Unspecified,UKRI - Digital Data and Technology Project Costs,Alexander Mann Solutions Ltd,99776462,3150.30,Contract Staff
BEIS,UKRI - UKRI,01/08/2022,Unspecified,UKRI - Human Resources Support,Alexander Mann Solutions Ltd,99776470,3941.95,Agency Staff
BEIS,UKRI - UKRI,01/08/2022,Unspecified,UKRI - Digital Data and Technology Project Costs,Alexander Mann Solutions Ltd,99776472,3695.58,Contract Staff
BEIS,UKRI - UKRI,01/08/2022,Consumables,UKRI - JRS,Creat3d Ltd,99776506,8.22,Consumables
BEIS,UKRI - UKRI,01/08/2022,Consumables,UKRI - JRS,Creat3d Ltd,99776506,91.20,Consumables
BEIS,UKRI - UKRI,01/08/2022,Postage & Courier Services,UKRI - Estates,Lilac Publishing Ltd T/A Fine Art Restoration Co,99776515,328.98,Postage & Courier Services
BEIS,UKRI - UKRI,01/08/2022,Unspecified,UKRI - Digital Data and Technology BAU Costs,Alexander Mann Solutions Ltd,99776516,4046.22,Contract Staff
BEIS,UKRI - UKRI,01/08/2022,Advertising & Promotion,UKRI - Communications Content,Simon Troup and Jennie Troup T/A Digital Music Art,99776522,1080.00,Advertising & Promotion
BEIS,UKRI - UKRI,01/08/2022,Unspecified,UKRI - Digital Data and Technology BAU Costs,Alexander Mann Solutions Ltd,99776523,227.02,Contract Staff
BEIS,UKRI - UKRI,01/08/2022,Unspecified,UKRI-SHARP,Alexander Mann Solutions Ltd,99776525,2340.53,Contract Staff
BEIS,UKRI - UKRI,01/08/2022,Unspecified,UKRI-SHARP,Alexander Mann Solutions Ltd,99776549,3273.42,Contract Staff
BEIS,UKRI - UKRI,01/08/2022,Unspecified,UKRI-CPO,Alexander Mann Solutions Ltd,99776562,756.05,Contract Staff
BEIS,UKRI - UKRI,01/08/2022,Unspecified,UKRI - Digital Data and Technology Project Costs,Precision Resource Group Ltd T/A iO,99776764,3120.00,Contract Staff
BEIS,UKRI - UKRI,01/08/2022,Unspecified,UKRI - Digital Data and Technology Project Costs,Precision Resource Group Ltd T/A iO,99776765,16848.00,Contract Staff
BEIS,UKRI - UKRI,01/08/2022,Unspecified,UKRI-SHARP,Alexander Mann Solutions Ltd,99777066,2463.70,Contract Staff
BEIS,UKRI - UKRI,01/08/2022,Recruitment Costs,UKRI People and Organisation Development,SMRS Ltd,99777117,12783.56,Recruitment Costs
BEIS,UKRI - Research England,01/08/2022,International Subscriptions,RE - Operations and Private Office,Wonkhe Ltd,99777125,3950.00,International Subscriptions
BEIS,UKRI - UKRI,01/08/2022,Health & Safety (inc. Medicals & Opticians),"UKRI - Data Policy, Governance and MI",Unspecified,99777166,40.00,Health & Safety (inc. Medicals & Opticians)
BEIS,UKRI - Research England,01/08/2022,T&S UK - Subsistence,RE - Insight and Engagement,Unspecified,99777167,7.58,T&S UK - Subsistence
BEIS,UKRI - UKRI,01/08/2022,T&S UK - Mileage,UKRI - Digital Data and Technology BAU Costs,Unspecified,99777168,100.35,T&S UK - Mileage
BEIS,UKRI - EPSRC,01/08/2022,Health & Safety (inc. Medicals & Opticians),Programme Delivery Energy,Unspecified,99777170,99.00,Health & Safety (inc. Medicals & Opticians)
BEIS,UKRI - UKRI,01/08/2022,UK - Professional Memberships & Subscriptions,UKRI - Strategic Finance Business Partners,Unspecified,99777171,143.00,UK - Professional Memberships & Subscriptions
BEIS,UKRI - EPSRC,01/08/2022,T&S UK - Subsistence,Regional Engagement - OpEx,Unspecified,99777172,5.00,T&S UK - Subsistence
BEIS,UKRI - EPSRC,01/08/2022,T&S UK - Subsistence,Regional Engagement - OpEx,Unspecified,99777172,20.07,T&S UK - Subsistence
BEIS,UKRI - EPSRC,01/08/2022,T&S UK - Subsistence,Regional Engagement - OpEx,Unspecified,99777172,7.25,T&S UK - Subsistence
BEIS,UKRI - EPSRC,01/08/2022,T&S UK - Subsistence,Regional Engagement - OpEx,Unspecified,99777172,5.00,T&S UK - Subsistence
BEIS,UKRI - EPSRC,01/08/2022,T&S UK - Other Charges,Programme Delivery Energy,Unspecified,99777173,9.99,T&S UK - Other Charges
BEIS,UKRI - EPSRC,01/08/2022,T&S UK - Mileage,Business Engagement,Unspecified,99777175,35.95,T&S UK - Mileage
BEIS,UKRI - EPSRC,01/08/2022,T&S UK - Subsistence,Business Engagement,Unspecified,99777175,5.00,T&S UK - Subsistence
BEIS,UKRI - EPSRC,02/08/2022,Other Bought In Services,Regional Engagement - OpEx,The Collective Facilitation Ltd,99738707,20817.84,Other Bought In Services
BEIS,UKRI - UKRI,02/08/2022,Unspecified,UKRI - Digital Data and Technology Project Costs,Sanderson Government and Defence Ltd,99754915,29015.70,Contract Staff
BEIS,UKRI - UKRI,02/08/2022,Recharges From Councils - Non-Salary,UKRI - Funding Service,UKRI - Medical Research Council,99763563,50110.72,Recharges From Councils - Non-Salary
BEIS,UKRI - UKRI,02/08/2022,Recharges From Councils - Non-Salary,UKRI - Funding Service,UKRI - Medical Research Council,99763564,-50110.72,Recharges From Councils - Non-Salary
BEIS,UKRI - UKRI,02/08/2022,Unspecified,UKRI - Digital Data and Technology Project Costs,Sanderson Government and Defence Ltd,99768680,8492.40,Contract Staff
BEIS,UKRI - UKRI,02/08/2022,Unspecified,UKRI - Digital Data and Technology BAU Costs,Alexander Mann Solutions Ltd,99770695,4403.94,Contract Staff
BEIS,UKRI - UKRI,02/08/2022,Removal Services,UKRI - Estates,Sirva NV,99772335,8570.34,Removal Services
BEIS,UKRI - UKRI,02/08/2022,Unspecified,UKRI - Digital Data and Technology BAU Costs,Alexander Mann Solutions Ltd,99773178,8807.88,Contract Staff
BEIS,UKRI - UKRI,02/08/2022,UK - Professional Memberships & Subscriptions,"UKRI People, Policies and Management",Universities and Colleges Employers Association (UCEA),99773384,16543.00,UK - Professional Memberships & Subscriptions
BEIS,UKRI - UKRI,02/08/2022,Unspecified,UKRI - Digital Data and Technology BAU Costs,Alexander Mann Solutions Ltd,99774048,3523.15,Contract Staff
BEIS,UKRI - UKRI,02/08/2022,Unspecified,UKRI - Communications Content,Joel Knight T/A Joel Knight Photography,99774189,700.00,Legal & Professional Services
BEIS,UKRI - EPSRC,02/08/2022,Non-staff travel and subsistance,Business Improvement,Unspecified,99774867,347.78,Non-staff travel and subsistance
BEIS,UKRI - EPSRC,02/08/2022,Fees (Including College Members),Business Improvement,Unspecified,99774868,161.75,Fees (Including College Members)
BEIS,UKRI - UKRI,02/08/2022,Unspecified,UKRI-SHARP,UK Shared Business Services Ltd,99775005,46724.16,Secondments
BEIS,UKRI - UKRI,02/08/2022,Unspecified,UKRI-SHARP,UK Shared Business Services Ltd,99775006,388715.16,Secondments
BEIS,UKRI - EPSRC,02/08/2022,Capital Grants & Equipment to HEIs,NC Infrastructure,UKRI - Medical Research Council,99775010,12250.00,Capital Grants & Equipment to HEIs
BEIS,UKRI - EPSRC,02/08/2022,Other Programme Costs,NC Infrastructure,UKRI - Medical Research Council,99775010,143112.50,Other Programme Costs
BEIS,UKRI - UKRI,02/08/2022,Unspecified,"UKRI People, Policies and Management",Department for Business Energy & Industrial Strategy,99775011,11856.95,Secondments
BEIS,UKRI - UKRI,02/08/2022,Unspecified,"UKRI People, Policies and Management",Department for Business Energy & Industrial Strategy,99775013,11856.95,Secondments
BEIS,UKRI - UKRI,02/08/2022,Unspecified,"UKRI People, Policies and Management",Department for Business Energy & Industrial Strategy,99775091,11856.95,Secondments
BEIS,UKRI - Research England,02/08/2022,Unspecified,RE - Knowledge Exchange,SCIENCE DEVELOPMENTS LTD,99775235,2499.76,Legal & Professional Services
BEIS,UKRI - UKRI,02/08/2022,Computer Software Licences,UKRI - Digital Data and Technology BAU Costs,Changepoint Canada ULC,99775989,8287.50,Computer Software Licences
BEIS,UKRI - UKRI,02/08/2022,Computer Software Licences,UKRI - Digital Data and Technology BAU Costs,Changepoint Canada ULC,99775990,337.50,Computer Software Licences
BEIS,UKRI - UKRI,02/08/2022,Unspecified,UKRI - Strategic Finance Business Partners,Alexander Mann Solutions Ltd,99776495,1260.12,Agency Staff
BEIS,UKRI - UKRI,02/08/2022,Telecoms - Non Capital Hardware Costs,UKRI - Digital Data and Technology BAU Costs,Telefonica UK Ltd (O2),99776504,117.60,Telecoms - Non Capital Hardware Costs
BEIS,UKRI - EPSRC,02/08/2022,Non-staff travel and subsistance,Programme Delivery Energy,Unspecified,99776611,206.67,Non-staff travel and subsistance
BEIS,UKRI - EPSRC,02/08/2022,Fees (Including College Members),Business Improvement,Unspecified,99776612,320.00,Fees (Including College Members)
BEIS,UKRI - UKRI,02/08/2022,Unspecified,UKRI - Digital Data and Technology Project Costs,Precision Resource Group Ltd T/A iO,99776617,3120.00,Contract Staff
BEIS,UKRI - EPSRC,02/08/2022,Non-staff travel and subsistance,Business Improvement,Unspecified,99776627,249.10,Non-staff travel and subsistance
BEIS,UKRI - EPSRC,02/08/2022,Fees (Including College Members),Business Improvement,Unspecified,99776628,159.58,Fees (Including College Members)
BEIS,UKRI - Research England,02/08/2022,Staff Training,RE - Research,Cortex-Training Ltd,99776645,4398.72,Staff Training
BEIS,UKRI - UKRI,02/08/2022,Advertising & Promotion,UKRI - Communications Content,Sure Languages Ltd,99776659,2580.52,Advertising & Promotion
BEIS,UKRI - UKRI,02/08/2022,Unspecified,UKRI - Digital Data and Technology BAU Costs,Alexander Mann Solutions Ltd,99777062,4403.94,Contract Staff
BEIS,UKRI - UKRI,02/08/2022,Books Professional Journals & Guides,UKRI - Digital Data and Technology Library Services,Cambridge University Press,99777460,1141.16,Books Professional Journals & Guides
BEIS,UKRI - UKRI,02/08/2022,Books Professional Journals & Guides,UKRI - Digital Data and Technology Library Services,Cambridge University Press,99777460,13249.00,Books Professional Journals & Guides
BEIS,UKRI - UKRI,02/08/2022,Unspecified,UKRI Strategic HR Business Partners,KPMG LLP,99777537,18000.00,Legal & Professional Services
BEIS,UKRI - UKRI,02/08/2022,Unspecified,UKRI-SHARP,Hays Specialist Recruitment Ltd,99777546,9919.30,Contract Staff
BEIS,UKRI - UKRI,02/08/2022,Unspecified,UKRI-SHARP,Hays Specialist Recruitment Ltd,99777552,9609.32,Contract Staff
BEIS,UKRI - UKRI,02/08/2022,Consumables,UKRI - JRS,Nomadic Structures (UK) Ltd,99777590,3.00,Consumables
BEIS,UKRI - UKRI,02/08/2022,Consumables,UKRI - JRS,Nomadic Structures (UK) Ltd,99777590,57.60,Consumables
BEIS,UKRI - UKRI,02/08/2022,Unspecified,UKRI - Estates,Hays Specialist Recruitment Ltd,99777609,2062.49,Agency Staff
BEIS,UKRI - UKRI,02/08/2022,T&S UK - Public Transport,UKRI - Estates,Addison Lee Plc,99777732,18.00,T&S UK - Public Transport
BEIS,UKRI - UKRI,02/08/2022,T&S UK - Public Transport,UKRI - Estates,Addison Lee Plc,99777732,96.59,T&S UK - Public Transport
BEIS,UKRI - UKRI,02/08/2022,T&S UK - Public Transport,UKRI - Estates,Addison Lee Plc,99777732,965.82,T&S UK - Public Transport
BEIS,UKRI - UKRI,02/08/2022,Recruitment Costs,UKRI People and Organisation Development,Warwick University Services Ltd,99777784,552.00,Recruitment Costs
BEIS,UKRI - UKRI,02/08/2022,T&S UK - Mileage,UKRI - Digital Data and Technology BAU Costs,Unspecified,99777812,74.25,T&S UK - Mileage
BEIS,UKRI - UKRI,02/08/2022,T&S UK - Subsistence,UKRI - Digital Data and Technology BAU Costs,Unspecified,99777813,25.00,T&S UK - Subsistence
BEIS,UKRI - UKRI,02/08/2022,T&S UK - Subsistence,UKRI - Digital Data and Technology BAU Costs,Unspecified,99777813,5.00,T&S UK - Subsistence
BEIS,UKRI - UKRI,02/08/2022,UK - Professional Memberships & Subscriptions,UKRI - Procurement and Commercial,Unspecified,99777814,190.80,UK - Professional Memberships & Subscriptions
BEIS,UKRI - UKRI,02/08/2022,Health & Safety (inc. Medicals & Opticians),UKRI - Private Office,Unspecified,99777815,100.00,Health & Safety (inc. Medicals & Opticians)
BEIS,UKRI - EPSRC,02/08/2022,T&S UK - Public Transport,Programme Delivery Maths,Unspecified,99777817,6.00,T&S UK - Public Transport
BEIS,UKRI - EPSRC,02/08/2022,T&S UK - Subsistence,Programme Delivery Maths,Unspecified,99777817,5.00,T&S UK - Subsistence
BEIS,UKRI - EPSRC,02/08/2022,T&S UK - Public Transport,Programme Delivery - Industrial Strategy Challenge Fund (ISCF),Unspecified,99777818,44.16,T&S UK - Public Transport
BEIS,UKRI - EPSRC,02/08/2022,T&S UK - Subsistence,Programme Delivery - Industrial Strategy Challenge Fund (ISCF),Unspecified,99777818,6.10,T&S UK - Subsistence
BEIS,UKRI - UKRI,02/08/2022,T&S UK - Mileage,"UKRI People, Policies and Management",Unspecified,99777819,44.55,T&S UK - Mileage
BEIS,UKRI - UKRI,02/08/2022,T&S UK - Other Charges,"UKRI People, Policies and Management",Unspecified,99777819,9.99,T&S UK - Other Charges
BEIS,UKRI - UKRI,02/08/2022,T&S UK - Parking Tolls Congestion Charges,"UKRI People, Policies and Management",Unspecified,99777819,17.30,T&S UK - Parking Tolls Congestion Charges
BEIS,UKRI - EPSRC,02/08/2022,T&S UK - Other Charges,Directors and Deputy Directors,Unspecified,99777820,14.64,T&S UK - Other Charges
BEIS,UKRI - EPSRC,02/08/2022,T&S UK - Public Transport,Directors and Deputy Directors,Unspecified,99777820,14.89,T&S UK - Public Transport
BEIS,UKRI - EPSRC,02/08/2022,T&S UK - Public Transport,Directors and Deputy Directors,Unspecified,99777820,32.60,T&S UK - Public Transport
BEIS,UKRI - EPSRC,02/08/2022,T&S UK - Subsistence,Directors and Deputy Directors,Unspecified,99777820,274.34,T&S UK - Subsistence
BEIS,UKRI - EPSRC,02/08/2022,T&S UK - Subsistence,Directors and Deputy Directors,Unspecified,99777820,25.00,T&S UK - Subsistence
BEIS,UKRI - UKRI,02/08/2022,T&S UK - Other Charges,UKRI - Private Office,Unspecified,99777821,58.47,T&S UK - Other Charges
BEIS,UKRI - EPSRC,02/08/2022,T&S UK - Subsistence,Commercialisation OpEx,Unspecified,99777822,22.44,T&S UK - Subsistence
BEIS,UKRI - EPSRC,02/08/2022,T&S UK - Subsistence,Commercialisation OpEx,Unspecified,99777822,6.05,T&S UK - Subsistence
BEIS,UKRI - EPSRC,02/08/2022,T&S UK - Subsistence,Commercialisation OpEx,Unspecified,99777822,10.00,T&S UK - Subsistence
BEIS,UKRI - UKRI,02/08/2022,T&S UK - Mileage,UKRI Strategic HR Business Partners,Unspecified,99777823,32.40,T&S UK - Mileage
BEIS,UKRI - UKRI,02/08/2022,T&S UK - Subsistence,UKRI Strategic HR Business Partners,Unspecified,99777824,25.00,T&S UK - Subsistence
BEIS,UKRI - UKRI,02/08/2022,T&S UK - Subsistence,UKRI Strategic HR Business Partners,Unspecified,99777824,5.45,T&S UK - Subsistence
BEIS,UKRI - UKRI,02/08/2022,T&S UK - Subsistence,UKRI Strategic HR Business Partners,Unspecified,99777824,5.00,T&S UK - Subsistence
BEIS,UKRI - UKRI,03/08/2022,Mobile Phone Costs,UKRI - Digital Data and Technology Recharges,Vodafone Ltd,98960908,32.40,Mobile Phone Costs
BEIS,UKRI - UKRI,03/08/2022,Mobile Phone Costs,UKRI - Digital Data and Technology Recharges,Vodafone Ltd,99191225,32.40,Mobile Phone Costs
BEIS,UKRI - UKRI,03/08/2022,Mobile Phone Costs,UKRI - Digital Data and Technology Recharges,Vodafone Ltd,99259039,32.40,Mobile Phone Costs
BEIS,UKRI - UKRI,03/08/2022,Mobile Phone Costs,UKRI - Digital Data and Technology Recharges,Vodafone Ltd,99695743,32.40,Mobile Phone Costs
BEIS,UKRI - UKRI,03/08/2022,Health & Safety (inc. Medicals & Opticians),UKRI - Research Funding Support,Unspecified,99762687,22.00,Health & Safety (inc. Medicals & Opticians)
BEIS,UKRI - UKRI,03/08/2022,Consumables,UKRI - JRS,Ricoh Uk Ltd,99766557,1273.15,Consumables
BEIS,UKRI - UKRI,03/08/2022,Consumables,UKRI - JRS,Antalis Ltd t/a Antalis Document Supplies,99770300,1081.68,Consumables
BEIS,UKRI - UKRI,03/08/2022,Unspecified,UKRI - HR Corporate Projects,Alexander Mann Solutions Ltd,99770660,411.48,Contract Staff
BEIS,UKRI - UKRI,03/08/2022,Unspecified,UKRI-SHARP,Alexander Mann Solutions Ltd,99776553,4095.36,Contract Staff
BEIS,UKRI - UKRI,03/08/2022,Unspecified,UKRI-SHARP,Hays Specialist Recruitment Ltd,99777586,15129.58,Contract Staff
BEIS,UKRI - UKRI,03/08/2022,Unspecified,UKRI-SHARP,Hays Specialist Recruitment Ltd,99777589,14409.12,Contract Staff
BEIS,UKRI - UKRI,03/08/2022,Other Bought In Services,UKRI - UK CDR,Wellcome Trust,99777645,27259.37,Other Bought In Services
BEIS,UKRI - UKRI,03/08/2022,Design services,UKRI - JRS,New Harts Productions Ltd,99777772,220.00,Design services
BEIS,UKRI - UKRI,03/08/2022,Conferences & Seminars,UKRI - Strategic Finance Business Partners,Unspecified,99777816,89.00,Conferences & Seminars
BEIS,UKRI - EPSRC,03/08/2022,Fees (Including College Members),Governance and Planning,Unspecified,99777852,160.00,Fees (Including College Members)
BEIS,UKRI - EPSRC,03/08/2022,Fees (Including College Members),Business Improvement,Unspecified,99777853,320.00,Fees (Including College Members)
BEIS,UKRI - UKRI,03/08/2022,Unspecified,UKRI - Counter Fraud,Reed Specialist Recruitment Ltd,99777887,1330.94,Staff Salaries
BEIS,UKRI - UKRI,03/08/2022,Unspecified,"UKRI - Data Policy, Governance and MI",Department for Education,99777955,10535.77,Secondments
BEIS,UKRI - UKRI,03/08/2022,Mobile Phone Costs,UKRI - Digital Data and Technology Recharges,Vodafone Ltd,99777978,32.40,Mobile Phone Costs
BEIS,UKRI - UKRI,03/08/2022,Unspecified,UKRI - Digital Data and Technology BAU Costs,Unspecified,99777990,47228.64,Legal & Professional Services
BEIS,UKRI - UKRI,03/08/2022,Consumables,UKRI - JRS,Antalis Ltd t/a Antalis Document Supplies,99777997,35.34,Consumables
BEIS,UKRI - UKRI,03/08/2022,Consumables,UKRI - JRS,Antalis Ltd t/a Antalis Document Supplies,99777999,208.01,Consumables
BEIS,UKRI - UKRI,03/08/2022,Consumables,UKRI - JRS,Antalis Ltd t/a Antalis Document Supplies,99778000,47.34,Consumables
BEIS,UKRI - EPSRC,03/08/2022,Non-staff travel and subsistance,Regional Engagement - OpEx,Unspecified,99778014,40.20,Non-staff travel and subsistance
BEIS,UKRI - UKRI,03/08/2022,Consumables,UKRI - JRS,Ricoh Uk Ltd,99778094,795.72,Consumables
BEIS,UKRI - UKRI,03/08/2022,Consumables,UKRI - JRS,Ricoh Uk Ltd,99778095,1909.73,Consumables
BEIS,UKRI - UKRI,03/08/2022,Consumables,UKRI - JRS,Ricoh Uk Ltd,99778095,795.72,Consumables
BEIS,UKRI - UKRI,03/08/2022,Staff Training,UKRI - Communication and Engagement,Professional Development Group Ltd,99778098,474.00,Staff Training
BEIS,UKRI - UKRI,03/08/2022,Advertising & Promotion,UKRI - Communications Content,First Business Creative Ltd,99778109,360.00,Advertising & Promotion
BEIS,UKRI - UKRI,03/08/2022,Unspecified,UKRI - Estates,Hays Specialist Recruitment Ltd,99778949,3274.63,Agency Staff
BEIS,UKRI - UKRI,03/08/2022,Mobile Phone Costs,UKRI - Digital Data and Technology Recharges,Telefonica UK Ltd (O2),99779030,-30.38,Mobile Phone Costs
BEIS,UKRI - UKRI,03/08/2022,Mobile Phone Costs,UKRI - Digital Data and Technology Recharges,Telefonica UK Ltd (O2),99779030,-7.28,Mobile Phone Costs
BEIS,UKRI - UKRI,03/08/2022,Mobile Phone Costs,UKRI - Digital Data and Technology Recharges,Telefonica UK Ltd (O2),99779031,3130.78,Mobile Phone Costs
BEIS,UKRI - UKRI,03/08/2022,Mobile Phone Costs,UKRI - Digital Data and Technology Recharges,Telefonica UK Ltd (O2),99779031,537.13,Mobile Phone Costs
BEIS,UKRI - UKRI,03/08/2022,Mobile Phone Costs,UKRI - Digital Data and Technology BAU Costs,Telefonica UK Ltd (O2),99779032,200.25,Mobile Phone Costs
BEIS,UKRI - UKRI,03/08/2022,Mobile Phone Costs,UKRI - Digital Data and Technology BAU Costs,Telefonica UK Ltd (O2),99779032,31.65,Mobile Phone Costs
BEIS,UKRI - UKRI,03/08/2022,Mobile Phone Costs,UKRI - Digital Data and Technology BAU Costs,Telefonica UK Ltd (O2),99779033,27.25,Mobile Phone Costs
BEIS,UKRI - UKRI,03/08/2022,Mobile Phone Costs,UKRI - Digital Data and Technology BAU Costs,Telefonica UK Ltd (O2),99779033,5.45,Mobile Phone Costs
BEIS,UKRI - UKRI,03/08/2022,Mobile Phone Costs,UKRI - Digital Data and Technology BAU Costs,Telefonica UK Ltd (O2),99779034,4224.95,Mobile Phone Costs
BEIS,UKRI - UKRI,03/08/2022,Mobile Phone Costs,UKRI - Digital Data and Technology BAU Costs,Telefonica UK Ltd (O2),99779034,844.99,Mobile Phone Costs
BEIS,UKRI - UKRI,03/08/2022,Mobile Phone Costs,UKRI - Digital Data and Technology BAU Costs,Telefonica UK Ltd (O2),99779035,1026.80,Mobile Phone Costs
BEIS,UKRI - UKRI,03/08/2022,Mobile Phone Costs,UKRI - Digital Data and Technology BAU Costs,Telefonica UK Ltd (O2),99779035,201.16,Mobile Phone Costs
BEIS,UKRI - UKRI,03/08/2022,Mobile Phone Costs,UKRI - Digital Data and Technology BAU Costs,Telefonica UK Ltd (O2),99779036,286.39,Mobile Phone Costs
BEIS,UKRI - UKRI,03/08/2022,Mobile Phone Costs,UKRI - Digital Data and Technology BAU Costs,Telefonica UK Ltd (O2),99779036,56.01,Mobile Phone Costs
BEIS,UKRI - UKRI,03/08/2022,Mobile Phone Costs,UKRI - Digital Data and Technology BAU Costs,Telefonica UK Ltd (O2),99779037,28.50,Mobile Phone Costs
BEIS,UKRI - UKRI,03/08/2022,Mobile Phone Costs,UKRI - Digital Data and Technology BAU Costs,Telefonica UK Ltd (O2),99779037,5.70,Mobile Phone Costs
BEIS,UKRI - UKRI,03/08/2022,Mobile Phone Costs,UKRI - Digital Data and Technology BAU Costs,Telefonica UK Ltd (O2),99779038,114.08,Mobile Phone Costs
BEIS,UKRI - UKRI,03/08/2022,Mobile Phone Costs,UKRI - Digital Data and Technology BAU Costs,Telefonica UK Ltd (O2),99779038,19.22,Mobile Phone Costs
BEIS,UKRI - UKRI,03/08/2022,Mobile Phone Costs,UKRI - Digital Data and Technology BAU Costs,Telefonica UK Ltd (O2),99779039,1553.20,Mobile Phone Costs
BEIS,UKRI - UKRI,03/08/2022,Mobile Phone Costs,UKRI - Digital Data and Technology BAU Costs,Telefonica UK Ltd (O2),99779039,295.92,Mobile Phone Costs
BEIS,UKRI - UKRI,03/08/2022,Mobile Phone Costs,UKRI - Digital Data and Technology BAU Costs,Telefonica UK Ltd (O2),99779040,137.11,Mobile Phone Costs
BEIS,UKRI - UKRI,03/08/2022,Mobile Phone Costs,UKRI - Digital Data and Technology BAU Costs,Telefonica UK Ltd (O2),99779040,27.42,Mobile Phone Costs
BEIS,UKRI - UKRI,03/08/2022,Mobile Phone Costs,UKRI - Digital Data and Technology BAU Costs,Telefonica UK Ltd (O2),99779041,286.58,Mobile Phone Costs
BEIS,UKRI - UKRI,03/08/2022,Mobile Phone Costs,UKRI - Digital Data and Technology BAU Costs,Telefonica UK Ltd (O2),99779041,35.72,Mobile Phone Costs
BEIS,UKRI - UKRI,03/08/2022,Mobile Phone Costs,UKRI - Digital Data and Technology BAU Costs,Telefonica UK Ltd (O2),99779042,-11.52,Mobile Phone Costs
BEIS,UKRI - UKRI,03/08/2022,Mobile Phone Costs,UKRI - Digital Data and Technology BAU Costs,Telefonica UK Ltd (O2),99779042,-2.30,Mobile Phone Costs
BEIS,UKRI - UKRI,03/08/2022,Mobile Phone Costs,UKRI - Digital Data and Technology BAU Costs,Telefonica UK Ltd (O2),99779043,6800.17,Mobile Phone Costs
BEIS,UKRI - UKRI,03/08/2022,Mobile Phone Costs,UKRI - Digital Data and Technology BAU Costs,Telefonica UK Ltd (O2),99779043,1198.84,Mobile Phone Costs
BEIS,UKRI - UKRI,03/08/2022,Mobile Phone Costs,UKRI - Digital Data and Technology BAU Costs,Telefonica UK Ltd (O2),99779044,2.88,Mobile Phone Costs
BEIS,UKRI - UKRI,03/08/2022,Mobile Phone Costs,UKRI - Digital Data and Technology BAU Costs,Telefonica UK Ltd (O2),99779044,0.58,Mobile Phone Costs
BEIS,UKRI - UKRI,03/08/2022,Mobile Phone Costs,UKRI - Digital Data and Technology BAU Costs,Telefonica UK Ltd (O2),99779045,2250.95,Mobile Phone Costs
BEIS,UKRI - UKRI,03/08/2022,Mobile Phone Costs,UKRI - Digital Data and Technology BAU Costs,Telefonica UK Ltd (O2),99779045,450.19,Mobile Phone Costs
BEIS,UKRI - UKRI,03/08/2022,Computer Software,UKRI - Digital Data and Technology BAU Costs,Phoenix Software Ltd,99779049,36.96,Computer Software
BEIS,UKRI - UKRI,03/08/2022,Computer Software Licences,UKRI - Digital Data and Technology BAU Costs,Phoenix Software Ltd,99779051,7.08,Computer Software Licences
BEIS,UKRI - UKRI,03/08/2022,Computer Software,UKRI - Digital Data and Technology BAU Costs,Phoenix Software Ltd,99779053,312.84,Computer Software
BEIS,UKRI - EPSRC,03/08/2022,Conferences & Seminars,Programme Delivery ICT,Calder Conference Ltd,99779079,3480.00,Conferences & Seminars
BEIS,UKRI - Research England,03/08/2022,Corporate Events,RE - Research,Calder Conference Ltd,99779088,1643.10,Corporate Events
BEIS,UKRI - UKRI,03/08/2022,Hospitality,International Funds - GCRF,Calder Conference Ltd,99779089,180.00,Hospitality
BEIS,UKRI - UKRI,03/08/2022,T&S UK - Mileage,UKRI - Strategy,Unspecified,99779104,198.00,T&S UK - Mileage
BEIS,UKRI - UKRI,03/08/2022,T&S UK - Subsistence,UKRI - Strategy,Unspecified,99779104,10.00,T&S UK - Subsistence
BEIS,UKRI - Research England,03/08/2022,T&S UK - Public Transport,RE - Knowledge Exchange,Unspecified,99779107,19.70,T&S UK - Public Transport
BEIS,UKRI - UKRI,03/08/2022,UK - Professional Memberships & Subscriptions,UKRI - Procurement and Commercial,Unspecified,99779108,212.00,UK - Professional Memberships & Subscriptions
BEIS,UKRI - EPSRC,03/08/2022,T&S UK - Parking Tolls Congestion Charges,AI and Robotics OpEx,Unspecified,99779109,4.00,T&S UK - Parking Tolls Congestion Charges
BEIS,UKRI - EPSRC,03/08/2022,T&S UK - Parking Tolls Congestion Charges,SPF - Trustworthy Autonomous Systems OpEx,Unspecified,99779109,17.50,T&S UK - Parking Tolls Congestion Charges
BEIS,UKRI - EPSRC,03/08/2022,T&S UK - Subsistence,SPF - Trustworthy Autonomous Systems OpEx,Unspecified,99779109,24.50,T&S UK - Subsistence
BEIS,UKRI - EPSRC,03/08/2022,T&S UK - Subsistence,SPF - Trustworthy Autonomous Systems OpEx,Unspecified,99779109,5.00,T&S UK - Subsistence
BEIS,UKRI - EPSRC,03/08/2022,T&S UK - Vehicle Hire,SPF - Trustworthy Autonomous Systems OpEx,Unspecified,99779109,64.21,T&S UK - Vehicle Hire
BEIS,UKRI - EPSRC,03/08/2022,T&S UK - Other Charges,AI and Robotics OpEx,Unspecified,99779110,24.68,T&S UK - Other Charges
BEIS,UKRI - Research England,03/08/2022,T&S UK - Other Charges,RE - Knowledge Exchange,Unspecified,99779111,5.00,T&S UK - Other Charges
BEIS,UKRI - Research England,03/08/2022,T&S UK - Subsistence,RE - Knowledge Exchange,Unspecified,99779111,7.50,T&S UK - Subsistence
BEIS,UKRI - Research England,03/08/2022,T&S UK - Subsistence,RE - Knowledge Exchange,Unspecified,99779111,25.00,T&S UK - Subsistence
BEIS,UKRI - Research England,03/08/2022,T&S UK - Subsistence,RE - Knowledge Exchange,Unspecified,99779111,7.74,T&S UK - Subsistence
BEIS,UKRI - Research England,03/08/2022,T&S UK - Subsistence,RE - Knowledge Exchange,Unspecified,99779111,15.00,T&S UK - Subsistence
BEIS,UKRI - EPSRC,03/08/2022,T&S UK - Other Charges,Governance and Planning,Unspecified,99779112,8.49,T&S UK - Other Charges
BEIS,UKRI - Research England,03/08/2022,T&S UK - Other Charges,RE - Knowledge Exchange,Unspecified,99779113,190.99,T&S UK - Other Charges
BEIS,UKRI - UKRI,03/08/2022,T&S UK - Parking Tolls Congestion Charges,UKRI - Strategic Finance Business Partners,Unspecified,99779114,6.55,T&S UK - Parking Tolls Congestion Charges
BEIS,UKRI - UKRI,03/08/2022,T&S UK - Public Transport,UKRI - Strategic Finance Business Partners,Unspecified,99779114,36.95,T&S UK - Public Transport
BEIS,UKRI - EPSRC,03/08/2022,T&S UK - Mileage,Regional Engagement - OpEx,Unspecified,99779115,265.50,T&S UK - Mileage
BEIS,UKRI - EPSRC,03/08/2022,T&S UK - Parking Tolls Congestion Charges,Regional Engagement - OpEx,Unspecified,99779115,10.60,T&S UK - Parking Tolls Congestion Charges
BEIS,UKRI - EPSRC,03/08/2022,T&S UK - Subsistence,Regional Engagement - OpEx,Unspecified,99779115,136.41,T&S UK - Subsistence
BEIS,UKRI - EPSRC,03/08/2022,T&S UK - Subsistence,Regional Engagement - OpEx,Unspecified,99779115,20.00,T&S UK - Subsistence
BEIS,UKRI - UKRI,04/08/2022,Unspecified,UKRI-CPO,Alexander Mann Solutions Ltd,99758606,945.06,Contract Staff
BEIS,UKRI - UKRI,04/08/2022,T&S UK - Other Charges,UKRI - Strategic Finance Business Partners,Unspecified,99762680,100.00,T&S UK - Other Charges
BEIS,UKRI - Research England,04/08/2022,Unspecified,RE - Research Excellence Framework (REF),Edge Hill University College,99769586,19000.20,Council & Committee Honoraria
BEIS,UKRI - UKRI,04/08/2022,Unspecified,UKRI - Digital Data and Technology Project Costs,Softcat plc,99770306,6000.00,Legal & Professional Services
BEIS,UKRI - UKRI,04/08/2022,Computer Software,UKRI - Digital Data and Technology Recharges,BYTES SOFTWARE SERVICES LTD,99773316,244792.28,Computer Software
BEIS,UKRI - UKRI,04/08/2022,Unspecified,UKRI-SHARP,Alexander Mann Solutions Ltd,99773387,13861.32,Agency Staff
BEIS,UKRI - UKRI,04/08/2022,Consumables,UKRI - JRS,Banner Group Ltd,99773990,23.33,Consumables
BEIS,UKRI - UKRI,04/08/2022,Staff Training,UKRI - Digital Data and Technology BAU Costs,The Knowledge Academy,99774043,600.00,Staff Training
BEIS,UKRI - UKRI,04/08/2022,Other Bought In Services,UKRI - Estates Projects,Rachel Everington Marketing Ltd,99776104,1160.00,Other Bought In Services
BEIS,UKRI - EPSRC,04/08/2022,Meetings & Catering,Programme Delivery Engineering,Calder Conference Ltd,99776186,7494.72,Meetings & Catering
BEIS,UKRI - UKRI,04/08/2022,Health & Safety (inc. Medicals & Opticians),UKRI - Health and Safety,AM Health & Safety Ltd,99776593,1104.00,Health & Safety (inc. Medicals & Opticians)
BEIS,UKRI - UKRI,04/08/2022,Unspecified,UKRI - Communications Content,Unspecified,99776814,400.00,Legal & Professional Services
BEIS,UKRI - UKRI,04/08/2022,Computer Hardware,UKRI-SHARP,Logicalis Uk Ltd,99777135,6962.21,Computer Hardware
BEIS,UKRI - UKRI,04/08/2022,Consumables,UKRI - JRS,Banner Group Ltd,99777374,209.95,Consumables
BEIS,UKRI - UKRI,04/08/2022,Staff Training,UKRI - Procurement and Commercial,DPSS Ltd,99777985,798.00,Staff Training
BEIS,UKRI - UKRI,04/08/2022,Staff Training,UKRI - Procurement and Commercial,DPSS Ltd,99777985,135.00,Staff Training
BEIS,UKRI - UKRI,04/08/2022,Staff Training,UKRI - Procurement and Commercial,DPSS Ltd,99777985,45.00,Staff Training
BEIS,UKRI - UKRI,04/08/2022,Staff Training,UKRI - Procurement and Commercial,DPSS Ltd,99777985,100.00,Staff Training
BEIS,UKRI - UKRI,04/08/2022,Telecoms - Non Capital Hardware Costs,UKRI - Digital Data and Technology Recharges,Telefonica UK Ltd (O2),99778030,797.09,Telecoms - Non Capital Hardware Costs
BEIS,UKRI - UKRI,04/08/2022,Telecoms - Non Capital Hardware Costs,UKRI - Digital Data and Technology Recharges,Telefonica UK Ltd (O2),99778032,797.09,Telecoms - Non Capital Hardware Costs
BEIS,UKRI - UKRI,04/08/2022,Unspecified,UKRI - Communications Content,Unspecified,99778103,2400.00,Legal & Professional Services
BEIS,UKRI - EPSRC,04/08/2022,Meetings & Catering,Programme Delivery Engineering,Calder Conference Ltd,99778108,1199.15,Meetings & Catering
BEIS,UKRI - EPSRC,04/08/2022,Meetings & Catering,Programme Delivery Engineering,Calder Conference Ltd,99778108,2983.99,Meetings & Catering
BEIS,UKRI - EPSRC,04/08/2022,Meetings & Catering,Programme Delivery Engineering,Calder Conference Ltd,99778108,216.02,Meetings & Catering
BEIS,UKRI - UKRI,04/08/2022,Removal Services,UKRI - Estates,Harrow Green Ltd T/A Restore Harrow Green,99778408,127.01,Removal Services
BEIS,UKRI - UKRI,04/08/2022,Printing & Stationery,UKRI - Estates,Banner Group Ltd,99778878,116.02,Printing & Stationery
BEIS,UKRI - UKRI,04/08/2022,Recruitment Costs,UKRI People and Organisation Development,Onefix Recruitment Ltd,99778989,10980.00,Recruitment Costs
BEIS,UKRI - UKRI,04/08/2022,Computer Software Licences,UKRI - Digital Data and Technology BAU Costs,Phoenix Software Ltd,99779157,4443.18,Computer Software Licences
BEIS,UKRI - UKRI,04/08/2022,Consumables,UKRI - JRS,Kennedy Grinding Ltd,99779187,43.80,Consumables
BEIS,UKRI - Research England,04/08/2022,Unspecified,RE - Research Excellence Framework (REF),Higher Education Funding Council for Wales,99779201,1608.40,Secondments
BEIS,UKRI - UKRI,04/08/2022,Unspecified,"UKRI - Data Policy, Governance and MI",SQW Ltd,99779204,31977.00,Legal & Professional Services
BEIS,UKRI - UKRI,04/08/2022,Hardware/Software Maintenance,UKRI - JRS,Kodak Ltd,99779223,1726.33,Hardware/Software Maintenance
BEIS,UKRI - UKRI,04/08/2022,Staff Training,UKRI - Information Governance,The Chartered Institute of Public Relations (CIPR),99779310,546.00,Staff Training
BEIS,UKRI - EPSRC,04/08/2022,T&S UK - Other Charges,Business Engagement,Unspecified,99779373,22.99,T&S UK - Other Charges
BEIS,UKRI - EPSRC,04/08/2022,T&S UK - Subsistence,University Partnerships,Unspecified,99779374,24.60,T&S UK - Subsistence
BEIS,UKRI - UKRI,04/08/2022,T&S UK - Public Transport,UKRI - Strategy,Unspecified,99779377,39.60,T&S UK - Public Transport
BEIS,UKRI - UKRI,04/08/2022,UK - Professional Memberships & Subscriptions,UKRI Strategic HR Business Partners,Unspecified,99779378,168.00,UK - Professional Memberships & Subscriptions
BEIS,UKRI - UKRI,04/08/2022,T&S UK - Mileage,UKRI Strategic HR Business Partners,Unspecified,99779379,78.30,T&S UK - Mileage
BEIS,UKRI - UKRI,04/08/2022,UK - Professional Memberships & Subscriptions,UKRI - Procurement and Commercial,Unspecified,99779381,212.00,UK - Professional Memberships & Subscriptions
BEIS,UKRI - UKRI,04/08/2022,T&S UK - Mileage,UKRI - Health and Safety,Unspecified,99779382,96.30,T&S UK - Mileage
BEIS,UKRI - UKRI,04/08/2022,T&S UK - Mileage,UKRI Strategic HR Business Partners,Unspecified,99779383,94.50,T&S UK - Mileage
BEIS,UKRI - EPSRC,04/08/2022,T&S UK - Other Charges,University Partnerships,Unspecified,99779384,19.99,T&S UK - Other Charges
BEIS,UKRI - UKRI,04/08/2022,UK - Professional Memberships & Subscriptions,UKRI Strategic HR Business Partners,Unspecified,99779385,168.00,UK - Professional Memberships & Subscriptions
BEIS,UKRI - UKRI,04/08/2022,Rates,UKRI - JBOS,Swindon Borough Council,99779391,64000.00,Rates
BEIS,UKRI - UKRI,04/08/2022,Rates,UKRI - Estates,City of London,99779396,12465.00,Rates
BEIS,UKRI - UKRI,04/08/2022,Rates,UKRI - Estates,City of London,99779397,12465.00,Rates
BEIS,UKRI - UKRI,04/08/2022,Unspecified,UKRI - Legal,HM Land Registry,99779399,51.00,Legal & Professional Services
BEIS,UKRI - Research England,04/08/2022,Unspecified,RE - Research Excellence Framework (REF),University of Dundee,99779852,-150.00,Council & Committee Honoraria
BEIS,UKRI - UKRI,05/08/2022,Advertising & Promotion,UKRI - Communications Content,University College London,99681757,436.40,Advertising & Promotion
BEIS,UKRI - UKRI,05/08/2022,Research Grant Expenditure,UKRI - Communications Content,University College London,99681757,1822.00,Research Grant Expenditure
BEIS,UKRI - UKRI,05/08/2022,Unspecified,UKRI - Digital Data and Technology Project Costs,LA International Computer Consultants Ltd,99737523,2993.40,Contract Staff
BEIS,UKRI - UKRI,05/08/2022,Unspecified,UKRI - Digital Data and Technology Project Costs,LA International Computer Consultants Ltd,99746137,2993.40,Contract Staff
BEIS,UKRI - UKRI,05/08/2022,Fire Protection Services,UKRI - JBOS,Evac+Chair International Ltd,99747724,372.00,Fire Protection Services
BEIS,UKRI - UKRI,05/08/2022,Unspecified,"UKRI - Data Policy, Governance and MI",Department for Education,99754686,9318.18,Secondments
BEIS,UKRI - UKRI,05/08/2022,Unspecified,UKRI - Digital Data and Technology Project Costs,LA International Computer Consultants Ltd,99755283,1796.04,Contract Staff
BEIS,UKRI - UKRI,05/08/2022,UK - Professional Memberships & Subscriptions,UKRI - Strategic Finance Business Partners,Unspecified,99775395,89.00,UK - Professional Memberships & Subscriptions
BEIS,UKRI - UKRI,05/08/2022,T&S UK - Public Transport,UKRI - Communication and Engagement,Unspecified,99775853,182.50,T&S UK - Public Transport
BEIS,UKRI - UKRI,05/08/2022,T&S UK - Subsistence,UKRI - Overseas Office India,Unspecified,99776199,161.30,T&S UK - Subsistence
BEIS,UKRI - EPSRC,05/08/2022,T&S UK - Other Charges,Programme Delivery Engineering,Unspecified,99776200,20.00,T&S UK - Other Charges
BEIS,UKRI - EPSRC,05/08/2022,T&S UK - Other Charges,Programme Delivery Engineering,Unspecified,99776201,363.97,T&S UK - Other Charges
BEIS,UKRI - UKRI,05/08/2022,Unspecified,UKRI-SHARP,Alexander Mann Solutions Ltd,99776473,1575.12,Agency Staff
BEIS,UKRI - UKRI,05/08/2022,Unspecified,"UKRI - Data Policy, Governance and MI",Department for Education,99777577,8053.18,Secondments
BEIS,UKRI - UKRI,05/08/2022,Unspecified,"UKRI - Data Policy, Governance and MI",Department for Education,99777577,1479.04,Secondments
BEIS,UKRI - UKRI,05/08/2022,Removal Services,UKRI - Estates,Harrow Green Ltd T/A Restore Harrow Green,99778410,10.58,Removal Services
BEIS,UKRI - EPSRC,05/08/2022,Fees (Including College Members),Programme Delivery Energy,Unspecified,99778441,160.00,Fees (Including College Members)
BEIS,UKRI - UKRI,05/08/2022,Safety Materials & Equipment,UKRI - Estates,Banner Group Ltd,99778641,8.38,Safety Materials & Equipment
BEIS,UKRI - UKRI,05/08/2022,Staff Training,UKRI - Health and Safety,St John Ambulance Wiltshire,99779256,190.80,Staff Training
BEIS,UKRI - UKRI,05/08/2022,Staff Training,UKRI - Health and Safety,St John Ambulance Wiltshire,99779256,41.40,Staff Training
BEIS,UKRI - UKRI,05/08/2022,Staff Training,UKRI - Health and Safety,St John Ambulance Wiltshire,99779259,232.20,Staff Training
BEIS,UKRI - UKRI,05/08/2022,Staff Training,UKRI - Health and Safety,St John Ambulance Wiltshire,99779262,232.20,Staff Training
BEIS,UKRI - UKRI,05/08/2022,Staff Training,UKRI - Health and Safety,St John Ambulance Wiltshire,99779281,232.20,Staff Training
BEIS,UKRI - UKRI,05/08/2022,Staff Training,UKRI - Health and Safety,St John Ambulance Wiltshire,99779283,754.00,Staff Training
BEIS,UKRI - UKRI,05/08/2022,Staff Training,UKRI - Health and Safety,St John Ambulance Wiltshire,99779283,150.80,Staff Training
BEIS,UKRI - UKRI,05/08/2022,Staff Training,UKRI - Health and Safety,St John Ambulance Wiltshire,99779283,745.20,Staff Training
BEIS,UKRI - UKRI,05/08/2022,Non-staff travel and subsistance,Research Integrity Committee Programme,Unspecified,99779398,344.75,Non-staff travel and subsistance
BEIS,UKRI - UKRI,05/08/2022,Staff Training,UKRI - Culture Leadership and Learning,Geoff Holmes T/A Geoff Holmes Counselling & Consultancy,99779423,90.00,Staff Training
BEIS,UKRI - Research England,05/08/2022,Other Bought In Services,RE - Operations and Private Office,The Office for Students,99779453,112192.80,Other Bought In Services
BEIS,UKRI - UKRI,05/08/2022,IT / Computing Support Services,UKRI - Digital Data and Technology Recharges,DATABARRACKS LTD,99779495,1200.00,IT / Computing Support Services
BEIS,UKRI - UKRI,05/08/2022,IT / Computing Support Services,UKRI - Digital Data and Technology Recharges,DATABARRACKS LTD,99779496,11700.00,IT / Computing Support Services
BEIS,UKRI - UKRI,05/08/2022,Electricity,UKRI - JBOS,EDF Energy,99779497,-40495.28,Electricity
BEIS,UKRI - UKRI,05/08/2022,Electricity,UKRI - JBOS,EDF Energy,99779501,40642.63,Electricity
BEIS,UKRI - EPSRC,05/08/2022,T&S UK - Mileage,Directors and Deputy Directors,Unspecified,99779650,33.30,T&S UK - Mileage
BEIS,UKRI - UKRI,05/08/2022,UK - Professional Memberships & Subscriptions,UKRI - Procurement and Commercial,Unspecified,99779651,212.00,UK - Professional Memberships & Subscriptions
BEIS,UKRI - UKRI,05/08/2022,T&S UK - Other Charges,UKRI - Communications Content,Unspecified,99779652,379.91,T&S UK - Other Charges
BEIS,UKRI - UKRI,05/08/2022,UK - Professional Memberships & Subscriptions,UKRI - Project Management Office,Unspecified,99779657,114.14,UK - Professional Memberships & Subscriptions
BEIS,UKRI - UKRI,05/08/2022,Other Staff Benefits,UKRI - UKRO,Unspecified,99779767,965.86,Other Staff Benefits
BEIS,UKRI - UKRI,05/08/2022,Unspecified,UKRI - Digital Data and Technology Project Costs,Precision Resource Group Ltd T/A iO,99779780,3090.00,Contract Staff
BEIS,UKRI - UKRI,08/08/2022,Unspecified,UKRI - Digital Data and Technology Project Costs,Alexander Mann Solutions Ltd,99761324,3510.84,Contract Staff
BEIS,UKRI - EPSRC,08/08/2022,T&S UK - Vehicle Hire,Business Engagement,Veezu Ltd,99765476,2376.00,T&S UK - Vehicle Hire
BEIS,UKRI - EPSRC,08/08/2022,T&S UK - Vehicle Hire,Directors and Deputy Directors,Veezu Ltd,99765476,7.20,T&S UK - Vehicle Hire
BEIS,UKRI - EPSRC,08/08/2022,T&S UK - Vehicle Hire,Directors and Deputy Directors,Veezu Ltd,99765476,296.64,T&S UK - Vehicle Hire
BEIS,UKRI - EPSRC,08/08/2022,T&S UK - Vehicle Hire,Programme Delivery Energy,Veezu Ltd,99765476,333.84,T&S UK - Vehicle Hire
BEIS,UKRI - UKRI,08/08/2022,Unspecified,UKRI - Digital Data and Technology Project Costs,Alexander Mann Solutions Ltd,99767177,2808.67,Contract Staff
BEIS,UKRI - UKRI,08/08/2022,Recruitment Costs,UKRI People and Organisation Development,Onefix Recruitment Ltd,99773476,120.00,Recruitment Costs
BEIS,UKRI - UKRI,08/08/2022,Recruitment Costs,UKRI People and Organisation Development,Onefix Recruitment Ltd,99773868,834.00,Recruitment Costs
BEIS,UKRI - UKRI,08/08/2022,Recruitment Costs,UKRI People and Organisation Development,Onefix Recruitment Ltd,99774468,120.00,Recruitment Costs
BEIS,UKRI - UKRI,08/08/2022,Recruitment Costs,UKRI People and Organisation Development,Onefix Recruitment Ltd,99774470,540.00,Recruitment Costs
BEIS,UKRI - UKRI,08/08/2022,Recruitment Costs,UKRI People and Organisation Development,Onefix Recruitment Ltd,99774471,2736.00,Recruitment Costs
BEIS,UKRI - UKRI,08/08/2022,Unspecified,UKRI - Digital Data and Technology Project Costs,LA International Computer Consultants Ltd,99776431,3293.40,Contract Staff
BEIS,UKRI - UKRI,08/08/2022,Unspecified,UKRI - Funding Service,Alexander Mann Solutions Ltd,99776556,4410.42,Contract Staff
BEIS,UKRI - UKRI,08/08/2022,Unspecified,UKRI - Funding Service,Alexander Mann Solutions Ltd,99777055,3937.86,Contract Staff
BEIS,UKRI - UKRI,08/08/2022,Unspecified,UKRI - Funding Service,Alexander Mann Solutions Ltd,99777065,4003.56,Contract Staff
BEIS,UKRI - UKRI,08/08/2022,Provisions ( Food etc),UKRI - Estates,Banner Group Ltd,99778640,51.84,Provisions ( Food etc)
BEIS,UKRI - EPSRC,08/08/2022,T&S UK - Public Transport,Programme Delivery Energy,Veezu Ltd,99779511,14.00,T&S UK - Public Transport
BEIS,UKRI - EPSRC,08/08/2022,T&S UK - Public Transport,Programme Delivery Energy,Veezu Ltd,99779511,20.55,T&S UK - Public Transport
BEIS,UKRI - EPSRC,08/08/2022,T&S UK - Public Transport,Programme Delivery Energy,Veezu Ltd,99779511,6.91,T&S UK - Public Transport
BEIS,UKRI - EPSRC,08/08/2022,T&S UK - Public Transport,Programme Delivery Engineering,Veezu Ltd,99779511,199.20,T&S UK - Public Transport
BEIS,UKRI - EPSRC,08/08/2022,T&S UK - Public Transport,Programme Delivery Engineering,Veezu Ltd,99779511,279.85,T&S UK - Public Transport
BEIS,UKRI - EPSRC,08/08/2022,T&S UK - Public Transport,Programme Delivery Engineering,Veezu Ltd,99779511,356.25,T&S UK - Public Transport
BEIS,UKRI - EPSRC,08/08/2022,T&S UK - Public Transport,Programme Delivery Engineering,Veezu Ltd,99779511,356.25,T&S UK - Public Transport
BEIS,UKRI - EPSRC,08/08/2022,T&S UK - Public Transport,Programme Delivery Engineering,Veezu Ltd,99779511,238.31,T&S UK - Public Transport
BEIS,UKRI - UKRI,08/08/2022,Unspecified,UKRI - Funding Service,Alexander Mann Solutions Ltd,99779925,3937.86,Contract Staff
BEIS,UKRI - UKRI,08/08/2022,Unspecified,UKRI - Digital Data and Technology BAU Costs,Alexander Mann Solutions Ltd,99779926,4403.94,Contract Staff
BEIS,UKRI - UKRI,08/08/2022,Unspecified,UKRI-SHARP,Alexander Mann Solutions Ltd,99779928,3236.98,Contract Staff
BEIS,UKRI - UKRI,08/08/2022,Unspecified,UKRI - Digital Data and Technology Project Costs,Alexander Mann Solutions Ltd,99779929,3150.30,Contract Staff
BEIS,UKRI - UKRI,08/08/2022,Unspecified,UKRI - Funding Service,Alexander Mann Solutions Ltd,99779931,4003.56,Contract Staff
BEIS,UKRI - UKRI,08/08/2022,Unspecified,UKRI-SHARP,Alexander Mann Solutions Ltd,99779933,3276.29,Contract Staff
BEIS,UKRI - UKRI,08/08/2022,Unspecified,UKRI-CPO,Alexander Mann Solutions Ltd,99779938,378.02,Contract Staff
BEIS,UKRI - UKRI,08/08/2022,Unspecified,UKRI-SHARP,Alexander Mann Solutions Ltd,99780082,5075.68,Contract Staff
BEIS,UKRI - UKRI,08/08/2022,Unspecified,UKRI-SHARP,Alexander Mann Solutions Ltd,99780083,2925.66,Contract Staff
BEIS,UKRI - UKRI,08/08/2022,Unspecified,UKRI - Funding Service,Alexander Mann Solutions Ltd,99780085,4410.42,Contract Staff
BEIS,UKRI - UKRI,08/08/2022,Unspecified,UKRI - Digital Data and Technology BAU Costs,Alexander Mann Solutions Ltd,99780090,6319.51,Contract Staff
BEIS,UKRI - UKRI,08/08/2022,Unspecified,UKRI - Digital Data and Technology Project Costs,LA International Computer Consultants Ltd,99780117,3293.40,Contract Staff
BEIS,UKRI - UKRI,08/08/2022,Postage & Courier Services,UKRI - Digital Data and Technology BAU Costs,CitySprint (UK) Ltd,99780129,531.04,Postage & Courier Services
BEIS,UKRI - UKRI,08/08/2022,T&S UK - Mileage,UKRI - Procurement and Commercial,Unspecified,99780254,80.10,T&S UK - Mileage
BEIS,UKRI - UKRI,08/08/2022,T&S UK - Other Charges,"Governance, Assurance and Operations",Unspecified,99780255,18.41,T&S UK - Other Charges
BEIS,UKRI - Research England,08/08/2022,T&S UK - Subsistence,RE - Insight and Engagement,Unspecified,99780256,10.05,T&S UK - Subsistence
BEIS,UKRI - UKRI,08/08/2022,T&S UK - Public Transport,UKRI - Estates,Unspecified,99780257,11.20,T&S UK - Public Transport
BEIS,UKRI - UKRI,08/08/2022,T&S UK - Other Charges,UKRI - Strategic Finance Business Partners,Unspecified,99780259,189.61,T&S UK - Other Charges
BEIS,UKRI - UKRI,08/08/2022,Unspecified,UKRI - Human Resources Support,Alexander Mann Solutions Ltd,99780719,3941.95,Agency Staff
BEIS,UKRI - UKRI,08/08/2022,Computer Software,UKRI - Digital Data and Technology BAU Costs,Phoenix Software Ltd,99780892,156.24,Computer Software
BEIS,UKRI - UKRI,08/08/2022,Computer Software,UKRI - Digital Data and Technology BAU Costs,Phoenix Software Ltd,99780895,1602.00,Computer Software
BEIS,UKRI - UKRI,08/08/2022,Gas,UKRI - JBOS,TotalEnergies Gas and Power Ltd,99780909,7801.65,Gas
BEIS,UKRI - UKRI,08/08/2022,Gas,UKRI - JBOS,TotalEnergies Gas and Power Ltd,99780910,4106.35,Gas
BEIS,UKRI - UKRI,08/08/2022,Gas,UKRI - JBOS,TotalEnergies Gas and Power Ltd,99780912,4158.58,Gas
BEIS,UKRI - UKRI,08/08/2022,Computer Software Licences,UKRI - Digital Data and Technology BAU Costs,Nominet,99780947,120.00,Computer Software Licences
BEIS,UKRI - EPSRC,08/08/2022,T&S UK - Vehicle Hire,Business Engagement,Veezu Ltd,99781285,33.60,T&S UK - Vehicle Hire
BEIS,UKRI - EPSRC,08/08/2022,T&S UK - Vehicle Hire,Digital Security and resilience,Veezu Ltd,99781285,20.64,T&S UK - Vehicle Hire
BEIS,UKRI - EPSRC,08/08/2022,T&S UK - Vehicle Hire,Directors and Deputy Directors,Veezu Ltd,99781285,28.40,T&S UK - Vehicle Hire
BEIS,UKRI - EPSRC,08/08/2022,T&S UK - Vehicle Hire,Directors and Deputy Directors,Veezu Ltd,99781285,30.16,T&S UK - Vehicle Hire
BEIS,UKRI - EPSRC,08/08/2022,T&S UK - Vehicle Hire,Programme Delivery Engineering,Veezu Ltd,99781285,468.72,T&S UK - Vehicle Hire
BEIS,UKRI - EPSRC,08/08/2022,T&S UK - Vehicle Hire,Programme Delivery Healthcare,Veezu Ltd,99781285,162.78,T&S UK - Vehicle Hire
BEIS,UKRI - EPSRC,08/08/2022,T&S UK - Vehicle Hire,Programme Delivery ICT,Veezu Ltd,99781285,314.12,T&S UK - Vehicle Hire
BEIS,UKRI - EPSRC,08/08/2022,T&S UK - Vehicle Hire,Programme Delivery ICT,Veezu Ltd,99781285,284.20,T&S UK - Vehicle Hire
BEIS,UKRI - EPSRC,08/08/2022,T&S UK - Vehicle Hire,Programme Delivery Quantum Technology,Veezu Ltd,99781285,529.20,T&S UK - Vehicle Hire
BEIS,UKRI - EPSRC,08/08/2022,T&S UK - Vehicle Hire,Regional Engagement - OpEx,Veezu Ltd,99781285,22.32,T&S UK - Vehicle Hire
BEIS,UKRI - UKRI,09/08/2022,Unspecified,UKRI - UKRO,Proximus SA,99771045,985.09,Legal & Professional Services
BEIS,UKRI - UKRI,09/08/2022,Unspecified,UKRI - UKRO,Proximus SA,99771050,985.09,Legal & Professional Services
BEIS,UKRI - UKRI,09/08/2022,T&S UK - Accommodation,UKRI People and Organisation Development,Unspecified,99775398,166.50,T&S UK - Accommodation
BEIS,UKRI - UKRI,09/08/2022,T&S UK - Public Transport,UKRI People and Organisation Development,Unspecified,99775398,80.20,T&S UK - Public Transport
BEIS,UKRI - Research England,09/08/2022,Unspecified,RE - Operations and Private Office,DAC Beachcroft LLP,99776107,3778.20,Legal & Professional Services
BEIS,UKRI - UKRI,09/08/2022,Unspecified,UKRI - Digital Data and Technology Project Costs,Alexander Mann Solutions Ltd,99776568,7560.72,Contract Staff
BEIS,UKRI - Research England,09/08/2022,Unspecified,RE - Research Excellence Framework (REF),University of Liverpool,99776982,1000.00,Council & Committee Honoraria
BEIS,UKRI - UKRI,09/08/2022,Unspecified,UKRI - Digital Data and Technology Project Costs,Alexander Mann Solutions Ltd,99777057,3307.80,Contract Staff
BEIS,UKRI - UKRI,09/08/2022,Consultancy Services,UKRI - Project Management Office,TMI Systems Ltd,99777559,8535.32,Consultancy Services
BEIS,UKRI - Research England,09/08/2022,Unspecified,RE - Research Excellence Framework (REF),University of Strathclyde,99777562,1500.00,Council & Committee Honoraria
BEIS,UKRI - UKRI,09/08/2022,Postage & Courier Services,UKRI - JBOS,Unspecified,99778008,3155.65,Postage & Courier Services
BEIS,UKRI - UKRI,09/08/2022,Postage & Courier Services,UKRI - JBOS,Unspecified,99778047,7.45,Postage & Courier Services
BEIS,UKRI - UKRI,09/08/2022,Postage & Courier Services,UKRI - JBOS,Unspecified,99778051,577.80,Postage & Courier Services
BEIS,UKRI - UKRI,09/08/2022,Computer Software,UKRI - Digital Data and Technology BAU Costs,Changepoint Canada ULC,99778953,635.70,Computer Software
BEIS,UKRI - UKRI,09/08/2022,Unspecified,UKRI - Digital Data and Technology Project Costs,Alexander Mann Solutions Ltd,99779924,3307.80,Contract Staff
BEIS,UKRI - UKRI,09/08/2022,Unspecified,UKRI - Digital Data and Technology Project Costs,Alexander Mann Solutions Ltd,99779932,3780.36,Contract Staff
BEIS,UKRI - UKRI,09/08/2022,Unspecified,UKRI - Strategic Finance Business Partners,Alexander Mann Solutions Ltd,99779939,1260.12,Agency Staff
BEIS,UKRI - UKRI,09/08/2022,Non-staff travel and subsistance,UKRI - Communications Content,Unspecified,99780364,50.00,Non-staff travel and subsistance
BEIS,UKRI - UKRI,09/08/2022,Advertising & Promotion,UKRI - Communications Themes and Partnerships,Echo Research Ltd,99780367,2100.00,Advertising & Promotion
BEIS,UKRI - UKRI,09/08/2022,Marketing & PR,UKRI - Communications Content,First Create the Media Ltd,99780381,2640.00,Marketing & PR
BEIS,UKRI - UKRI,09/08/2022,Unspecified,UKRI - Counter Fraud,Reed Specialist Recruitment Ltd,99780411,1330.94,Staff Salaries
BEIS,UKRI - UKRI,09/08/2022,Recruitment Costs,UKRI People and Organisation Development,Agenda Resource Management Ltd,99780737,2281.85,Recruitment Costs
BEIS,UKRI - EPSRC,09/08/2022,Conferences & Seminars,Programme Delivery Maths,Smith Institute,99781186,540.00,Conferences & Seminars
BEIS,UKRI - EPSRC,09/08/2022,Non-staff travel and subsistance,Regional Engagement - OpEx,Unspecified,99781193,91.68,Non-staff travel and subsistance
BEIS,UKRI - EPSRC,09/08/2022,Fees (Including College Members),Governance and Planning,Unspecified,99781194,160.00,Fees (Including College Members)
BEIS,UKRI - EPSRC,09/08/2022,Fees (Including College Members),Business Improvement,Unspecified,99781195,320.00,Fees (Including College Members)
BEIS,UKRI - EPSRC,09/08/2022,Fees (Including College Members),Business Improvement,Unspecified,99781196,160.00,Fees (Including College Members)
BEIS,UKRI - EPSRC,09/08/2022,Fees (Including College Members),Business Improvement,Unspecified,99781197,160.00,Fees (Including College Members)
BEIS,UKRI - EPSRC,09/08/2022,Fees (Including College Members),Business Improvement,Unspecified,99781198,160.00,Fees (Including College Members)
BEIS,UKRI - EPSRC,09/08/2022,Fees (Including College Members),Business Improvement,Unspecified,99781199,160.00,Fees (Including College Members)
BEIS,UKRI - EPSRC,09/08/2022,Fees (Including College Members),Business Improvement,Unspecified,99781200,160.00,Fees (Including College Members)
BEIS,UKRI - EPSRC,09/08/2022,Fees (Including College Members),Business Improvement,Unspecified,99781201,160.00,Fees (Including College Members)
BEIS,UKRI - EPSRC,09/08/2022,Fees (Including College Members),Business Improvement,Unspecified,99781202,160.00,Fees (Including College Members)
BEIS,UKRI - EPSRC,09/08/2022,Fees (Including College Members),Business Improvement,Unspecified,99781203,240.00,Fees (Including College Members)
BEIS,UKRI - EPSRC,09/08/2022,Non-staff travel and subsistance,Programme Delivery Energy,Unspecified,99781204,619.90,Non-staff travel and subsistance
BEIS,UKRI - UKRI,09/08/2022,Insurance,UKRI - UKRO,Willis Towers Watson SA,99781240,263.98,Insurance
BEIS,UKRI - Research England,09/08/2022,Unspecified,RE - Research Excellence Framework (REF),University College London,99781271,1750.00,Council & Committee Honoraria
BEIS,UKRI - EPSRC,09/08/2022,Unspecified,PSU Finance,Unspecified,99781306,137.51,Other Income
BEIS,UKRI - EPSRC,09/08/2022,T&S UK - Vehicle Hire,Regional Engagement - OpEx,Enterprise Rent-A-Car UK Ltd,99781315,98.64,T&S UK - Vehicle Hire
BEIS,UKRI - EPSRC,09/08/2022,T&S UK - Vehicle Hire,Regional Engagement - OpEx,Enterprise Rent-A-Car UK Ltd,99781315,19.73,T&S UK - Vehicle Hire
BEIS,UKRI - UKRI,09/08/2022,T&S UK - Vehicle Hire,UKRI - Digital Data and Technology BAU Costs,Enterprise Rent-A-Car UK Ltd,99781315,111.99,T&S UK - Vehicle Hire
BEIS,UKRI - UKRI,09/08/2022,T&S UK - Vehicle Hire,UKRI - Digital Data and Technology BAU Costs,Enterprise Rent-A-Car UK Ltd,99781315,22.40,T&S UK - Vehicle Hire
BEIS,UKRI - UKRI,09/08/2022,Unspecified,UKRI - Digital Data and Technology BAU Costs,OXINET LTD,99781360,116640.00,Legal & Professional Services
BEIS,UKRI - UKRI,09/08/2022,Other Staff Benefits,UKRI Strategic HR Business Partners,Health Assured Ltd,99781363,1500.00,Other Staff Benefits
BEIS,UKRI - UKRI,09/08/2022,Other Staff Benefits,UKRI Strategic HR Business Partners,Health Assured Ltd,99781364,1500.00,Other Staff Benefits
BEIS,UKRI - UKRI,09/08/2022,T&S UK - Other Charges,UKRI - Counter Fraud,Unspecified,99781444,9.60,T&S UK - Other Charges
BEIS,UKRI - UKRI,09/08/2022,T&S UK - Subsistence,UKRI - Counter Fraud,Unspecified,99781444,25.00,T&S UK - Subsistence
BEIS,UKRI - UKRI,09/08/2022,T&S UK - Subsistence,UKRI - Counter Fraud,Unspecified,99781444,39.80,T&S UK - Subsistence
BEIS,UKRI - UKRI,09/08/2022,T&S UK - Subsistence,UKRI - Counter Fraud,Unspecified,99781444,75.00,T&S UK - Subsistence
BEIS,UKRI - EPSRC,09/08/2022,T&S UK - Subsistence,Regional Engagement - OpEx,Unspecified,99781445,61.00,T&S UK - Subsistence
BEIS,UKRI - EPSRC,09/08/2022,T&S UK - Subsistence,Regional Engagement - OpEx,Unspecified,99781445,27.04,T&S UK - Subsistence
BEIS,UKRI - EPSRC,09/08/2022,T&S UK - Subsistence,Regional Engagement - OpEx,Unspecified,99781445,10.00,T&S UK - Subsistence
BEIS,UKRI - EPSRC,09/08/2022,T&S UK - Vehicle Hire,Regional Engagement - OpEx,Unspecified,99781445,50.26,T&S UK - Vehicle Hire
BEIS,UKRI - UKRI,09/08/2022,UK - Professional Memberships & Subscriptions,UKRI Strategic HR Business Partners,Unspecified,99781446,195.00,UK - Professional Memberships & Subscriptions
BEIS,UKRI - UKRI,09/08/2022,UK - Professional Memberships & Subscriptions,UKRI - Strategic Finance Business Partners,Unspecified,99781447,116.00,UK - Professional Memberships & Subscriptions
BEIS,UKRI - UKRI,09/08/2022,T&S UK - Other Charges,UKRI - JSS,Unspecified,99781449,11.00,T&S UK - Other Charges
BEIS,UKRI - UKRI,09/08/2022,T&S UK - Other Charges,UKRI - JBOS,Unspecified,99781450,94.00,T&S UK - Other Charges
BEIS,UKRI - EPSRC,09/08/2022,T&S UK - Mileage,Digital Security and resilience,Unspecified,99781451,56.70,T&S UK - Mileage
BEIS,UKRI - UKRI,09/08/2022,Conferences & Seminars,UKRI - Strategic Finance Business Partners,Unspecified,99781452,89.00,Conferences & Seminars
BEIS,UKRI - EPSRC,09/08/2022,T&S UK - Other Charges,Governance and Planning,Unspecified,99781453,25.89,T&S UK - Other Charges
BEIS,UKRI - UKRI,10/08/2022,Staff Training,UKRI - Culture Leadership and Learning,Learning Solutions Matter Ltd,99758765,1440.00,Staff Training
BEIS,UKRI - UKRI,10/08/2022,Staff Training,UKRI - Culture Leadership and Learning,Learning Solutions Matter Ltd,99758765,9360.00,Staff Training
BEIS,UKRI - UKRI,10/08/2022,Unspecified,UKRI - Digital Data and Technology Project Costs,Alexander Mann Solutions Ltd,99767140,14491.38,Contract Staff
BEIS,UKRI - UKRI,10/08/2022,Unspecified,UKRI - Digital Data and Technology Project Costs,Alexander Mann Solutions Ltd,99774031,6300.60,Contract Staff
BEIS,UKRI - UKRI,10/08/2022,Corporate Events,UKRI - Communications Projects and Services,Hawthorn Theatrical Ltd T/A Encore,99774173,2001.60,Corporate Events
BEIS,UKRI - UKRI,10/08/2022,Health & Safety (inc. Medicals & Opticians),UKRI - Health and Safety,Midmeds Ltd,99774485,5.99,Health & Safety (inc. Medicals & Opticians)
BEIS,UKRI - UKRI,10/08/2022,Health & Safety (inc. Medicals & Opticians),UKRI - Health and Safety,Midmeds Ltd,99774485,128.26,Health & Safety (inc. Medicals & Opticians)
BEIS,UKRI - UKRI,10/08/2022,Health & Safety (inc. Medicals & Opticians),UKRI - Health and Safety,Midmeds Ltd,99774485,1.20,Health & Safety (inc. Medicals & Opticians)
BEIS,UKRI - UKRI,10/08/2022,Unspecified,UKRI - Digital Data and Technology Project Costs,Precision Resource Group Ltd T/A iO,99776606,4485.00,Contract Staff
BEIS,UKRI - UKRI,10/08/2022,Health & Safety (inc. Medicals & Opticians),"UKRI People, Policies and Management",BMI Healthcare Limited,99776750,89.00,Health & Safety (inc. Medicals & Opticians)
BEIS,UKRI - UKRI,10/08/2022,Unspecified,UKRI - Communications Content,First Business Creative Ltd,99777636,7361.34,Legal & Professional Services
BEIS,UKRI - UKRI,10/08/2022,Health & Safety (inc. Medicals & Opticians),UKRI - Health and Safety,Premier Farnell UK Ltd T/A Farnell Onecall,99778639,31.91,Health & Safety (inc. Medicals & Opticians)
BEIS,UKRI - UKRI,10/08/2022,Unspecified,UKRI - Digital Data and Technology Project Costs,Precision Resource Group Ltd T/A iO,99779771,4485.00,Contract Staff
BEIS,UKRI - UKRI,10/08/2022,Unspecified,UKRI - Digital Data and Technology Project Costs,Precision Resource Group Ltd T/A iO,99779785,2496.00,Contract Staff
BEIS,UKRI - UKRI,10/08/2022,Unspecified,UKRI - Communications Web and Intranet Service,Alexander Mann Solutions Ltd,99779941,4867.63,Contract Staff
BEIS,UKRI - UKRI,10/08/2022,Unspecified,UKRI-SHARP,Alexander Mann Solutions Ltd,99780080,3079.62,Contract Staff
BEIS,UKRI - Research England,10/08/2022,IT / Computing Support Services,RE - Research Excellence Framework (REF),Connect Internet Solutions Ltd,99780396,1080.00,IT / Computing Support Services
BEIS,UKRI - Research England,10/08/2022,IT / Computing Support Services,RE - Research Excellence Framework (REF),Connect Internet Solutions Ltd,99780399,1837.80,IT / Computing Support Services
BEIS,UKRI - Research England,10/08/2022,IT / Computing Support Services,RE - Research Excellence Framework (REF),Connect Internet Solutions Ltd,99780401,3312.00,IT / Computing Support Services
BEIS,UKRI - UKRI,10/08/2022,Storage & Archiving Costs,UKRI - Information Governance,Restore plc,99780705,3072.10,Storage & Archiving Costs
BEIS,UKRI - UKRI,10/08/2022,Unspecified,UKRI-SHARP,Vector Resourcing Ltd,99781250,16517.59,Contract Staff
BEIS,UKRI - EPSRC,10/08/2022,Fees (Including College Members),Business Improvement,Unspecified,99781479,160.00,Fees (Including College Members)
BEIS,UKRI - EPSRC,10/08/2022,Fees (Including College Members),Business Improvement,Unspecified,99781480,160.00,Fees (Including College Members)
BEIS,UKRI - EPSRC,10/08/2022,Fees (Including College Members),Business Improvement,Unspecified,99781481,160.00,Fees (Including College Members)
BEIS,UKRI - EPSRC,10/08/2022,Fees (Including College Members),Business Improvement,Unspecified,99781482,160.00,Fees (Including College Members)
BEIS,UKRI - UKRI,10/08/2022,Unspecified,UKRI - Culture Leadership and Learning,DJS Research Limited,99781485,31740.00,Legal & Professional Services
BEIS,UKRI - EPSRC,10/08/2022,Fees (Including College Members),Business Improvement,Unspecified,99781495,320.00,Fees (Including College Members)
BEIS,UKRI - EPSRC,10/08/2022,Fees (Including College Members),Business Improvement,Unspecified,99781496,320.00,Fees (Including College Members)
BEIS,UKRI - EPSRC,10/08/2022,Fees (Including College Members),Business Improvement,Unspecified,99781497,320.00,Fees (Including College Members)
BEIS,UKRI - UKRI,10/08/2022,General Building Maintenance,UKRI - JBOS,Interior Design And Developments,99782724,1704.00,General Building Maintenance
BEIS,UKRI - UKRI,10/08/2022,Postage & Courier Services,UKRI - JBOS,Unspecified,99782745,211.00,Postage & Courier Services
BEIS,UKRI - UKRI,10/08/2022,Staff Training,"Governance, Assurance and Operations",Wise Owl Business Solutions Ltd,99782747,954.00,Staff Training
BEIS,UKRI - UKRI,10/08/2022,Staff Training,UKRI - Research Funding Support,Wise Owl Business Solutions Ltd,99782751,954.00,Staff Training
BEIS,UKRI - UKRI,10/08/2022,T&S UK - Subsistence,UKRI - Executive Group,Unspecified,99782855,25.00,T&S UK - Subsistence
BEIS,UKRI - UKRI,10/08/2022,T&S UK - Parking Tolls Congestion Charges,UKRI Strategic HR Business Partners,Unspecified,99782858,7.10,T&S UK - Parking Tolls Congestion Charges
BEIS,UKRI - UKRI,10/08/2022,T&S UK - Subsistence,UKRI Strategic HR Business Partners,Unspecified,99782858,13.17,T&S UK - Subsistence
BEIS,UKRI - UKRI,10/08/2022,T&S UK - Vehicle Hire,UKRI Strategic HR Business Partners,Unspecified,99782858,63.61,T&S UK - Vehicle Hire
BEIS,UKRI - UKRI,10/08/2022,T&S UK - Public Transport,"UKRI People, Policies and Management",Unspecified,99782859,57.39,T&S UK - Public Transport
BEIS,UKRI - UKRI,10/08/2022,T&S UK - Parking Tolls Congestion Charges,UKRI Strategic HR Business Partners,Unspecified,99782860,7.10,T&S UK - Parking Tolls Congestion Charges
BEIS,UKRI - UKRI,10/08/2022,T&S UK - Subsistence,UKRI Strategic HR Business Partners,Unspecified,99782860,2.50,T&S UK - Subsistence
BEIS,UKRI - UKRI,10/08/2022,Health & Safety (inc. Medicals & Opticians),UKRI - BEIS ODA,Unspecified,99782861,100.00,Health & Safety (inc. Medicals & Opticians)
BEIS,UKRI - UKRI,11/08/2022,Cleaning Services,UKRI - Estates,NESTA,99489713,12597.78,Cleaning Services
BEIS,UKRI - UKRI,11/08/2022,General Building Maintenance,UKRI - Estates,NESTA,99489713,80.16,General Building Maintenance
BEIS,UKRI - UKRI,11/08/2022,Hardware/Software Maintenance,UKRI - JRS,Eprod Software B.V,99772424,730.92,Hardware/Software Maintenance
BEIS,UKRI - UKRI,11/08/2022,T&S UK - Other Charges,UKRI - Digital Data and Technology BAU Costs,Unspecified,99776212,365.98,T&S UK - Other Charges
BEIS,UKRI - UKRI,11/08/2022,T&S UK - Subsistence,UKRI - Digital Data and Technology BAU Costs,Unspecified,99776212,19.50,T&S UK - Subsistence
BEIS,UKRI - UKRI,11/08/2022,T&S UK - Subsistence,UKRI - Digital Data and Technology BAU Costs,Unspecified,99776212,4.75,T&S UK - Subsistence
BEIS,UKRI - UKRI,11/08/2022,Telecoms - Non Capital Hardware Costs,UKRI - Digital Data and Technology BAU Costs,Telefonica UK Ltd (O2),99776507,58.80,Telecoms - Non Capital Hardware Costs
BEIS,UKRI - UKRI,11/08/2022,Unspecified,UKRI - Digital Data and Technology Project Costs,LA International Computer Consultants Ltd,99776657,2394.72,Contract Staff
BEIS,UKRI - UKRI,11/08/2022,Health & Safety (inc. Medicals & Opticians),"UKRI People, Policies and Management",BMI Healthcare Limited,99776748,333.00,Health & Safety (inc. Medicals & Opticians)
BEIS,UKRI - UKRI,11/08/2022,Unspecified,UKRI - Digital Data and Technology BAU Costs,Alexander Mann Solutions Ltd,99777060,3780.36,Contract Staff
BEIS,UKRI - EPSRC,11/08/2022,T&S UK - Subsistence,Commercialisation OpEx,Unspecified,99777169,23.38,T&S UK - Subsistence
BEIS,UKRI - UKRI,11/08/2022,Safety Materials & Equipment,UKRI - Estates,Premier Farnell UK Ltd T/A Farnell Onecall,99777373,6.58,Safety Materials & Equipment
BEIS,UKRI - UKRI,11/08/2022,Safety Materials & Equipment,UKRI - Estates,Premier Farnell UK Ltd T/A Farnell Onecall,99777373,2.59,Safety Materials & Equipment
BEIS,UKRI - UKRI,11/08/2022,Telecoms - Non Capital Hardware Costs,UKRI - Digital Data and Technology Recharges,Telefonica UK Ltd (O2),99778039,20.40,Telecoms - Non Capital Hardware Costs
BEIS,UKRI - EPSRC,11/08/2022,Corporate Events,Directors and Deputy Directors,Calder Conference Ltd,99779081,1971.00,Corporate Events
BEIS,UKRI - UKRI,11/08/2022,T&S UK - Public Transport,UKRI - Executive Group,Unspecified,99779648,14.71,T&S UK - Public Transport
BEIS,UKRI - UKRI,11/08/2022,T&S UK - Subsistence,UKRI - Executive Group,Unspecified,99779648,3.30,T&S UK - Subsistence
BEIS,UKRI - UKRI,11/08/2022,T&S UK - Subsistence,UKRI - Executive Group,Unspecified,99779648,37.00,T&S UK - Subsistence
BEIS,UKRI - UKRI,11/08/2022,T&S UK - Subsistence,UKRI - Executive Group,Unspecified,99779648,5.80,T&S UK - Subsistence
BEIS,UKRI - UKRI,11/08/2022,Unspecified,UKRI - Digital Data and Technology BAU Costs,Alexander Mann Solutions Ltd,99779927,3780.36,Contract Staff
BEIS,UKRI - UKRI,11/08/2022,Unspecified,UKRI - Digital Data and Technology Project Costs,Alexander Mann Solutions Ltd,99779937,3695.58,Contract Staff
BEIS,UKRI - UKRI,11/08/2022,Unspecified,UKRI - Digital Data and Technology Project Costs,LA International Computer Consultants Ltd,99780115,2993.40,Contract Staff
BEIS,UKRI - UKRI,11/08/2022,Unspecified,UKRI - Digital Data and Technology Project Costs,LA International Computer Consultants Ltd,99780119,3593.40,Contract Staff
BEIS,UKRI - UKRI,11/08/2022,Recruitment Costs,UKRI People and Organisation Development,Onefix Recruitment Ltd,99780299,3900.00,Recruitment Costs
BEIS,UKRI - UKRI,11/08/2022,Printing & Stationery,UKRI - JBOS,Banner Group Ltd,99780551,27.22,Printing & Stationery
BEIS,UKRI - EPSRC,11/08/2022,Nursery Deductions,Balance Sheet,EDENRED (UK GROUP) LTD,99780699,47033.32,Nursery Deductions
BEIS,UKRI - UKRI,11/08/2022,Computer Software,UKRI - Digital Data and Technology BAU Costs,Smartsurvey Ltd,99780886,1320.00,Computer Software
BEIS,UKRI - UKRI,11/08/2022,Printing & Stationery,UKRI - JBOS,Banner Group Ltd,99781123,1.90,Printing & Stationery
BEIS,UKRI - UKRI,11/08/2022,Printing & Stationery,UKRI - JRS,Colourbyte Europe Ltd,99782349,1.99,Printing & Stationery
BEIS,UKRI - UKRI,11/08/2022,Printing & Stationery,UKRI - JRS,Colourbyte Europe Ltd,99782349,9.95,Printing & Stationery
BEIS,UKRI - UKRI,11/08/2022,Printing & Stationery,UKRI - JRS,Colourbyte Europe Ltd,99782349,260.04,Printing & Stationery
BEIS,UKRI - EPSRC,11/08/2022,Fees (Including College Members),Programme Delivery Healthcare,Unspecified,99782387,160.00,Fees (Including College Members)
BEIS,UKRI - UKRI,11/08/2022,Unspecified,UKRI - Estates,Hays Specialist Recruitment Ltd,99782401,389.26,Agency Staff
BEIS,UKRI - UKRI,11/08/2022,Unspecified,UKRI - Estates,Hays Specialist Recruitment Ltd,99782401,2282.06,Agency Staff
BEIS,UKRI - UKRI,11/08/2022,Consumables,UKRI - JRS,Presco UK Ltd,99782471,13.19,Consumables
BEIS,UKRI - UKRI,11/08/2022,Consumables,UKRI - JRS,Presco UK Ltd,99782471,21.77,Consumables
BEIS,UKRI - EPSRC,11/08/2022,T&S UK - Public Transport,AI and Robotics OpEx,Unspecified,99782491,4.50,T&S UK - Public Transport
BEIS,UKRI - EPSRC,11/08/2022,T&S UK - Public Transport,AI and Robotics OpEx,Unspecified,99782491,40.25,T&S UK - Public Transport
BEIS,UKRI - EPSRC,11/08/2022,T&S UK - Subsistence,AI and Robotics OpEx,Unspecified,99782491,23.10,T&S UK - Subsistence
BEIS,UKRI - EPSRC,11/08/2022,T&S UK - Subsistence,AI and Robotics OpEx,Unspecified,99782491,28.20,T&S UK - Subsistence
BEIS,UKRI - EPSRC,11/08/2022,T&S UK - Subsistence,AI and Robotics OpEx,Unspecified,99782491,5.00,T&S UK - Subsistence
BEIS,UKRI - EPSRC,11/08/2022,T&S UK - Accommodation,Digital Security and resilience,Unspecified,99782492,614.01,T&S UK - Accommodation
BEIS,UKRI - EPSRC,11/08/2022,T&S UK - Flights,Digital Security and resilience,Unspecified,99782492,299.51,T&S UK - Flights
BEIS,UKRI - EPSRC,11/08/2022,T&S UK - Other Charges,Digital Security and resilience,Unspecified,99782492,1.45,T&S UK - Other Charges
BEIS,UKRI - EPSRC,11/08/2022,T&S UK - Public Transport,Digital Security and resilience,Unspecified,99782492,64.10,T&S UK - Public Transport
BEIS,UKRI - EPSRC,11/08/2022,T&S UK - Public Transport,Digital Security and resilience,Unspecified,99782492,5.10,T&S UK - Public Transport
BEIS,UKRI - EPSRC,11/08/2022,T&S UK - Subsistence,Digital Security and resilience,Unspecified,99782492,22.75,T&S UK - Subsistence
BEIS,UKRI - EPSRC,11/08/2022,T&S UK - Subsistence,Digital Security and resilience,Unspecified,99782492,32.35,T&S UK - Subsistence
BEIS,UKRI - EPSRC,11/08/2022,T&S UK - Subsistence,AI and Robotics OpEx,Unspecified,99782493,13.65,T&S UK - Subsistence
BEIS,UKRI - UKRI,11/08/2022,HR Assignment Default Expense,UKRI - Communications Web and Intranet Service,EDENRED (UK GROUP) LTD,99782755,2730.00,HR Assignment Default Expense
BEIS,UKRI - UKRI,11/08/2022,Corporate Events,UKRI - Management Reporting,A2i Transcription Services Ltd,99782918,1565.00,Corporate Events
BEIS,UKRI - UKRI,11/08/2022,Non-staff travel and subsistance,UKRI - Research Funding Support,Unspecified,99782957,112.30,Non-staff travel and subsistance
BEIS,UKRI - UKRI,11/08/2022,Non-staff travel and subsistance,UKRI - Research Funding Support,Unspecified,99782958,33.79,Non-staff travel and subsistance
BEIS,UKRI - UKRI,11/08/2022,Non-staff travel and subsistance,UKRI - Research Funding Support,Unspecified,99782959,127.25,Non-staff travel and subsistance
BEIS,UKRI - UKRI,11/08/2022,Non-staff travel and subsistance,UKRI - Research Funding Support,Unspecified,99782960,120.67,Non-staff travel and subsistance
BEIS,UKRI - EPSRC,11/08/2022,Fees (Including College Members),Manufacturing and Circular Economy,Unspecified,99782961,160.00,Fees (Including College Members)
BEIS,UKRI - EPSRC,11/08/2022,Fees (Including College Members),Business Improvement,Unspecified,99782962,160.00,Fees (Including College Members)
BEIS,UKRI - EPSRC,11/08/2022,Fees (Including College Members),Business Improvement,Unspecified,99782963,160.00,Fees (Including College Members)
BEIS,UKRI - UKRI,11/08/2022,Conferences & Seminars,UKRI - Communications External Affairs,Brenda Grant and Peter Walker T/A Vista Events,99782984,4540.60,Conferences & Seminars
BEIS,UKRI - UKRI,11/08/2022,Conferences & Seminars,UKRI - Communications External Affairs,Brenda Grant and Peter Walker T/A Vista Events,99782986,4536.52,Conferences & Seminars
BEIS,UKRI - UKRI,11/08/2022,Corporate Events,UKRI - Management Reporting,Ministry Of Design Ltd,99782997,840.00,Corporate Events
BEIS,UKRI - UKRI,11/08/2022,Other Bought In Services,"Governance, Assurance and Operations",KPMG LLP,99783035,30000.00,Other Bought In Services
BEIS,UKRI - UKRI,11/08/2022,Tax Advice,UKRI - Financial Accounting,KPMG LLP,99783040,43726.50,Tax Advice
BEIS,UKRI - EPSRC,12/08/2022,Unspecified,Directors and Deputy Directors,University of Edinburgh,99738162,7349.74,Secondments
BEIS,UKRI - EPSRC,12/08/2022,Unspecified,Directors and Deputy Directors,University of Edinburgh,99738162,272.22,Secondments
BEIS,UKRI - UKRI,12/08/2022,Purchase of non capital equipment,UKRI - Strategy,Abbey Business Interiors Ltd,99753153,422.40,Purchase of non capital equipment
BEIS,UKRI - UKRI,12/08/2022,Meetings & Catering,UKRI - Secretariat,University of Edinburgh,99757466,5935.60,Meetings & Catering
BEIS,UKRI - UKRI,12/08/2022,T&S UK - Subsistence,UKRI - Digital Data and Technology BAU Costs,Unspecified,99775391,25.00,T&S UK - Subsistence
BEIS,UKRI - UKRI,12/08/2022,T&S UK - Subsistence,UKRI - Digital Data and Technology BAU Costs,Unspecified,99775391,5.00,T&S UK - Subsistence
BEIS,UKRI - UKRI,12/08/2022,Telecoms - Non Capital Hardware Costs,UKRI - Digital Data and Technology BAU Costs,Telefonica UK Ltd (O2),99776493,412.80,Telecoms - Non Capital Hardware Costs
BEIS,UKRI - UKRI,12/08/2022,Computer Software Licences,UKRI - Digital Data and Technology Recharges,Unspecified,99776821,3299.95,Computer Software Licences
BEIS,UKRI - UKRI,12/08/2022,Telecoms - Non Capital Hardware Costs,UKRI - Digital Data and Technology BAU Costs,Telefonica UK Ltd (O2),99781181,58.80,Telecoms - Non Capital Hardware Costs
BEIS,UKRI - EPSRC,12/08/2022,Unspecified,Balance Sheet,HM Revenue & Customs,99782195,43054.76,PAYE Payable Salaries
BEIS,UKRI - EPSRC,12/08/2022,Unspecified,Balance Sheet,HM Revenue & Customs,99782196,57225.25,NI Payable Salaries
BEIS,UKRI - EPSRC,12/08/2022,Unspecified,Balance Sheet,HM Revenue & Customs,99782197,3306.00,Student Loans
BEIS,UKRI - EPSRC,12/08/2022,Unspecified,EPSRC Corporate Services,HM Revenue & Customs,99782198,1328.00,Apprenticeship Levy
BEIS,UKRI - EPSRC,12/08/2022,Unspecified,Balance Sheet,HM Revenue & Customs,99782317,4633.63,PAYE Payable Salaries
BEIS,UKRI - EPSRC,12/08/2022,Unspecified,Balance Sheet,HM Revenue & Customs,99782318,487.65,NI Payable Salaries
BEIS,UKRI - EPSRC,12/08/2022,Unspecified,EPSRC Corporate Services,HM Revenue & Customs,99782319,75.00,Apprenticeship Levy
BEIS,UKRI - EPSRC,12/08/2022,Unspecified,Balance Sheet,HM Revenue & Customs,99782332,91446.55,PAYE Payable Salaries
BEIS,UKRI - EPSRC,12/08/2022,Unspecified,Balance Sheet,HM Revenue & Customs,99782333,129453.45,NI Payable Salaries
BEIS,UKRI - EPSRC,12/08/2022,Unspecified,Balance Sheet,HM Revenue & Customs,99782334,8352.00,Student Loans
BEIS,UKRI - EPSRC,12/08/2022,Unspecified,EPSRC Corporate Services,HM Revenue & Customs,99782335,3527.00,Apprenticeship Levy
BEIS,UKRI - EPSRC,12/08/2022,Unspecified,Balance Sheet,HM Revenue & Customs,99782597,557861.74,PAYE Payable Salaries
BEIS,UKRI - EPSRC,12/08/2022,Unspecified,Balance Sheet,HM Revenue & Customs,99782598,757696.56,NI Payable Salaries
BEIS,UKRI - EPSRC,12/08/2022,Unspecified,Balance Sheet,HM Revenue & Customs,99782599,24991.00,Student Loans
BEIS,UKRI - EPSRC,12/08/2022,Unspecified,EPSRC Corporate Services,HM Revenue & Customs,99782600,19796.00,Apprenticeship Levy
BEIS,UKRI - UKRI,12/08/2022,General Building Maintenance,UKRI - JBOS,Interior Design And Developments,99782629,2100.00,General Building Maintenance
BEIS,UKRI - UKRI,12/08/2022,Unspecified,UKRI-SHARP,Sanderson Government and Defence Ltd,99782646,14486.86,Contract Staff
BEIS,UKRI - UKRI,12/08/2022,Unspecified,UKRI-SHARP,Sanderson Government and Defence Ltd,99782649,11530.36,Contract Staff
BEIS,UKRI - UKRI,12/08/2022,Unspecified,UKRI-SHARP,Sanderson Government and Defence Ltd,99782656,26250.00,Contract Staff
BEIS,UKRI - UKRI,12/08/2022,Consumables,UKRI - JRS,Creat3d Ltd,99782675,200.40,Consumables
BEIS,UKRI - UKRI,12/08/2022,Consumables,UKRI - JRS,Creat3d Ltd,99782675,117.60,Consumables
BEIS,UKRI - UKRI,12/08/2022,Consumables,UKRI - JRS,Creat3d Ltd,99782675,51.00,Consumables
BEIS,UKRI - Research England,12/08/2022,Unspecified,RE - Research Excellence Framework (REF),Queen Mary University of London,99782683,1500.00,Council & Committee Honoraria
BEIS,UKRI - UKRI,12/08/2022,Consultancy Services,UKRI - HR Corporate Projects,Mike Curtis Reward Solutions Ltd T/A MCR,99782707,13552.50,Consultancy Services
BEIS,UKRI - UKRI,12/08/2022,Unspecified,UKRI - Communications Content,CASS Productions Ltd,99782907,300.00,Legal & Professional Services
BEIS,UKRI - Research England,12/08/2022,Non-staff travel and subsistance,RE - Operations and Private Office,Corporate Travel Management (North) Ltd,99783122,0.80,Non-staff travel and subsistance
BEIS,UKRI - Research England,12/08/2022,Non-staff travel and subsistance,RE - Operations and Private Office,Corporate Travel Management (North) Ltd,99783122,226.15,Non-staff travel and subsistance
BEIS,UKRI - Research England,12/08/2022,Non-staff travel and subsistance,RE - Operations and Private Office,Corporate Travel Management (North) Ltd,99783122,0.16,Non-staff travel and subsistance
BEIS,UKRI - UKRI,12/08/2022,Non-staff travel and subsistance,UKRI - Overseas Office India,Corporate Travel Management (North) Ltd,99783122,2.00,Non-staff travel and subsistance
BEIS,UKRI - UKRI,12/08/2022,Non-staff travel and subsistance,UKRI - Overseas Office India,Corporate Travel Management (North) Ltd,99783122,500.00,Non-staff travel and subsistance
BEIS,UKRI - UKRI,12/08/2022,Non-staff travel and subsistance,UKRI - Overseas Office India,Corporate Travel Management (North) Ltd,99783122,0.40,Non-staff travel and subsistance
BEIS,UKRI - UKRI,12/08/2022,T&S Overseas - Flights,International Policy and Stakeholder Engagement,Corporate Travel Management (North) Ltd,99783122,1.25,T&S Overseas - Flights
BEIS,UKRI - UKRI,12/08/2022,T&S Overseas - Flights,International Policy and Stakeholder Engagement,Corporate Travel Management (North) Ltd,99783122,297.47,T&S Overseas - Flights
BEIS,UKRI - UKRI,12/08/2022,T&S Overseas - Flights,International Policy and Stakeholder Engagement,Corporate Travel Management (North) Ltd,99783122,1.25,T&S Overseas - Flights
BEIS,UKRI - UKRI,12/08/2022,T&S Overseas - Flights,International Policy and Stakeholder Engagement,Corporate Travel Management (North) Ltd,99783122,297.47,T&S Overseas - Flights
BEIS,UKRI - EPSRC,12/08/2022,T&S Overseas - Flights,Programme Delivery ICT,Corporate Travel Management (North) Ltd,99783122,2.50,T&S Overseas - Flights
BEIS,UKRI - EPSRC,12/08/2022,T&S Overseas - Flights,Programme Delivery ICT,Corporate Travel Management (North) Ltd,99783122,371.98,T&S Overseas - Flights
BEIS,UKRI - UKRI,12/08/2022,T&S Overseas - Flights,UKRI - International,Corporate Travel Management (North) Ltd,99783122,7.00,T&S Overseas - Flights
BEIS,UKRI - UKRI,12/08/2022,T&S Overseas - Flights,UKRI - International,Corporate Travel Management (North) Ltd,99783122,179.84,T&S Overseas - Flights
BEIS,UKRI - UKRI,12/08/2022,T&S Overseas - Flights,UKRI - Overseas Office India,Corporate Travel Management (North) Ltd,99783122,9.50,T&S Overseas - Flights
BEIS,UKRI - EPSRC,12/08/2022,T&S Overseas - Public Transport,Digital Security and resilience,Corporate Travel Management (North) Ltd,99783122,0.25,T&S Overseas - Public Transport
BEIS,UKRI - EPSRC,12/08/2022,T&S Overseas - Public Transport,Digital Security and resilience,Corporate Travel Management (North) Ltd,99783122,105.80,T&S Overseas - Public Transport
BEIS,UKRI - EPSRC,12/08/2022,T&S Overseas - Public Transport,Programme Delivery Energy,Corporate Travel Management (North) Ltd,99783122,0.25,T&S Overseas - Public Transport
BEIS,UKRI - EPSRC,12/08/2022,T&S Overseas - Public Transport,Programme Delivery Energy,Corporate Travel Management (North) Ltd,99783122,151.20,T&S Overseas - Public Transport
BEIS,UKRI - EPSRC,12/08/2022,T&S Overseas - Public Transport,Programme Delivery Engineering,Corporate Travel Management (North) Ltd,99783122,0.25,T&S Overseas - Public Transport
BEIS,UKRI - EPSRC,12/08/2022,T&S Overseas - Public Transport,Programme Delivery Engineering,Corporate Travel Management (North) Ltd,99783122,51.50,T&S Overseas - Public Transport
BEIS,UKRI - EPSRC,12/08/2022,T&S Overseas - Public Transport,Programme Delivery Quantum Technology,Corporate Travel Management (North) Ltd,99783122,2.50,T&S Overseas - Public Transport
BEIS,UKRI - EPSRC,12/08/2022,T&S Overseas - Public Transport,Programme Delivery Quantum Technology,Corporate Travel Management (North) Ltd,99783122,146.27,T&S Overseas - Public Transport
BEIS,UKRI - EPSRC,12/08/2022,T&S UK - Accommodation,AI and Robotics OpEx,Corporate Travel Management (North) Ltd,99783122,0.80,T&S UK - Accommodation
BEIS,UKRI - EPSRC,12/08/2022,T&S UK - Accommodation,AI and Robotics OpEx,Corporate Travel Management (North) Ltd,99783122,85.00,T&S UK - Accommodation
BEIS,UKRI - EPSRC,12/08/2022,T&S UK - Accommodation,AI and Robotics OpEx,Corporate Travel Management (North) Ltd,99783122,0.16,T&S UK - Accommodation
BEIS,UKRI - EPSRC,12/08/2022,T&S UK - Accommodation,Directors and Deputy Directors,Corporate Travel Management (North) Ltd,99783122,0.80,T&S UK - Accommodation
BEIS,UKRI - EPSRC,12/08/2022,T&S UK - Accommodation,Directors and Deputy Directors,Corporate Travel Management (North) Ltd,99783122,67.00,T&S UK - Accommodation
BEIS,UKRI - EPSRC,12/08/2022,T&S UK - Accommodation,Directors and Deputy Directors,Corporate Travel Management (North) Ltd,99783122,0.80,T&S UK - Accommodation
BEIS,UKRI - EPSRC,12/08/2022,T&S UK - Accommodation,Directors and Deputy Directors,Corporate Travel Management (North) Ltd,99783122,0.80,T&S UK - Accommodation
BEIS,UKRI - EPSRC,12/08/2022,T&S UK - Accommodation,Directors and Deputy Directors,Corporate Travel Management (North) Ltd,99783122,144.50,T&S UK - Accommodation
BEIS,UKRI - EPSRC,12/08/2022,T&S UK - Accommodation,Directors and Deputy Directors,Corporate Travel Management (North) Ltd,99783122,0.48,T&S UK - Accommodation
BEIS,UKRI - EPSRC,12/08/2022,T&S UK - Accommodation,Manufacturing and Circular Economy,Corporate Travel Management (North) Ltd,99783122,0.80,T&S UK - Accommodation
BEIS,UKRI - EPSRC,12/08/2022,T&S UK - Accommodation,Manufacturing and Circular Economy,Corporate Travel Management (North) Ltd,99783122,86.00,T&S UK - Accommodation
BEIS,UKRI - EPSRC,12/08/2022,T&S UK - Accommodation,Manufacturing and Circular Economy,Corporate Travel Management (North) Ltd,99783122,0.80,T&S UK - Accommodation
BEIS,UKRI - EPSRC,12/08/2022,T&S UK - Accommodation,Manufacturing and Circular Economy,Corporate Travel Management (North) Ltd,99783122,0.80,T&S UK - Accommodation
BEIS,UKRI - EPSRC,12/08/2022,T&S UK - Accommodation,Manufacturing and Circular Economy,Corporate Travel Management (North) Ltd,99783122,150.00,T&S UK - Accommodation
BEIS,UKRI - EPSRC,12/08/2022,T&S UK - Accommodation,Manufacturing and Circular Economy,Corporate Travel Management (North) Ltd,99783122,0.48,T&S UK - Accommodation
BEIS,UKRI - EPSRC,12/08/2022,T&S UK - Accommodation,Programme Delivery - Sir Henry Royce Institute,Corporate Travel Management (North) Ltd,99783122,0.80,T&S UK - Accommodation
BEIS,UKRI - EPSRC,12/08/2022,T&S UK - Accommodation,Programme Delivery - Sir Henry Royce Institute,Corporate Travel Management (North) Ltd,99783122,136.00,T&S UK - Accommodation
BEIS,UKRI - EPSRC,12/08/2022,T&S UK - Accommodation,Programme Delivery - Sir Henry Royce Institute,Corporate Travel Management (North) Ltd,99783122,0.16,T&S UK - Accommodation
BEIS,UKRI - EPSRC,12/08/2022,T&S UK - Accommodation,Programme Delivery Energy,Corporate Travel Management (North) Ltd,99783122,0.80,T&S UK - Accommodation
BEIS,UKRI - EPSRC,12/08/2022,T&S UK - Accommodation,Programme Delivery Energy,Corporate Travel Management (North) Ltd,99783122,75.05,T&S UK - Accommodation
BEIS,UKRI - EPSRC,12/08/2022,T&S UK - Accommodation,Programme Delivery Energy,Corporate Travel Management (North) Ltd,99783122,0.80,T&S UK - Accommodation
BEIS,UKRI - EPSRC,12/08/2022,T&S UK - Accommodation,Programme Delivery Energy,Corporate Travel Management (North) Ltd,99783122,150.00,T&S UK - Accommodation
BEIS,UKRI - EPSRC,12/08/2022,T&S UK - Accommodation,Programme Delivery Energy,Corporate Travel Management (North) Ltd,99783122,0.32,T&S UK - Accommodation
BEIS,UKRI - EPSRC,12/08/2022,T&S UK - Accommodation,Programme Delivery Engineering,Corporate Travel Management (North) Ltd,99783122,0.80,T&S UK - Accommodation
BEIS,UKRI - EPSRC,12/08/2022,T&S UK - Accommodation,Programme Delivery Engineering,Corporate Travel Management (North) Ltd,99783122,43.29,T&S UK - Accommodation
BEIS,UKRI - EPSRC,12/08/2022,T&S UK - Accommodation,Programme Delivery Engineering,Corporate Travel Management (North) Ltd,99783122,0.16,T&S UK - Accommodation
BEIS,UKRI - EPSRC,12/08/2022,T&S UK - Accommodation,Programme Delivery Healthcare,Corporate Travel Management (North) Ltd,99783122,0.80,T&S UK - Accommodation
BEIS,UKRI - EPSRC,12/08/2022,T&S UK - Accommodation,Programme Delivery Healthcare,Corporate Travel Management (North) Ltd,99783122,104.50,T&S UK - Accommodation
BEIS,UKRI - EPSRC,12/08/2022,T&S UK - Accommodation,Programme Delivery Healthcare,Corporate Travel Management (North) Ltd,99783122,0.16,T&S UK - Accommodation
BEIS,UKRI - EPSRC,12/08/2022,T&S UK - Accommodation,Programme Delivery ICT,Corporate Travel Management (North) Ltd,99783122,0.80,T&S UK - Accommodation
BEIS,UKRI - EPSRC,12/08/2022,T&S UK - Accommodation,Programme Delivery ICT,Corporate Travel Management (North) Ltd,99783122,0.80,T&S UK - Accommodation
BEIS,UKRI - EPSRC,12/08/2022,T&S UK - Accommodation,Programme Delivery ICT,Corporate Travel Management (North) Ltd,99783122,199.00,T&S UK - Accommodation
BEIS,UKRI - EPSRC,12/08/2022,T&S UK - Accommodation,Programme Delivery ICT,Corporate Travel Management (North) Ltd,99783122,0.80,T&S UK - Accommodation
BEIS,UKRI - EPSRC,12/08/2022,T&S UK - Accommodation,Programme Delivery ICT,Corporate Travel Management (North) Ltd,99783122,0.48,T&S UK - Accommodation
BEIS,UKRI - EPSRC,12/08/2022,T&S UK - Accommodation,Programme Delivery Infrastructure,Corporate Travel Management (North) Ltd,99783122,0.80,T&S UK - Accommodation
BEIS,UKRI - EPSRC,12/08/2022,T&S UK - Accommodation,Programme Delivery Infrastructure,Corporate Travel Management (North) Ltd,99783122,157.00,T&S UK - Accommodation
BEIS,UKRI - EPSRC,12/08/2022,T&S UK - Accommodation,Programme Delivery Infrastructure,Corporate Travel Management (North) Ltd,99783122,0.80,T&S UK - Accommodation
BEIS,UKRI - EPSRC,12/08/2022,T&S UK - Accommodation,Programme Delivery Infrastructure,Corporate Travel Management (North) Ltd,99783122,70.00,T&S UK - Accommodation
BEIS,UKRI - EPSRC,12/08/2022,T&S UK - Accommodation,Programme Delivery Infrastructure,Corporate Travel Management (North) Ltd,99783122,0.80,T&S UK - Accommodation
BEIS,UKRI - EPSRC,12/08/2022,T&S UK - Accommodation,Programme Delivery Infrastructure,Corporate Travel Management (North) Ltd,99783122,70.00,T&S UK - Accommodation
BEIS,UKRI - EPSRC,12/08/2022,T&S UK - Accommodation,Programme Delivery Infrastructure,Corporate Travel Management (North) Ltd,99783122,0.48,T&S UK - Accommodation
BEIS,UKRI - EPSRC,12/08/2022,T&S UK - Accommodation,Programme Delivery Maths,Corporate Travel Management (North) Ltd,99783122,0.80,T&S UK - Accommodation
BEIS,UKRI - EPSRC,12/08/2022,T&S UK - Accommodation,Programme Delivery Maths,Corporate Travel Management (North) Ltd,99783122,99.00,T&S UK - Accommodation
BEIS,UKRI - EPSRC,12/08/2022,T&S UK - Accommodation,Programme Delivery Maths,Corporate Travel Management (North) Ltd,99783122,0.16,T&S UK - Accommodation
BEIS,UKRI - EPSRC,12/08/2022,T&S UK - Accommodation,Programme Delivery Physical Sciences,Corporate Travel Management (North) Ltd,99783122,0.80,T&S UK - Accommodation
BEIS,UKRI - EPSRC,12/08/2022,T&S UK - Accommodation,Programme Delivery Physical Sciences,Corporate Travel Management (North) Ltd,99783122,0.80,T&S UK - Accommodation
BEIS,UKRI - EPSRC,12/08/2022,T&S UK - Accommodation,Programme Delivery Physical Sciences,Corporate Travel Management (North) Ltd,99783122,95.00,T&S UK - Accommodation
BEIS,UKRI - EPSRC,12/08/2022,T&S UK - Accommodation,Programme Delivery Physical Sciences,Corporate Travel Management (North) Ltd,99783122,0.25,T&S UK - Accommodation
BEIS,UKRI - EPSRC,12/08/2022,T&S UK - Accommodation,Programme Delivery Physical Sciences,Corporate Travel Management (North) Ltd,99783122,105.95,T&S UK - Accommodation
BEIS,UKRI - EPSRC,12/08/2022,T&S UK - Accommodation,Programme Delivery Physical Sciences,Corporate Travel Management (North) Ltd,99783122,0.80,T&S UK - Accommodation
BEIS,UKRI - EPSRC,12/08/2022,T&S UK - Accommodation,Programme Delivery Physical Sciences,Corporate Travel Management (North) Ltd,99783122,70.00,T&S UK - Accommodation
BEIS,UKRI - EPSRC,12/08/2022,T&S UK - Accommodation,Programme Delivery Physical Sciences,Corporate Travel Management (North) Ltd,99783122,0.80,T&S UK - Accommodation
BEIS,UKRI - EPSRC,12/08/2022,T&S UK - Accommodation,Programme Delivery Physical Sciences,Corporate Travel Management (North) Ltd,99783122,0.64,T&S UK - Accommodation
BEIS,UKRI - Research England,12/08/2022,T&S UK - Accommodation,RE - Executive Group,Corporate Travel Management (North) Ltd,99783122,0.80,T&S UK - Accommodation
BEIS,UKRI - Research England,12/08/2022,T&S UK - Accommodation,RE - Executive Group,Corporate Travel Management (North) Ltd,99783122,75.00,T&S UK - Accommodation
BEIS,UKRI - Research England,12/08/2022,T&S UK - Accommodation,RE - Executive Group,Corporate Travel Management (North) Ltd,99783122,0.16,T&S UK - Accommodation
BEIS,UKRI - Research England,12/08/2022,T&S UK - Accommodation,RE - Insight and Engagement,Corporate Travel Management (North) Ltd,99783122,0.80,T&S UK - Accommodation
BEIS,UKRI - Research England,12/08/2022,T&S UK - Accommodation,RE - Insight and Engagement,Corporate Travel Management (North) Ltd,99783122,96.00,T&S UK - Accommodation
BEIS,UKRI - Research England,12/08/2022,T&S UK - Accommodation,RE - Insight and Engagement,Corporate Travel Management (North) Ltd,99783122,0.80,T&S UK - Accommodation
BEIS,UKRI - Research England,12/08/2022,T&S UK - Accommodation,RE - Insight and Engagement,Corporate Travel Management (North) Ltd,99783122,99.21,T&S UK - Accommodation
BEIS,UKRI - Research England,12/08/2022,T&S UK - Accommodation,RE - Insight and Engagement,Corporate Travel Management (North) Ltd,99783122,0.80,T&S UK - Accommodation
BEIS,UKRI - Research England,12/08/2022,T&S UK - Accommodation,RE - Insight and Engagement,Corporate Travel Management (North) Ltd,99783122,105.00,T&S UK - Accommodation
BEIS,UKRI - Research England,12/08/2022,T&S UK - Accommodation,RE - Insight and Engagement,Corporate Travel Management (North) Ltd,99783122,0.80,T&S UK - Accommodation
BEIS,UKRI - Research England,12/08/2022,T&S UK - Accommodation,RE - Insight and Engagement,Corporate Travel Management (North) Ltd,99783122,85.00,T&S UK - Accommodation
BEIS,UKRI - Research England,12/08/2022,T&S UK - Accommodation,RE - Insight and Engagement,Corporate Travel Management (North) Ltd,99783122,0.80,T&S UK - Accommodation
BEIS,UKRI - Research England,12/08/2022,T&S UK - Accommodation,RE - Insight and Engagement,Corporate Travel Management (North) Ltd,99783122,213.00,T&S UK - Accommodation
BEIS,UKRI - Research England,12/08/2022,T&S UK - Accommodation,RE - Insight and Engagement,Corporate Travel Management (North) Ltd,99783122,0.80,T&S UK - Accommodation
BEIS,UKRI - Research England,12/08/2022,T&S UK - Accommodation,RE - Knowledge Exchange,Corporate Travel Management (North) Ltd,99783122,0.80,T&S UK - Accommodation
BEIS,UKRI - Research England,12/08/2022,T&S UK - Accommodation,RE - Knowledge Exchange,Corporate Travel Management (North) Ltd,99783122,0.16,T&S UK - Accommodation
BEIS,UKRI - Research England,12/08/2022,T&S UK - Accommodation,RE - Operations and Private Office,Corporate Travel Management (North) Ltd,99783122,0.80,T&S UK - Accommodation
BEIS,UKRI - Research England,12/08/2022,T&S UK - Accommodation,RE - Operations and Private Office,Corporate Travel Management (North) Ltd,99783122,208.00,T&S UK - Accommodation
BEIS,UKRI - Research England,12/08/2022,T&S UK - Accommodation,RE - Operations and Private Office,Corporate Travel Management (North) Ltd,99783122,0.16,T&S UK - Accommodation
BEIS,UKRI - Research England,12/08/2022,T&S UK - Accommodation,RE - Research,Corporate Travel Management (North) Ltd,99783122,0.80,T&S UK - Accommodation
BEIS,UKRI - Research England,12/08/2022,T&S UK - Accommodation,RE - Research,Corporate Travel Management (North) Ltd,99783122,75.00,T&S UK - Accommodation
BEIS,UKRI - Research England,12/08/2022,T&S UK - Accommodation,RE - Research,Corporate Travel Management (North) Ltd,99783122,0.80,T&S UK - Accommodation
BEIS,UKRI - Research England,12/08/2022,T&S UK - Accommodation,RE - Research,Corporate Travel Management (North) Ltd,99783122,109.65,T&S UK - Accommodation
BEIS,UKRI - Research England,12/08/2022,T&S UK - Accommodation,RE - Research,Corporate Travel Management (North) Ltd,99783122,0.80,T&S UK - Accommodation
BEIS,UKRI - Research England,12/08/2022,T&S UK - Accommodation,RE - Research,Corporate Travel Management (North) Ltd,99783122,109.65,T&S UK - Accommodation
BEIS,UKRI - Research England,12/08/2022,T&S UK - Accommodation,RE - Research,Corporate Travel Management (North) Ltd,99783122,0.48,T&S UK - Accommodation
BEIS,UKRI - Research England,12/08/2022,T&S UK - Accommodation,RE - SIPF Programme Delivery,Corporate Travel Management (North) Ltd,99783122,0.25,T&S UK - Accommodation
BEIS,UKRI - Research England,12/08/2022,T&S UK - Accommodation,RE - SIPF Programme Delivery,Corporate Travel Management (North) Ltd,99783122,82.30,T&S UK - Accommodation
BEIS,UKRI - EPSRC,12/08/2022,T&S UK - Accommodation,Regional Engagement - OpEx,Corporate Travel Management (North) Ltd,99783122,0.80,T&S UK - Accommodation
BEIS,UKRI - EPSRC,12/08/2022,T&S UK - Accommodation,Regional Engagement - OpEx,Corporate Travel Management (North) Ltd,99783122,150.00,T&S UK - Accommodation
BEIS,UKRI - EPSRC,12/08/2022,T&S UK - Accommodation,Regional Engagement - OpEx,Corporate Travel Management (North) Ltd,99783122,0.80,T&S UK - Accommodation
BEIS,UKRI - EPSRC,12/08/2022,T&S UK - Accommodation,Regional Engagement - OpEx,Corporate Travel Management (North) Ltd,99783122,75.00,T&S UK - Accommodation
BEIS,UKRI - EPSRC,12/08/2022,T&S UK - Accommodation,Regional Engagement - OpEx,Corporate Travel Management (North) Ltd,99783122,0.80,T&S UK - Accommodation
BEIS,UKRI - EPSRC,12/08/2022,T&S UK - Accommodation,Regional Engagement - OpEx,Corporate Travel Management (North) Ltd,99783122,86.00,T&S UK - Accommodation
BEIS,UKRI - EPSRC,12/08/2022,T&S UK - Accommodation,Regional Engagement - OpEx,Corporate Travel Management (North) Ltd,99783122,0.80,T&S UK - Accommodation
BEIS,UKRI - EPSRC,12/08/2022,T&S UK - Accommodation,Regional Engagement - OpEx,Corporate Travel Management (North) Ltd,99783122,66.00,T&S UK - Accommodation
BEIS,UKRI - EPSRC,12/08/2022,T&S UK - Accommodation,Regional Engagement - OpEx,Corporate Travel Management (North) Ltd,99783122,0.80,T&S UK - Accommodation
BEIS,UKRI - EPSRC,12/08/2022,T&S UK - Accommodation,Regional Engagement - OpEx,Corporate Travel Management (North) Ltd,99783122,150.00,T&S UK - Accommodation
BEIS,UKRI - EPSRC,12/08/2022,T&S UK - Accommodation,Regional Engagement - OpEx,Corporate Travel Management (North) Ltd,99783122,0.80,T&S UK - Accommodation
BEIS,UKRI - EPSRC,12/08/2022,T&S UK - Accommodation,Regional Engagement - OpEx,Corporate Travel Management (North) Ltd,99783122,225.00,T&S UK - Accommodation
BEIS,UKRI - EPSRC,12/08/2022,T&S UK - Accommodation,Regional Engagement - OpEx,Corporate Travel Management (North) Ltd,99783122,0.96,T&S UK - Accommodation
BEIS,UKRI - EPSRC,12/08/2022,T&S UK - Accommodation,SPF - ExCALIBUR OpEx,Corporate Travel Management (North) Ltd,99783122,0.80,T&S UK - Accommodation
BEIS,UKRI - EPSRC,12/08/2022,T&S UK - Accommodation,SPF - ExCALIBUR OpEx,Corporate Travel Management (North) Ltd,99783122,248.90,T&S UK - Accommodation
BEIS,UKRI - EPSRC,12/08/2022,T&S UK - Accommodation,SPF - ExCALIBUR OpEx,Corporate Travel Management (North) Ltd,99783122,2.80,T&S UK - Accommodation
BEIS,UKRI - EPSRC,12/08/2022,T&S UK - Accommodation,SPF - ExCALIBUR OpEx,Corporate Travel Management (North) Ltd,99783122,186.00,T&S UK - Accommodation
BEIS,UKRI - EPSRC,12/08/2022,T&S UK - Accommodation,SPF - ExCALIBUR OpEx,Corporate Travel Management (North) Ltd,99783122,0.80,T&S UK - Accommodation
BEIS,UKRI - EPSRC,12/08/2022,T&S UK - Accommodation,SPF - ExCALIBUR OpEx,Corporate Travel Management (North) Ltd,99783122,248.90,T&S UK - Accommodation
BEIS,UKRI - EPSRC,12/08/2022,T&S UK - Accommodation,SPF - ExCALIBUR OpEx,Corporate Travel Management (North) Ltd,99783122,0.80,T&S UK - Accommodation
BEIS,UKRI - EPSRC,12/08/2022,T&S UK - Accommodation,SPF - ExCALIBUR OpEx,Corporate Travel Management (North) Ltd,99783122,186.00,T&S UK - Accommodation
BEIS,UKRI - EPSRC,12/08/2022,T&S UK - Accommodation,SPF - ExCALIBUR OpEx,Corporate Travel Management (North) Ltd,99783122,0.80,T&S UK - Accommodation
BEIS,UKRI - EPSRC,12/08/2022,T&S UK - Accommodation,SPF - ExCALIBUR OpEx,Corporate Travel Management (North) Ltd,99783122,248.90,T&S UK - Accommodation
BEIS,UKRI - EPSRC,12/08/2022,T&S UK - Accommodation,SPF - ExCALIBUR OpEx,Corporate Travel Management (North) Ltd,99783122,1.20,T&S UK - Accommodation
BEIS,UKRI - EPSRC,12/08/2022,T&S UK - Accommodation,SPF - Trustworthy Autonomous Systems OpEx,Corporate Travel Management (North) Ltd,99783122,0.25,T&S UK - Accommodation
BEIS,UKRI - EPSRC,12/08/2022,T&S UK - Accommodation,SPF - Trustworthy Autonomous Systems OpEx,Corporate Travel Management (North) Ltd,99783122,184.30,T&S UK - Accommodation
BEIS,UKRI - UKRI,12/08/2022,T&S UK - Accommodation,UKRI - Communication and Engagement,Corporate Travel Management (North) Ltd,99783122,0.80,T&S UK - Accommodation
BEIS,UKRI - UKRI,12/08/2022,T&S UK - Accommodation,UKRI - Communication and Engagement,Corporate Travel Management (North) Ltd,99783122,140.00,T&S UK - Accommodation
BEIS,UKRI - UKRI,12/08/2022,T&S UK - Accommodation,UKRI - Communication and Engagement,Corporate Travel Management (North) Ltd,99783122,0.80,T&S UK - Accommodation
BEIS,UKRI - UKRI,12/08/2022,T&S UK - Accommodation,UKRI - Communication and Engagement,Corporate Travel Management (North) Ltd,99783122,140.00,T&S UK - Accommodation
BEIS,UKRI - UKRI,12/08/2022,T&S UK - Accommodation,UKRI - Communication and Engagement,Corporate Travel Management (North) Ltd,99783122,0.80,T&S UK - Accommodation
BEIS,UKRI - UKRI,12/08/2022,T&S UK - Accommodation,UKRI - Communication and Engagement,Corporate Travel Management (North) Ltd,99783122,89.25,T&S UK - Accommodation
BEIS,UKRI - UKRI,12/08/2022,T&S UK - Accommodation,UKRI - Communication and Engagement,Corporate Travel Management (North) Ltd,99783122,0.80,T&S UK - Accommodation
BEIS,UKRI - UKRI,12/08/2022,T&S UK - Accommodation,UKRI - Communication and Engagement,Corporate Travel Management (North) Ltd,99783122,80.75,T&S UK - Accommodation
BEIS,UKRI - UKRI,12/08/2022,T&S UK - Accommodation,UKRI - Communication and Engagement,Corporate Travel Management (North) Ltd,99783122,0.64,T&S UK - Accommodation
BEIS,UKRI - UKRI,12/08/2022,T&S UK - Accommodation,UKRI - Communications Content,Corporate Travel Management (North) Ltd,99783122,0.80,T&S UK - Accommodation
BEIS,UKRI - UKRI,12/08/2022,T&S UK - Accommodation,UKRI - Communications Content,Corporate Travel Management (North) Ltd,99783122,106.00,T&S UK - Accommodation
BEIS,UKRI - UKRI,12/08/2022,T&S UK - Accommodation,UKRI - Communications Content,Corporate Travel Management (North) Ltd,99783122,0.80,T&S UK - Accommodation
BEIS,UKRI - UKRI,12/08/2022,T&S UK - Accommodation,UKRI - Communications Content,Corporate Travel Management (North) Ltd,99783122,123.25,T&S UK - Accommodation
BEIS,UKRI - UKRI,12/08/2022,T&S UK - Accommodation,UKRI - Communications Content,Corporate Travel Management (North) Ltd,99783122,0.32,T&S UK - Accommodation
BEIS,UKRI - UKRI,12/08/2022,T&S UK - Accommodation,UKRI - Communications Projects and Services,Corporate Travel Management (North) Ltd,99783122,0.80,T&S UK - Accommodation
BEIS,UKRI - UKRI,12/08/2022,T&S UK - Accommodation,UKRI - Communications Projects and Services,Corporate Travel Management (North) Ltd,99783122,65.50,T&S UK - Accommodation
BEIS,UKRI - UKRI,12/08/2022,T&S UK - Accommodation,UKRI - Communications Projects and Services,Corporate Travel Management (North) Ltd,99783122,0.80,T&S UK - Accommodation
BEIS,UKRI - UKRI,12/08/2022,T&S UK - Accommodation,UKRI - Communications Projects and Services,Corporate Travel Management (North) Ltd,99783122,65.50,T&S UK - Accommodation
BEIS,UKRI - UKRI,12/08/2022,T&S UK - Accommodation,UKRI - Communications Projects and Services,Corporate Travel Management (North) Ltd,99783122,0.80,T&S UK - Accommodation
BEIS,UKRI - UKRI,12/08/2022,T&S UK - Accommodation,UKRI - Communications Projects and Services,Corporate Travel Management (North) Ltd,99783122,65.50,T&S UK - Accommodation
BEIS,UKRI - UKRI,12/08/2022,T&S UK - Accommodation,UKRI - Communications Projects and Services,Corporate Travel Management (North) Ltd,99783122,0.48,T&S UK - Accommodation
BEIS,UKRI - UKRI,12/08/2022,T&S UK - Accommodation,UKRI - Estates,Corporate Travel Management (North) Ltd,99783122,0.80,T&S UK - Accommodation
BEIS,UKRI - UKRI,12/08/2022,T&S UK - Accommodation,UKRI - Estates,Corporate Travel Management (North) Ltd,99783122,188.50,T&S UK - Accommodation
BEIS,UKRI - UKRI,12/08/2022,T&S UK - Accommodation,UKRI - Estates,Corporate Travel Management (North) Ltd,99783122,0.16,T&S UK - Accommodation
BEIS,UKRI - UKRI,12/08/2022,T&S UK - Accommodation,UKRI - Overseas Office India,Corporate Travel Management (North) Ltd,99783122,0.80,T&S UK - Accommodation
BEIS,UKRI - UKRI,12/08/2022,T&S UK - Accommodation,UKRI - Overseas Office India,Corporate Travel Management (North) Ltd,99783122,548.00,T&S UK - Accommodation
BEIS,UKRI - UKRI,12/08/2022,T&S UK - Accommodation,UKRI - Overseas Office India,Corporate Travel Management (North) Ltd,99783122,0.80,T&S UK - Accommodation
BEIS,UKRI - UKRI,12/08/2022,T&S UK - Accommodation,UKRI - Overseas Office India,Corporate Travel Management (North) Ltd,99783122,548.00,T&S UK - Accommodation
BEIS,UKRI - UKRI,12/08/2022,T&S UK - Accommodation,UKRI - Overseas Office India,Corporate Travel Management (North) Ltd,99783122,0.80,T&S UK - Accommodation
BEIS,UKRI - UKRI,12/08/2022,T&S UK - Accommodation,UKRI - Overseas Office India,Corporate Travel Management (North) Ltd,99783122,341.70,T&S UK - Accommodation
BEIS,UKRI - UKRI,12/08/2022,T&S UK - Accommodation,UKRI - Overseas Office India,Corporate Travel Management (North) Ltd,99783122,0.80,T&S UK - Accommodation
BEIS,UKRI - UKRI,12/08/2022,T&S UK - Accommodation,UKRI - Overseas Office India,Corporate Travel Management (North) Ltd,99783122,469.20,T&S UK - Accommodation
BEIS,UKRI - UKRI,12/08/2022,T&S UK - Accommodation,UKRI - Overseas Office India,Corporate Travel Management (North) Ltd,99783122,0.80,T&S UK - Accommodation
BEIS,UKRI - UKRI,12/08/2022,T&S UK - Accommodation,UKRI - Overseas Office India,Corporate Travel Management (North) Ltd,99783122,595.00,T&S UK - Accommodation
BEIS,UKRI - UKRI,12/08/2022,T&S UK - Accommodation,UKRI - Overseas Office India,Corporate Travel Management (North) Ltd,99783122,0.80,T&S UK - Accommodation
BEIS,UKRI - UKRI,12/08/2022,T&S UK - Accommodation,UKRI - Overseas Office India,Corporate Travel Management (North) Ltd,99783122,469.20,T&S UK - Accommodation
BEIS,UKRI - UKRI,12/08/2022,T&S UK - Accommodation,UKRI - Overseas Office India,Corporate Travel Management (North) Ltd,99783122,0.80,T&S UK - Accommodation
BEIS,UKRI - UKRI,12/08/2022,T&S UK - Accommodation,UKRI - Overseas Office India,Corporate Travel Management (North) Ltd,99783122,469.20,T&S UK - Accommodation
BEIS,UKRI - UKRI,12/08/2022,T&S UK - Accommodation,UKRI - Overseas Office India,Corporate Travel Management (North) Ltd,99783122,0.80,T&S UK - Accommodation
BEIS,UKRI - UKRI,12/08/2022,T&S UK - Accommodation,UKRI - Overseas Office India,Corporate Travel Management (North) Ltd,99783122,510.00,T&S UK - Accommodation
BEIS,UKRI - UKRI,12/08/2022,T&S UK - Accommodation,UKRI - Overseas Office India,Corporate Travel Management (North) Ltd,99783122,0.80,T&S UK - Accommodation
BEIS,UKRI - UKRI,12/08/2022,T&S UK - Accommodation,UKRI - Overseas Office India,Corporate Travel Management (North) Ltd,99783122,469.20,T&S UK - Accommodation
BEIS,UKRI - UKRI,12/08/2022,T&S UK - Accommodation,UKRI - Overseas Office India,Corporate Travel Management (North) Ltd,99783122,0.80,T&S UK - Accommodation
BEIS,UKRI - UKRI,12/08/2022,T&S UK - Accommodation,UKRI - Overseas Office India,Corporate Travel Management (North) Ltd,99783122,70.00,T&S UK - Accommodation
BEIS,UKRI - UKRI,12/08/2022,T&S UK - Accommodation,UKRI - Overseas Office India,Corporate Travel Management (North) Ltd,99783122,2.00,T&S UK - Accommodation
BEIS,UKRI - UKRI,12/08/2022,T&S UK - Accommodation,UKRI - Overseas Office India,Corporate Travel Management (North) Ltd,99783122,125.00,T&S UK - Accommodation
BEIS,UKRI - UKRI,12/08/2022,T&S UK - Accommodation,UKRI - Overseas Office India,Corporate Travel Management (North) Ltd,99783122,0.80,T&S UK - Accommodation
BEIS,UKRI - UKRI,12/08/2022,T&S UK - Accommodation,UKRI - Overseas Office India,Corporate Travel Management (North) Ltd,99783122,338.00,T&S UK - Accommodation
BEIS,UKRI - UKRI,12/08/2022,T&S UK - Accommodation,UKRI - Overseas Office India,Corporate Travel Management (North) Ltd,99783122,0.80,T&S UK - Accommodation
BEIS,UKRI - UKRI,12/08/2022,T&S UK - Accommodation,UKRI - Overseas Office India,Corporate Travel Management (North) Ltd,99783122,2.32,T&S UK - Accommodation
BEIS,UKRI - UKRI,12/08/2022,T&S UK - Accommodation,UKRI - Strategy,Corporate Travel Management (North) Ltd,99783122,0.80,T&S UK - Accommodation
BEIS,UKRI - UKRI,12/08/2022,T&S UK - Accommodation,UKRI - Strategy,Corporate Travel Management (North) Ltd,99783122,86.58,T&S UK - Accommodation
BEIS,UKRI - UKRI,12/08/2022,T&S UK - Accommodation,UKRI - Strategy,Corporate Travel Management (North) Ltd,99783122,0.80,T&S UK - Accommodation
BEIS,UKRI - UKRI,12/08/2022,T&S UK - Accommodation,UKRI - Strategy,Corporate Travel Management (North) Ltd,99783122,89.00,T&S UK - Accommodation
BEIS,UKRI - UKRI,12/08/2022,T&S UK - Accommodation,UKRI - Strategy,Corporate Travel Management (North) Ltd,99783122,0.32,T&S UK - Accommodation
BEIS,UKRI - EPSRC,12/08/2022,T&S UK - Accommodation,University Partnerships,Corporate Travel Management (North) Ltd,99783122,0.80,T&S UK - Accommodation
BEIS,UKRI - EPSRC,12/08/2022,T&S UK - Accommodation,University Partnerships,Corporate Travel Management (North) Ltd,99783122,0.16,T&S UK - Accommodation
BEIS,UKRI - EPSRC,12/08/2022,T&S UK - Flights,Directors and Deputy Directors,Corporate Travel Management (North) Ltd,99783122,2.50,T&S UK - Flights
BEIS,UKRI - EPSRC,12/08/2022,T&S UK - Flights,Directors and Deputy Directors,Corporate Travel Management (North) Ltd,99783122,95.98,T&S UK - Flights
BEIS,UKRI - EPSRC,12/08/2022,T&S UK - Flights,Directors and Deputy Directors,Corporate Travel Management (North) Ltd,99783122,2.50,T&S UK - Flights
BEIS,UKRI - EPSRC,12/08/2022,T&S UK - Flights,Directors and Deputy Directors,Corporate Travel Management (North) Ltd,99783122,226.98,T&S UK - Flights
BEIS,UKRI - EPSRC,12/08/2022,T&S UK - Flights,Programme Delivery ICT,Corporate Travel Management (North) Ltd,99783122,2.50,T&S UK - Flights
BEIS,UKRI - EPSRC,12/08/2022,T&S UK - Flights,Programme Delivery ICT,Corporate Travel Management (North) Ltd,99783122,129.47,T&S UK - Flights
BEIS,UKRI - EPSRC,12/08/2022,T&S UK - Flights,Programme Delivery Physical Sciences,Corporate Travel Management (North) Ltd,99783122,4.50,T&S UK - Flights
BEIS,UKRI - EPSRC,12/08/2022,T&S UK - Flights,Programme Delivery Physical Sciences,Corporate Travel Management (North) Ltd,99783122,105.99,T&S UK - Flights
BEIS,UKRI - EPSRC,12/08/2022,T&S UK - Flights,Programme Delivery Physical Sciences,Corporate Travel Management (North) Ltd,99783122,2.50,T&S UK - Flights
BEIS,UKRI - EPSRC,12/08/2022,T&S UK - Flights,Programme Delivery Physical Sciences,Corporate Travel Management (North) Ltd,99783122,86.48,T&S UK - Flights
BEIS,UKRI - EPSRC,12/08/2022,T&S UK - Flights,Programme Delivery Physical Sciences,Corporate Travel Management (North) Ltd,99783122,4.50,T&S UK - Flights
BEIS,UKRI - EPSRC,12/08/2022,T&S UK - Flights,Programme Delivery Physical Sciences,Corporate Travel Management (North) Ltd,99783122,217.57,T&S UK - Flights
BEIS,UKRI - EPSRC,12/08/2022,T&S UK - Flights,Regional Engagement - OpEx,Corporate Travel Management (North) Ltd,99783122,4.50,T&S UK - Flights
BEIS,UKRI - EPSRC,12/08/2022,T&S UK - Flights,Regional Engagement - OpEx,Corporate Travel Management (North) Ltd,99783122,358.96,T&S UK - Flights
BEIS,UKRI - UKRI,12/08/2022,T&S UK - Flights,UKRI - Overseas Office India,Corporate Travel Management (North) Ltd,99783122,9.50,T&S UK - Flights
BEIS,UKRI - UKRI,12/08/2022,T&S UK - Flights,UKRI - Overseas Office India,Corporate Travel Management (North) Ltd,99783122,1551.36,T&S UK - Flights
BEIS,UKRI - UKRI,12/08/2022,T&S UK - Flights,UKRI - Strategic Finance Business Partners,Corporate Travel Management (North) Ltd,99783122,2.50,T&S UK - Flights
BEIS,UKRI - UKRI,12/08/2022,T&S UK - Flights,UKRI - Strategic Finance Business Partners,Corporate Travel Management (North) Ltd,99783122,184.94,T&S UK - Flights
BEIS,UKRI - EPSRC,12/08/2022,T&S UK - Other Charges,Directors and Deputy Directors,Corporate Travel Management (North) Ltd,99783122,5.00,T&S UK - Other Charges
BEIS,UKRI - EPSRC,12/08/2022,T&S UK - Other Charges,Directors and Deputy Directors,Corporate Travel Management (North) Ltd,99783122,34.73,T&S UK - Other Charges
BEIS,UKRI - EPSRC,12/08/2022,T&S UK - Other Charges,Directors and Deputy Directors,Corporate Travel Management (North) Ltd,99783122,20.51,T&S UK - Other Charges
BEIS,UKRI - EPSRC,12/08/2022,T&S UK - Other Charges,Directors and Deputy Directors,Corporate Travel Management (North) Ltd,99783122,1.00,T&S UK - Other Charges
BEIS,UKRI - EPSRC,12/08/2022,T&S UK - Other Charges,Programme Delivery Engineering,Corporate Travel Management (North) Ltd,99783122,5.00,T&S UK - Other Charges
BEIS,UKRI - EPSRC,12/08/2022,T&S UK - Other Charges,Programme Delivery Engineering,Corporate Travel Management (North) Ltd,99783122,15.75,T&S UK - Other Charges
BEIS,UKRI - EPSRC,12/08/2022,T&S UK - Other Charges,Programme Delivery Engineering,Corporate Travel Management (North) Ltd,99783122,14.26,T&S UK - Other Charges
BEIS,UKRI - EPSRC,12/08/2022,T&S UK - Other Charges,Programme Delivery Engineering,Corporate Travel Management (North) Ltd,99783122,2.50,T&S UK - Other Charges
BEIS,UKRI - EPSRC,12/08/2022,T&S UK - Other Charges,Programme Delivery Engineering,Corporate Travel Management (North) Ltd,99783122,13.99,T&S UK - Other Charges
BEIS,UKRI - EPSRC,12/08/2022,T&S UK - Other Charges,Programme Delivery Engineering,Corporate Travel Management (North) Ltd,99783122,1.50,T&S UK - Other Charges
BEIS,UKRI - EPSRC,12/08/2022,T&S UK - Other Charges,Programme Delivery Physical Sciences,Corporate Travel Management (North) Ltd,99783122,5.00,T&S UK - Other Charges
BEIS,UKRI - EPSRC,12/08/2022,T&S UK - Other Charges,Programme Delivery Physical Sciences,Corporate Travel Management (North) Ltd,99783122,-101.70,T&S UK - Other Charges
BEIS,UKRI - UKRI,12/08/2022,T&S UK - Other Charges,UKRI - Governance,Corporate Travel Management (North) Ltd,99783122,2.50,T&S UK - Other Charges
BEIS,UKRI - UKRI,12/08/2022,T&S UK - Other Charges,UKRI - Governance,Corporate Travel Management (North) Ltd,99783122,294.27,T&S UK - Other Charges
BEIS,UKRI - UKRI,12/08/2022,T&S UK - Other Charges,UKRI - Governance,Corporate Travel Management (North) Ltd,99783122,2.50,T&S UK - Other Charges
BEIS,UKRI - UKRI,12/08/2022,T&S UK - Other Charges,UKRI - Governance,Corporate Travel Management (North) Ltd,99783122,343.39,T&S UK - Other Charges
BEIS,UKRI - UKRI,12/08/2022,T&S UK - Other Charges,UKRI - Governance,Corporate Travel Management (North) Ltd,99783122,1.00,T&S UK - Other Charges
BEIS,UKRI - UKRI,12/08/2022,T&S UK - Other Charges,UKRI - Private Office,Corporate Travel Management (North) Ltd,99783122,2.50,T&S UK - Other Charges
BEIS,UKRI - UKRI,12/08/2022,T&S UK - Other Charges,UKRI - Private Office,Corporate Travel Management (North) Ltd,99783122,16.50,T&S UK - Other Charges
BEIS,UKRI - UKRI,12/08/2022,T&S UK - Other Charges,UKRI - Private Office,Corporate Travel Management (North) Ltd,99783122,2.50,T&S UK - Other Charges
BEIS,UKRI - UKRI,12/08/2022,T&S UK - Other Charges,UKRI - Private Office,Corporate Travel Management (North) Ltd,99783122,23.32,T&S UK - Other Charges
BEIS,UKRI - UKRI,12/08/2022,T&S UK - Other Charges,UKRI - Private Office,Corporate Travel Management (North) Ltd,99783122,2.50,T&S UK - Other Charges
BEIS,UKRI - UKRI,12/08/2022,T&S UK - Other Charges,UKRI - Private Office,Corporate Travel Management (North) Ltd,99783122,79.21,T&S UK - Other Charges
BEIS,UKRI - UKRI,12/08/2022,T&S UK - Other Charges,UKRI - Private Office,Corporate Travel Management (North) Ltd,99783122,2.50,T&S UK - Other Charges
BEIS,UKRI - UKRI,12/08/2022,T&S UK - Other Charges,UKRI - Private Office,Corporate Travel Management (North) Ltd,99783122,58.66,T&S UK - Other Charges
BEIS,UKRI - UKRI,12/08/2022,T&S UK - Other Charges,UKRI - Private Office,Corporate Travel Management (North) Ltd,99783122,2.50,T&S UK - Other Charges
BEIS,UKRI - UKRI,12/08/2022,T&S UK - Other Charges,UKRI - Private Office,Corporate Travel Management (North) Ltd,99783122,61.20,T&S UK - Other Charges
BEIS,UKRI - UKRI,12/08/2022,T&S UK - Other Charges,UKRI - Private Office,Corporate Travel Management (North) Ltd,99783122,5.00,T&S UK - Other Charges
BEIS,UKRI - UKRI,12/08/2022,T&S UK - Other Charges,UKRI - Private Office,Corporate Travel Management (North) Ltd,99783122,57.22,T&S UK - Other Charges
BEIS,UKRI - UKRI,12/08/2022,T&S UK - Other Charges,UKRI - Private Office,Corporate Travel Management (North) Ltd,99783122,63.09,T&S UK - Other Charges
BEIS,UKRI - UKRI,12/08/2022,T&S UK - Other Charges,UKRI - Private Office,Corporate Travel Management (North) Ltd,99783122,5.00,T&S UK - Other Charges
BEIS,UKRI - UKRI,12/08/2022,T&S UK - Other Charges,UKRI - Private Office,Corporate Travel Management (North) Ltd,99783122,20.60,T&S UK - Other Charges
BEIS,UKRI - UKRI,12/08/2022,T&S UK - Other Charges,UKRI - Private Office,Corporate Travel Management (North) Ltd,99783122,65.94,T&S UK - Other Charges
BEIS,UKRI - UKRI,12/08/2022,T&S UK - Other Charges,UKRI - Private Office,Corporate Travel Management (North) Ltd,99783122,2.50,T&S UK - Other Charges
BEIS,UKRI - UKRI,12/08/2022,T&S UK - Other Charges,UKRI - Private Office,Corporate Travel Management (North) Ltd,99783122,20.51,T&S UK - Other Charges
BEIS,UKRI - UKRI,12/08/2022,T&S UK - Other Charges,UKRI - Private Office,Corporate Travel Management (North) Ltd,99783122,7.50,T&S UK - Other Charges
BEIS,UKRI - UKRI,12/08/2022,T&S UK - Other Charges,UKRI - Private Office,Corporate Travel Management (North) Ltd,99783122,26.03,T&S UK - Other Charges
BEIS,UKRI - UKRI,12/08/2022,T&S UK - Other Charges,UKRI - Private Office,Corporate Travel Management (North) Ltd,99783122,33.15,T&S UK - Other Charges
BEIS,UKRI - UKRI,12/08/2022,T&S UK - Other Charges,UKRI - Private Office,Corporate Travel Management (North) Ltd,99783122,57.36,T&S UK - Other Charges
BEIS,UKRI - UKRI,12/08/2022,T&S UK - Other Charges,UKRI - Private Office,Corporate Travel Management (North) Ltd,99783122,6.50,T&S UK - Other Charges
BEIS,UKRI - UKRI,12/08/2022,T&S UK - Other Charges,UKRI - Strategic Finance Business Partners,Corporate Travel Management (North) Ltd,99783122,2.50,T&S UK - Other Charges
BEIS,UKRI - UKRI,12/08/2022,T&S UK - Other Charges,UKRI - Strategic Finance Business Partners,Corporate Travel Management (North) Ltd,99783122,22.75,T&S UK - Other Charges
BEIS,UKRI - UKRI,12/08/2022,T&S UK - Other Charges,UKRI - Strategic Finance Business Partners,Corporate Travel Management (North) Ltd,99783122,0.50,T&S UK - Other Charges
BEIS,UKRI - EPSRC,12/08/2022,T&S UK - Public Transport,AI and Robotics OpEx,Corporate Travel Management (North) Ltd,99783122,0.25,T&S UK - Public Transport
BEIS,UKRI - EPSRC,12/08/2022,T&S UK - Public Transport,AI and Robotics OpEx,Corporate Travel Management (North) Ltd,99783122,27.50,T&S UK - Public Transport
BEIS,UKRI - EPSRC,12/08/2022,T&S UK - Public Transport,AI and Robotics OpEx,Corporate Travel Management (North) Ltd,99783122,0.25,T&S UK - Public Transport
BEIS,UKRI - EPSRC,12/08/2022,T&S UK - Public Transport,AI and Robotics OpEx,Corporate Travel Management (North) Ltd,99783122,157.20,T&S UK - Public Transport
BEIS,UKRI - EPSRC,12/08/2022,T&S UK - Public Transport,AI and Robotics OpEx,Corporate Travel Management (North) Ltd,99783122,0.25,T&S UK - Public Transport
BEIS,UKRI - EPSRC,12/08/2022,T&S UK - Public Transport,AI and Robotics OpEx,Corporate Travel Management (North) Ltd,99783122,158.70,T&S UK - Public Transport
BEIS,UKRI - EPSRC,12/08/2022,T&S UK - Public Transport,AI and Robotics OpEx,Corporate Travel Management (North) Ltd,99783122,0.25,T&S UK - Public Transport
BEIS,UKRI - EPSRC,12/08/2022,T&S UK - Public Transport,AI and Robotics OpEx,Corporate Travel Management (North) Ltd,99783122,23.10,T&S UK - Public Transport
BEIS,UKRI - EPSRC,12/08/2022,T&S UK - Public Transport,AI and Robotics OpEx,Corporate Travel Management (North) Ltd,99783122,0.25,T&S UK - Public Transport
BEIS,UKRI - EPSRC,12/08/2022,T&S UK - Public Transport,AI and Robotics OpEx,Corporate Travel Management (North) Ltd,99783122,62.45,T&S UK - Public Transport
BEIS,UKRI - EPSRC,12/08/2022,T&S UK - Public Transport,Admin Programme Delivery Director,Corporate Travel Management (North) Ltd,99783122,5.00,T&S UK - Public Transport
BEIS,UKRI - EPSRC,12/08/2022,T&S UK - Public Transport,Admin Programme Delivery Director,Corporate Travel Management (North) Ltd,99783122,-16.40,T&S UK - Public Transport
BEIS,UKRI - EPSRC,12/08/2022,T&S UK - Public Transport,Business Engagement,Corporate Travel Management (North) Ltd,99783122,-398.10,T&S UK - Public Transport
BEIS,UKRI - EPSRC,12/08/2022,T&S UK - Public Transport,Business Engagement,Corporate Travel Management (North) Ltd,99783122,-398.10,T&S UK - Public Transport
BEIS,UKRI - EPSRC,12/08/2022,T&S UK - Public Transport,Business Engagement,Corporate Travel Management (North) Ltd,99783122,-398.10,T&S UK - Public Transport
BEIS,UKRI - EPSRC,12/08/2022,T&S UK - Public Transport,Business Engagement,Corporate Travel Management (North) Ltd,99783122,-398.10,T&S UK - Public Transport
BEIS,UKRI - EPSRC,12/08/2022,T&S UK - Public Transport,Commercialisation OpEx,Corporate Travel Management (North) Ltd,99783122,5.00,T&S UK - Public Transport
BEIS,UKRI - EPSRC,12/08/2022,T&S UK - Public Transport,Commercialisation OpEx,Corporate Travel Management (North) Ltd,99783122,-73.60,T&S UK - Public Transport
BEIS,UKRI - EPSRC,12/08/2022,T&S UK - Public Transport,Commercialisation OpEx,Corporate Travel Management (North) Ltd,99783122,5.00,T&S UK - Public Transport
BEIS,UKRI - EPSRC,12/08/2022,T&S UK - Public Transport,Commercialisation OpEx,Corporate Travel Management (North) Ltd,99783122,-8.50,T&S UK - Public Transport
BEIS,UKRI - EPSRC,12/08/2022,T&S UK - Public Transport,Directors and Deputy Directors,Corporate Travel Management (North) Ltd,99783122,0.25,T&S UK - Public Transport
BEIS,UKRI - EPSRC,12/08/2022,T&S UK - Public Transport,Directors and Deputy Directors,Corporate Travel Management (North) Ltd,99783122,21.40,T&S UK - Public Transport
BEIS,UKRI - EPSRC,12/08/2022,T&S UK - Public Transport,Directors and Deputy Directors,Corporate Travel Management (North) Ltd,99783122,0.25,T&S UK - Public Transport
BEIS,UKRI - EPSRC,12/08/2022,T&S UK - Public Transport,Directors and Deputy Directors,Corporate Travel Management (North) Ltd,99783122,157.20,T&S UK - Public Transport
BEIS,UKRI - EPSRC,12/08/2022,T&S UK - Public Transport,Directors and Deputy Directors,Corporate Travel Management (North) Ltd,99783122,0.25,T&S UK - Public Transport
BEIS,UKRI - EPSRC,12/08/2022,T&S UK - Public Transport,Directors and Deputy Directors,Corporate Travel Management (North) Ltd,99783122,14.90,T&S UK - Public Transport
BEIS,UKRI - EPSRC,12/08/2022,T&S UK - Public Transport,Directors and Deputy Directors,Corporate Travel Management (North) Ltd,99783122,0.12,T&S UK - Public Transport
BEIS,UKRI - EPSRC,12/08/2022,T&S UK - Public Transport,Directors and Deputy Directors,Corporate Travel Management (North) Ltd,99783122,60.00,T&S UK - Public Transport
BEIS,UKRI - EPSRC,12/08/2022,T&S UK - Public Transport,Directors and Deputy Directors,Corporate Travel Management (North) Ltd,99783122,0.13,T&S UK - Public Transport
BEIS,UKRI - EPSRC,12/08/2022,T&S UK - Public Transport,Directors and Deputy Directors,Corporate Travel Management (North) Ltd,99783122,60.00,T&S UK - Public Transport
BEIS,UKRI - EPSRC,12/08/2022,T&S UK - Public Transport,Directors and Deputy Directors,Corporate Travel Management (North) Ltd,99783122,0.25,T&S UK - Public Transport
BEIS,UKRI - EPSRC,12/08/2022,T&S UK - Public Transport,Directors and Deputy Directors,Corporate Travel Management (North) Ltd,99783122,157.60,T&S UK - Public Transport
BEIS,UKRI - EPSRC,12/08/2022,T&S UK - Public Transport,Directors and Deputy Directors,Corporate Travel Management (North) Ltd,99783122,10.00,T&S UK - Public Transport
BEIS,UKRI - EPSRC,12/08/2022,T&S UK - Public Transport,Directors and Deputy Directors,Corporate Travel Management (North) Ltd,99783122,-212.40,T&S UK - Public Transport
BEIS,UKRI - EPSRC,12/08/2022,T&S UK - Public Transport,Directors and Deputy Directors,Corporate Travel Management (North) Ltd,99783122,0.25,T&S UK - Public Transport
BEIS,UKRI - EPSRC,12/08/2022,T&S UK - Public Transport,Directors and Deputy Directors,Corporate Travel Management (North) Ltd,99783122,79.70,T&S UK - Public Transport
BEIS,UKRI - EPSRC,12/08/2022,T&S UK - Public Transport,Directors and Deputy Directors,Corporate Travel Management (North) Ltd,99783122,0.50,T&S UK - Public Transport
BEIS,UKRI - EPSRC,12/08/2022,T&S UK - Public Transport,Directors and Deputy Directors,Corporate Travel Management (North) Ltd,99783122,2.90,T&S UK - Public Transport
BEIS,UKRI - EPSRC,12/08/2022,T&S UK - Public Transport,Directors and Deputy Directors,Corporate Travel Management (North) Ltd,99783122,40.70,T&S UK - Public Transport
BEIS,UKRI - EPSRC,12/08/2022,T&S UK - Public Transport,Directors and Deputy Directors,Corporate Travel Management (North) Ltd,99783122,0.50,T&S UK - Public Transport
BEIS,UKRI - EPSRC,12/08/2022,T&S UK - Public Transport,Directors and Deputy Directors,Corporate Travel Management (North) Ltd,99783122,2.90,T&S UK - Public Transport
BEIS,UKRI - EPSRC,12/08/2022,T&S UK - Public Transport,Directors and Deputy Directors,Corporate Travel Management (North) Ltd,99783122,40.70,T&S UK - Public Transport
BEIS,UKRI - EPSRC,12/08/2022,T&S UK - Public Transport,Directors and Deputy Directors,Corporate Travel Management (North) Ltd,99783122,5.00,T&S UK - Public Transport
BEIS,UKRI - EPSRC,12/08/2022,T&S UK - Public Transport,Directors and Deputy Directors,Corporate Travel Management (North) Ltd,99783122,-76.60,T&S UK - Public Transport
BEIS,UKRI - EPSRC,12/08/2022,T&S UK - Public Transport,Directors and Deputy Directors,Corporate Travel Management (North) Ltd,99783122,10.00,T&S UK - Public Transport
BEIS,UKRI - EPSRC,12/08/2022,T&S UK - Public Transport,Directors and Deputy Directors,Corporate Travel Management (North) Ltd,99783122,-212.40,T&S UK - Public Transport
BEIS,UKRI - EPSRC,12/08/2022,T&S UK - Public Transport,Directors and Deputy Directors,Corporate Travel Management (North) Ltd,99783122,0.25,T&S UK - Public Transport
BEIS,UKRI - EPSRC,12/08/2022,T&S UK - Public Transport,Directors and Deputy Directors,Corporate Travel Management (North) Ltd,99783122,54.00,T&S UK - Public Transport
BEIS,UKRI - EPSRC,12/08/2022,T&S UK - Public Transport,Directors and Deputy Directors,Corporate Travel Management (North) Ltd,99783122,5.00,T&S UK - Public Transport
BEIS,UKRI - EPSRC,12/08/2022,T&S UK - Public Transport,Directors and Deputy Directors,Corporate Travel Management (North) Ltd,99783122,-218.70,T&S UK - Public Transport
BEIS,UKRI - EPSRC,12/08/2022,T&S UK - Public Transport,Directors and Deputy Directors,Corporate Travel Management (North) Ltd,99783122,5.00,T&S UK - Public Transport
BEIS,UKRI - EPSRC,12/08/2022,T&S UK - Public Transport,Directors and Deputy Directors,Corporate Travel Management (North) Ltd,99783122,-13.00,T&S UK - Public Transport
BEIS,UKRI - EPSRC,12/08/2022,T&S UK - Public Transport,EDI and People,Corporate Travel Management (North) Ltd,99783122,0.25,T&S UK - Public Transport
BEIS,UKRI - EPSRC,12/08/2022,T&S UK - Public Transport,EDI and People,Corporate Travel Management (North) Ltd,99783122,18.10,T&S UK - Public Transport
